{"text_format":"3","workbook":"xlsx","n_sheets":1,"sheets":["Låneberegner"],"not_rendered":{"defined_names":24},"read":"whole","date_system":"1900"}

{"sheet":"Låneberegner","index":0,"n_rows":372,"n_cols":8,"rows_kept":372,"merged":[[1,1,1,4],[2,1,2,3],[3,1,3,3],[4,1,4,3],[5,1,5,3],[7,1,7,3],[8,1,8,3],[9,1,9,3],[10,1,10,3]]}
[null,"Enkel låneberegner"]
[null,"Angiv værdier"]
[null,"Lånebeløb",null,null,{"v":5000,"d":"kr. 5,000.00"}]
[null,"Årlig rentesats",null,null,{"v":0.055,"d":"5.50%"}]
[null,"Lånets løbetid i antal år",null,null,5]
[null,"Lånets startdato",null,null,{"$f":"TODAY()","v":"2020-04-13"}]
[]
[null,"Månedlig afbetaling",null,null,{"$f":"IFERROR(IF(Værdier_Angivet,Månedlig_Betaling,\"\"), \"\")","v":{"v":95.5058108589112,"d":"kr. 95.51"}}]
[null,"Antal afbetalinger",null,null,{"$f":"IFERROR(IF(Værdier_Angivet,Lån_År*12,\"\"), \"\")","v":60}]
[null,"Renter i alt",null,null,{"$f":"IFERROR(IF(Værdier_Angivet,Omkostning_Ialt-Lån_Beløb,\"\"), \"\")","v":{"v":730.3486515346722,"d":"kr. 730.35"}}]
[null,"Låneomkostninger i alt",null,null,{"$f":"IFERROR(IF(Værdier_Angivet,Månedlig_Betaling*Antal_Betalinger,\"\"), \"\")","v":{"v":5730.348651534672,"d":"kr. 5,730.35"}}]
[null,"Nr.","Betaling\nDato","Start-\nsaldo","Betaling","Hovedstol","Renter","Slut-\nsaldo"]
[null,{"$f":"IFERROR(IF(Lån_Ikke_Betalt*Værdier_Angivet,Betaling_Nummer,\"\"), \"\")","v":1},{"$f":"IFERROR(IF(Lån_Ikke_Betalt*Værdier_Angivet,Betalingsdato,\"\"), \"\")","v":"2020-05-13"},{"$f":"IFERROR(IF(Lån_Ikke_Betalt*Værdier_Angivet,Startsaldo,\"\"), \"\")","v":{"v":5000,"d":"kr. 5,000.00"}},{"$f":"IFERROR(IF(Lån_Ikke_Betalt*Værdier_Angivet,Månedlig_Betaling,\"\"), \"\")","v":{"v":95.5058108589112,"d":"kr. 95.51"}},{"$f":"IFERROR(IF(Lån_Ikke_Betalt*Værdier_Angivet,Hovedstol,\"\"), \"\")","v":{"v":72.58914419224453,"d":"kr. 72.59"}},{"$f":"IFERROR(IF(Lån_Ikke_Betalt*Værdier_Angivet,Renter,\"\"), \"\")","v":{"v":22.916666666666668,"d":"kr. 22.92"}},{"$f":"IFERROR(IF(Lån_Ikke_Betalt*Værdier_Angivet,Slut_saldo,\"\"), \"\")","v":{"v":4927.410855807755,"d":"kr. 4,927.41"}}]
[null,{"$f":"IFERROR(IF(Lån_Ikke_Betalt*Værdier_Angivet,Betaling_Nummer,\"\"), \"\")","v":2},{"$f":"IFERROR(IF(Lån_Ikke_Betalt*Værdier_Angivet,Betalingsdato,\"\"), \"\")","v":"2020-06-13"},{"$f":"IFERROR(IF(Lån_Ikke_Betalt*Værdier_Angivet,Startsaldo,\"\"), \"\")","v":{"v":4927.410855807755,"d":"kr. 4,927.41"}},{"$f":"IFERROR(IF(Lån_Ikke_Betalt*Værdier_Angivet,Månedlig_Betaling,\"\"), \"\")","v":{"v":95.5058108589112,"d":"kr. 95.51"}},{"$f":"IFERROR(IF(Lån_Ikke_Betalt*Værdier_Angivet,Hovedstol,\"\"), \"\")","v":{"v":72.921844436459,"d":"kr. 72.92"}},{"$f":"IFERROR(IF(Lån_Ikke_Betalt*Værdier_Angivet,Renter,\"\"), \"\")","v":{"v":22.58396642245221,"d":"kr. 22.58"}},{"$f":"IFERROR(IF(Lån_Ikke_Betalt*Værdier_Angivet,Slut_saldo,\"\"), \"\")","v":{"v":4854.489011371295,"d":"kr. 4,854.49"}}]
[null,{"$f":"IFERROR(IF(Lån_Ikke_Betalt*Værdier_Angivet,Betaling_Nummer,\"\"), \"\")","v":3},{"$f":"IFERROR(IF(Lån_Ikke_Betalt*Værdier_Angivet,Betalingsdato,\"\"), \"\")","v":"2020-07-13"},{"$f":"IFERROR(IF(Lån_Ikke_Betalt*Værdier_Angivet,Startsaldo,\"\"), \"\")","v":{"v":4854.489011371295,"d":"kr. 4,854.49"}},{"$f":"IFERROR(IF(Lån_Ikke_Betalt*Værdier_Angivet,Månedlig_Betaling,\"\"), \"\")","v":{"v":95.5058108589112,"d":"kr. 95.51"}},{"$f":"IFERROR(IF(Lån_Ikke_Betalt*Værdier_Angivet,Hovedstol,\"\"), \"\")","v":{"v":73.25606955679277,"d":"kr. 73.26"}},{"$f":"IFERROR(IF(Lån_Ikke_Betalt*Værdier_Angivet,Renter,\"\"), \"\")","v":{"v":22.249741302118437,"d":"kr. 22.25"}},{"$f":"IFERROR(IF(Lån_Ikke_Betalt*Værdier_Angivet,Slut_saldo,\"\"), \"\")","v":{"v":4781.232941814503,"d":"kr. 4,781.23"}}]
[null,{"$f":"IFERROR(IF(Lån_Ikke_Betalt*Værdier_Angivet,Betaling_Nummer,\"\"), \"\")","v":4},{"$f":"IFERROR(IF(Lån_Ikke_Betalt*Værdier_Angivet,Betalingsdato,\"\"), \"\")","v":"2020-08-13"},{"$f":"IFERROR(IF(Lån_Ikke_Betalt*Værdier_Angivet,Startsaldo,\"\"), \"\")","v":{"v":4781.232941814503,"d":"kr. 4,781.23"}},{"$f":"IFERROR(IF(Lån_Ikke_Betalt*Værdier_Angivet,Månedlig_Betaling,\"\"), \"\")","v":{"v":95.5058108589112,"d":"kr. 95.51"}},{"$f":"IFERROR(IF(Lån_Ikke_Betalt*Værdier_Angivet,Hovedstol,\"\"), \"\")","v":{"v":73.5918265422614,"d":"kr. 73.59"}},{"$f":"IFERROR(IF(Lån_Ikke_Betalt*Værdier_Angivet,Renter,\"\"), \"\")","v":{"v":21.913984316649806,"d":"kr. 21.91"}},{"$f":"IFERROR(IF(Lån_Ikke_Betalt*Værdier_Angivet,Slut_saldo,\"\"), \"\")","v":{"v":4707.641115272242,"d":"kr. 4,707.64"}}]
[null,{"$f":"IFERROR(IF(Lån_Ikke_Betalt*Værdier_Angivet,Betaling_Nummer,\"\"), \"\")","v":5},{"$f":"IFERROR(IF(Lån_Ikke_Betalt*Værdier_Angivet,Betalingsdato,\"\"), \"\")","v":"2020-09-13"},{"$f":"IFERROR(IF(Lån_Ikke_Betalt*Værdier_Angivet,Startsaldo,\"\"), \"\")","v":{"v":4707.641115272242,"d":"kr. 4,707.64"}},{"$f":"IFERROR(IF(Lån_Ikke_Betalt*Værdier_Angivet,Månedlig_Betaling,\"\"), \"\")","v":{"v":95.5058108589112,"d":"kr. 95.51"}},{"$f":"IFERROR(IF(Lån_Ikke_Betalt*Værdier_Angivet,Hovedstol,\"\"), \"\")","v":{"v":73.92912241391343,"d":"kr. 73.93"}},{"$f":"IFERROR(IF(Lån_Ikke_Betalt*Værdier_Angivet,Renter,\"\"), \"\")","v":{"v":21.576688444997778,"d":"kr. 21.58"}},{"$f":"IFERROR(IF(Lån_Ikke_Betalt*Værdier_Angivet,Slut_saldo,\"\"), \"\")","v":{"v":4633.711992858327,"d":"kr. 4,633.71"}}]
[null,{"$f":"IFERROR(IF(Lån_Ikke_Betalt*Værdier_Angivet,Betaling_Nummer,\"\"), \"\")","v":6},{"$f":"IFERROR(IF(Lån_Ikke_Betalt*Værdier_Angivet,Betalingsdato,\"\"), \"\")","v":"2020-10-13"},{"$f":"IFERROR(IF(Lån_Ikke_Betalt*Værdier_Angivet,Startsaldo,\"\"), \"\")","v":{"v":4633.711992858327,"d":"kr. 4,633.71"}},{"$f":"IFERROR(IF(Lån_Ikke_Betalt*Værdier_Angivet,Månedlig_Betaling,\"\"), \"\")","v":{"v":95.5058108589112,"d":"kr. 95.51"}},{"$f":"IFERROR(IF(Lån_Ikke_Betalt*Værdier_Angivet,Hovedstol,\"\"), \"\")","v":{"v":74.2679642249772,"d":"kr. 74.27"}},{"$f":"IFERROR(IF(Lån_Ikke_Betalt*Værdier_Angivet,Renter,\"\"), \"\")","v":{"v":21.237846633934,"d":"kr. 21.24"}},{"$f":"IFERROR(IF(Lån_Ikke_Betalt*Værdier_Angivet,Slut_saldo,\"\"), \"\")","v":{"v":4559.444028633349,"d":"kr. 4,559.44"}}]
[null,{"$f":"IFERROR(IF(Lån_Ikke_Betalt*Værdier_Angivet,Betaling_Nummer,\"\"), \"\")","v":7},{"$f":"IFERROR(IF(Lån_Ikke_Betalt*Værdier_Angivet,Betalingsdato,\"\"), \"\")","v":"2020-11-13"},{"$f":"IFERROR(IF(Lån_Ikke_Betalt*Værdier_Angivet,Startsaldo,\"\"), \"\")","v":{"v":4559.444028633349,"d":"kr. 4,559.44"}},{"$f":"IFERROR(IF(Lån_Ikke_Betalt*Værdier_Angivet,Månedlig_Betaling,\"\"), \"\")","v":{"v":95.5058108589112,"d":"kr. 95.51"}},{"$f":"IFERROR(IF(Lån_Ikke_Betalt*Værdier_Angivet,Hovedstol,\"\"), \"\")","v":{"v":74.60835906100834,"d":"kr. 74.61"}},{"$f":"IFERROR(IF(Lån_Ikke_Betalt*Værdier_Angivet,Renter,\"\"), \"\")","v":{"v":20.89745179790286,"d":"kr. 20.90"}},{"$f":"IFERROR(IF(Lån_Ikke_Betalt*Værdier_Angivet,Slut_saldo,\"\"), \"\")","v":{"v":4484.835669572343,"d":"kr. 4,484.84"}}]
[null,{"$f":"IFERROR(IF(Lån_Ikke_Betalt*Værdier_Angivet,Betaling_Nummer,\"\"), \"\")","v":8},{"$f":"IFERROR(IF(Lån_Ikke_Betalt*Værdier_Angivet,Betalingsdato,\"\"), \"\")","v":"2020-12-13"},{"$f":"IFERROR(IF(Lån_Ikke_Betalt*Værdier_Angivet,Startsaldo,\"\"), \"\")","v":{"v":4484.835669572343,"d":"kr. 4,484.84"}},{"$f":"IFERROR(IF(Lån_Ikke_Betalt*Værdier_Angivet,Månedlig_Betaling,\"\"), \"\")","v":{"v":95.5058108589112,"d":"kr. 95.51"}},{"$f":"IFERROR(IF(Lån_Ikke_Betalt*Værdier_Angivet,Hovedstol,\"\"), \"\")","v":{"v":74.95031404003797,"d":"kr. 74.95"}},{"$f":"IFERROR(IF(Lån_Ikke_Betalt*Værdier_Angivet,Renter,\"\"), \"\")","v":{"v":20.55549681887324,"d":"kr. 20.56"}},{"$f":"IFERROR(IF(Lån_Ikke_Betalt*Værdier_Angivet,Slut_saldo,\"\"), \"\")","v":{"v":4409.885355532304,"d":"kr. 4,409.89"}}]
[null,{"$f":"IFERROR(IF(Lån_Ikke_Betalt*Værdier_Angivet,Betaling_Nummer,\"\"), \"\")","v":9},{"$f":"IFERROR(IF(Lån_Ikke_Betalt*Værdier_Angivet,Betalingsdato,\"\"), \"\")","v":"2021-01-13"},{"$f":"IFERROR(IF(Lån_Ikke_Betalt*Værdier_Angivet,Startsaldo,\"\"), \"\")","v":{"v":4409.885355532304,"d":"kr. 4,409.89"}},{"$f":"IFERROR(IF(Lån_Ikke_Betalt*Værdier_Angivet,Månedlig_Betaling,\"\"), \"\")","v":{"v":95.5058108589112,"d":"kr. 95.51"}},{"$f":"IFERROR(IF(Lån_Ikke_Betalt*Værdier_Angivet,Hovedstol,\"\"), \"\")","v":{"v":75.29383631272148,"d":"kr. 75.29"}},{"$f":"IFERROR(IF(Lån_Ikke_Betalt*Værdier_Angivet,Renter,\"\"), \"\")","v":{"v":20.21197454618973,"d":"kr. 20.21"}},{"$f":"IFERROR(IF(Lån_Ikke_Betalt*Værdier_Angivet,Slut_saldo,\"\"), \"\")","v":{"v":4334.5915192195835,"d":"kr. 4,334.59"}}]
[null,{"$f":"IFERROR(IF(Lån_Ikke_Betalt*Værdier_Angivet,Betaling_Nummer,\"\"), \"\")","v":10},{"$f":"IFERROR(IF(Lån_Ikke_Betalt*Værdier_Angivet,Betalingsdato,\"\"), \"\")","v":"2021-02-13"},{"$f":"IFERROR(IF(Lån_Ikke_Betalt*Værdier_Angivet,Startsaldo,\"\"), \"\")","v":{"v":4334.5915192195835,"d":"kr. 4,334.59"}},{"$f":"IFERROR(IF(Lån_Ikke_Betalt*Værdier_Angivet,Månedlig_Betaling,\"\"), \"\")","v":{"v":95.5058108589112,"d":"kr. 95.51"}},{"$f":"IFERROR(IF(Lån_Ikke_Betalt*Værdier_Angivet,Hovedstol,\"\"), \"\")","v":{"v":75.63893306248812,"d":"kr. 75.64"}},{"$f":"IFERROR(IF(Lån_Ikke_Betalt*Værdier_Angivet,Renter,\"\"), \"\")","v":{"v":19.86687779642309,"d":"kr. 19.87"}},{"$f":"IFERROR(IF(Lån_Ikke_Betalt*Værdier_Angivet,Slut_saldo,\"\"), \"\")","v":{"v":4258.952586157094,"d":"kr. 4,258.95"}}]
[null,{"$f":"IFERROR(IF(Lån_Ikke_Betalt*Værdier_Angivet,Betaling_Nummer,\"\"), \"\")","v":11},{"$f":"IFERROR(IF(Lån_Ikke_Betalt*Værdier_Angivet,Betalingsdato,\"\"), \"\")","v":"2021-03-13"},{"$f":"IFERROR(IF(Lån_Ikke_Betalt*Værdier_Angivet,Startsaldo,\"\"), \"\")","v":{"v":4258.952586157094,"d":"kr. 4,258.95"}},{"$f":"IFERROR(IF(Lån_Ikke_Betalt*Værdier_Angivet,Månedlig_Betaling,\"\"), \"\")","v":{"v":95.5058108589112,"d":"kr. 95.51"}},{"$f":"IFERROR(IF(Lån_Ikke_Betalt*Værdier_Angivet,Hovedstol,\"\"), \"\")","v":{"v":75.9856115056912,"d":"kr. 75.99"}},{"$f":"IFERROR(IF(Lån_Ikke_Betalt*Værdier_Angivet,Renter,\"\"), \"\")","v":{"v":19.520199353220022,"d":"kr. 19.52"}},{"$f":"IFERROR(IF(Lån_Ikke_Betalt*Værdier_Angivet,Slut_saldo,\"\"), \"\")","v":{"v":4182.966974651403,"d":"kr. 4,182.97"}}]
[null,{"$f":"IFERROR(IF(Lån_Ikke_Betalt*Værdier_Angivet,Betaling_Nummer,\"\"), \"\")","v":12},{"$f":"IFERROR(IF(Lån_Ikke_Betalt*Værdier_Angivet,Betalingsdato,\"\"), \"\")","v":"2021-04-13"},{"$f":"IFERROR(IF(Lån_Ikke_Betalt*Værdier_Angivet,Startsaldo,\"\"), \"\")","v":{"v":4182.966974651403,"d":"kr. 4,182.97"}},{"$f":"IFERROR(IF(Lån_Ikke_Betalt*Værdier_Angivet,Månedlig_Betaling,\"\"), \"\")","v":{"v":95.5058108589112,"d":"kr. 95.51"}},{"$f":"IFERROR(IF(Lån_Ikke_Betalt*Værdier_Angivet,Hovedstol,\"\"), \"\")","v":{"v":76.33387889175894,"d":"kr. 76.33"}},{"$f":"IFERROR(IF(Lån_Ikke_Betalt*Værdier_Angivet,Renter,\"\"), \"\")","v":{"v":19.17193196715227,"d":"kr. 19.17"}},{"$f":"IFERROR(IF(Lån_Ikke_Betalt*Værdier_Angivet,Slut_saldo,\"\"), \"\")","v":{"v":4106.633095759646,"d":"kr. 4,106.63"}}]
[null,{"$f":"IFERROR(IF(Lån_Ikke_Betalt*Værdier_Angivet,Betaling_Nummer,\"\"), \"\")","v":13},{"$f":"IFERROR(IF(Lån_Ikke_Betalt*Værdier_Angivet,Betalingsdato,\"\"), \"\")","v":"2021-05-13"},{"$f":"IFERROR(IF(Lån_Ikke_Betalt*Værdier_Angivet,Startsaldo,\"\"), \"\")","v":{"v":4106.633095759646,"d":"kr. 4,106.63"}},{"$f":"IFERROR(IF(Lån_Ikke_Betalt*Værdier_Angivet,Månedlig_Betaling,\"\"), \"\")","v":{"v":95.5058108589112,"d":"kr. 95.51"}},{"$f":"IFERROR(IF(Lån_Ikke_Betalt*Værdier_Angivet,Hovedstol,\"\"), \"\")","v":{"v":76.68374250334618,"d":"kr. 76.68"}},{"$f":"IFERROR(IF(Lån_Ikke_Betalt*Værdier_Angivet,Renter,\"\"), \"\")","v":{"v":18.822068355565037,"d":"kr. 18.82"}},{"$f":"IFERROR(IF(Lån_Ikke_Betalt*Værdier_Angivet,Slut_saldo,\"\"), \"\")","v":{"v":4029.9493532562983,"d":"kr. 4,029.95"}}]
[null,{"$f":"IFERROR(IF(Lån_Ikke_Betalt*Værdier_Angivet,Betaling_Nummer,\"\"), \"\")","v":14},{"$f":"IFERROR(IF(Lån_Ikke_Betalt*Værdier_Angivet,Betalingsdato,\"\"), \"\")","v":"2021-06-13"},{"$f":"IFERROR(IF(Lån_Ikke_Betalt*Værdier_Angivet,Startsaldo,\"\"), \"\")","v":{"v":4029.9493532562983,"d":"kr. 4,029.95"}},{"$f":"IFERROR(IF(Lån_Ikke_Betalt*Værdier_Angivet,Månedlig_Betaling,\"\"), \"\")","v":{"v":95.5058108589112,"d":"kr. 95.51"}},{"$f":"IFERROR(IF(Lån_Ikke_Betalt*Værdier_Angivet,Hovedstol,\"\"), \"\")","v":{"v":77.0352096564865,"d":"kr. 77.04"}},{"$f":"IFERROR(IF(Lån_Ikke_Betalt*Værdier_Angivet,Renter,\"\"), \"\")","v":{"v":18.470601202424707,"d":"kr. 18.47"}},{"$f":"IFERROR(IF(Lån_Ikke_Betalt*Værdier_Angivet,Slut_saldo,\"\"), \"\")","v":{"v":3952.914143599811,"d":"kr. 3,952.91"}}]
[null,{"$f":"IFERROR(IF(Lån_Ikke_Betalt*Værdier_Angivet,Betaling_Nummer,\"\"), \"\")","v":15},{"$f":"IFERROR(IF(Lån_Ikke_Betalt*Værdier_Angivet,Betalingsdato,\"\"), \"\")","v":"2021-07-13"},{"$f":"IFERROR(IF(Lån_Ikke_Betalt*Værdier_Angivet,Startsaldo,\"\"), \"\")","v":{"v":3952.914143599811,"d":"kr. 3,952.91"}},{"$f":"IFERROR(IF(Lån_Ikke_Betalt*Værdier_Angivet,Månedlig_Betaling,\"\"), \"\")","v":{"v":95.5058108589112,"d":"kr. 95.51"}},{"$f":"IFERROR(IF(Lån_Ikke_Betalt*Værdier_Angivet,Hovedstol,\"\"), \"\")","v":{"v":77.3882877007454,"d":"kr. 77.39"}},{"$f":"IFERROR(IF(Lån_Ikke_Betalt*Værdier_Angivet,Renter,\"\"), \"\")","v":{"v":18.11752315816581,"d":"kr. 18.12"}},{"$f":"IFERROR(IF(Lån_Ikke_Betalt*Værdier_Angivet,Slut_saldo,\"\"), \"\")","v":{"v":3875.5258558990663,"d":"kr. 3,875.53"}}]
[null,{"$f":"IFERROR(IF(Lån_Ikke_Betalt*Værdier_Angivet,Betaling_Nummer,\"\"), \"\")","v":16},{"$f":"IFERROR(IF(Lån_Ikke_Betalt*Værdier_Angivet,Betalingsdato,\"\"), \"\")","v":"2021-08-13"},{"$f":"IFERROR(IF(Lån_Ikke_Betalt*Værdier_Angivet,Startsaldo,\"\"), \"\")","v":{"v":3875.5258558990663,"d":"kr. 3,875.53"}},{"$f":"IFERROR(IF(Lån_Ikke_Betalt*Værdier_Angivet,Månedlig_Betaling,\"\"), \"\")","v":{"v":95.5058108589112,"d":"kr. 95.51"}},{"$f":"IFERROR(IF(Lån_Ikke_Betalt*Værdier_Angivet,Hovedstol,\"\"), \"\")","v":{"v":77.74298401937381,"d":"kr. 77.74"}},{"$f":"IFERROR(IF(Lån_Ikke_Betalt*Værdier_Angivet,Renter,\"\"), \"\")","v":{"v":17.762826839537393,"d":"kr. 17.76"}},{"$f":"IFERROR(IF(Lån_Ikke_Betalt*Værdier_Angivet,Slut_saldo,\"\"), \"\")","v":{"v":3797.782871879692,"d":"kr. 3,797.78"}}]
[null,{"$f":"IFERROR(IF(Lån_Ikke_Betalt*Værdier_Angivet,Betaling_Nummer,\"\"), \"\")","v":17},{"$f":"IFERROR(IF(Lån_Ikke_Betalt*Værdier_Angivet,Betalingsdato,\"\"), \"\")","v":"2021-09-13"},{"$f":"IFERROR(IF(Lån_Ikke_Betalt*Værdier_Angivet,Startsaldo,\"\"), \"\")","v":{"v":3797.782871879692,"d":"kr. 3,797.78"}},{"$f":"IFERROR(IF(Lån_Ikke_Betalt*Værdier_Angivet,Månedlig_Betaling,\"\"), \"\")","v":{"v":95.5058108589112,"d":"kr. 95.51"}},{"$f":"IFERROR(IF(Lån_Ikke_Betalt*Værdier_Angivet,Hovedstol,\"\"), \"\")","v":{"v":78.09930602946262,"d":"kr. 78.10"}},{"$f":"IFERROR(IF(Lån_Ikke_Betalt*Værdier_Angivet,Renter,\"\"), \"\")","v":{"v":17.406504829448597,"d":"kr. 17.41"}},{"$f":"IFERROR(IF(Lån_Ikke_Betalt*Værdier_Angivet,Slut_saldo,\"\"), \"\")","v":{"v":3719.683565850227,"d":"kr. 3,719.68"}}]
[null,{"$f":"IFERROR(IF(Lån_Ikke_Betalt*Værdier_Angivet,Betaling_Nummer,\"\"), \"\")","v":18},{"$f":"IFERROR(IF(Lån_Ikke_Betalt*Værdier_Angivet,Betalingsdato,\"\"), \"\")","v":"2021-10-13"},{"$f":"IFERROR(IF(Lån_Ikke_Betalt*Værdier_Angivet,Startsaldo,\"\"), \"\")","v":{"v":3719.683565850227,"d":"kr. 3,719.68"}},{"$f":"IFERROR(IF(Lån_Ikke_Betalt*Værdier_Angivet,Månedlig_Betaling,\"\"), \"\")","v":{"v":95.5058108589112,"d":"kr. 95.51"}},{"$f":"IFERROR(IF(Lån_Ikke_Betalt*Værdier_Angivet,Hovedstol,\"\"), \"\")","v":{"v":78.45726118209765,"d":"kr. 78.46"}},{"$f":"IFERROR(IF(Lån_Ikke_Betalt*Værdier_Angivet,Renter,\"\"), \"\")","v":{"v":17.048549676813558,"d":"kr. 17.05"}},{"$f":"IFERROR(IF(Lån_Ikke_Betalt*Værdier_Angivet,Slut_saldo,\"\"), \"\")","v":{"v":3641.2263046681296,"d":"kr. 3,641.23"}}]
[null,{"$f":"IFERROR(IF(Lån_Ikke_Betalt*Værdier_Angivet,Betaling_Nummer,\"\"), \"\")","v":19},{"$f":"IFERROR(IF(Lån_Ikke_Betalt*Værdier_Angivet,Betalingsdato,\"\"), \"\")","v":"2021-11-13"},{"$f":"IFERROR(IF(Lån_Ikke_Betalt*Værdier_Angivet,Startsaldo,\"\"), \"\")","v":{"v":3641.2263046681296,"d":"kr. 3,641.23"}},{"$f":"IFERROR(IF(Lån_Ikke_Betalt*Værdier_Angivet,Månedlig_Betaling,\"\"), \"\")","v":{"v":95.5058108589112,"d":"kr. 95.51"}},{"$f":"IFERROR(IF(Lån_Ikke_Betalt*Værdier_Angivet,Hovedstol,\"\"), \"\")","v":{"v":78.8168569625156,"d":"kr. 78.82"}},{"$f":"IFERROR(IF(Lån_Ikke_Betalt*Værdier_Angivet,Renter,\"\"), \"\")","v":{"v":16.68895389639561,"d":"kr. 16.69"}},{"$f":"IFERROR(IF(Lån_Ikke_Betalt*Værdier_Angivet,Slut_saldo,\"\"), \"\")","v":{"v":3562.409447705617,"d":"kr. 3,562.41"}}]
[null,{"$f":"IFERROR(IF(Lån_Ikke_Betalt*Værdier_Angivet,Betaling_Nummer,\"\"), \"\")","v":20},{"$f":"IFERROR(IF(Lån_Ikke_Betalt*Værdier_Angivet,Betalingsdato,\"\"), \"\")","v":"2021-12-13"},{"$f":"IFERROR(IF(Lån_Ikke_Betalt*Værdier_Angivet,Startsaldo,\"\"), \"\")","v":{"v":3562.409447705617,"d":"kr. 3,562.41"}},{"$f":"IFERROR(IF(Lån_Ikke_Betalt*Værdier_Angivet,Månedlig_Betaling,\"\"), \"\")","v":{"v":95.5058108589112,"d":"kr. 95.51"}},{"$f":"IFERROR(IF(Lån_Ikke_Betalt*Værdier_Angivet,Hovedstol,\"\"), \"\")","v":{"v":79.17810089026047,"d":"kr. 79.18"}},{"$f":"IFERROR(IF(Lån_Ikke_Betalt*Værdier_Angivet,Renter,\"\"), \"\")","v":{"v":16.327709968650748,"d":"kr. 16.33"}},{"$f":"IFERROR(IF(Lån_Ikke_Betalt*Værdier_Angivet,Slut_saldo,\"\"), \"\")","v":{"v":3483.231346815355,"d":"kr. 3,483.23"}}]
[null,{"$f":"IFERROR(IF(Lån_Ikke_Betalt*Værdier_Angivet,Betaling_Nummer,\"\"), \"\")","v":21},{"$f":"IFERROR(IF(Lån_Ikke_Betalt*Værdier_Angivet,Betalingsdato,\"\"), \"\")","v":"2022-01-13"},{"$f":"IFERROR(IF(Lån_Ikke_Betalt*Værdier_Angivet,Startsaldo,\"\"), \"\")","v":{"v":3483.231346815355,"d":"kr. 3,483.23"}},{"$f":"IFERROR(IF(Lån_Ikke_Betalt*Værdier_Angivet,Månedlig_Betaling,\"\"), \"\")","v":{"v":95.5058108589112,"d":"kr. 95.51"}},{"$f":"IFERROR(IF(Lån_Ikke_Betalt*Værdier_Angivet,Hovedstol,\"\"), \"\")","v":{"v":79.54100051934081,"d":"kr. 79.54"}},{"$f":"IFERROR(IF(Lån_Ikke_Betalt*Værdier_Angivet,Renter,\"\"), \"\")","v":{"v":15.964810339570388,"d":"kr. 15.96"}},{"$f":"IFERROR(IF(Lån_Ikke_Betalt*Værdier_Angivet,Slut_saldo,\"\"), \"\")","v":{"v":3403.6903462960136,"d":"kr. 3,403.69"}}]
[null,{"$f":"IFERROR(IF(Lån_Ikke_Betalt*Værdier_Angivet,Betaling_Nummer,\"\"), \"\")","v":22},{"$f":"IFERROR(IF(Lån_Ikke_Betalt*Værdier_Angivet,Betalingsdato,\"\"), \"\")","v":"2022-02-13"},{"$f":"IFERROR(IF(Lån_Ikke_Betalt*Værdier_Angivet,Startsaldo,\"\"), \"\")","v":{"v":3403.6903462960136,"d":"kr. 3,403.69"}},{"$f":"IFERROR(IF(Lån_Ikke_Betalt*Værdier_Angivet,Månedlig_Betaling,\"\"), \"\")","v":{"v":95.5058108589112,"d":"kr. 95.51"}},{"$f":"IFERROR(IF(Lån_Ikke_Betalt*Værdier_Angivet,Hovedstol,\"\"), \"\")","v":{"v":79.90556343838782,"d":"kr. 79.91"}},{"$f":"IFERROR(IF(Lån_Ikke_Betalt*Værdier_Angivet,Renter,\"\"), \"\")","v":{"v":15.600247420523408,"d":"kr. 15.60"}},{"$f":"IFERROR(IF(Lån_Ikke_Betalt*Værdier_Angivet,Slut_saldo,\"\"), \"\")","v":{"v":3323.7847828576223,"d":"kr. 3,323.78"}}]
[null,{"$f":"IFERROR(IF(Lån_Ikke_Betalt*Værdier_Angivet,Betaling_Nummer,\"\"), \"\")","v":23},{"$f":"IFERROR(IF(Lån_Ikke_Betalt*Værdier_Angivet,Betalingsdato,\"\"), \"\")","v":"2022-03-13"},{"$f":"IFERROR(IF(Lån_Ikke_Betalt*Værdier_Angivet,Startsaldo,\"\"), \"\")","v":{"v":3323.7847828576223,"d":"kr. 3,323.78"}},{"$f":"IFERROR(IF(Lån_Ikke_Betalt*Værdier_Angivet,Månedlig_Betaling,\"\"), \"\")","v":{"v":95.5058108589112,"d":"kr. 95.51"}},{"$f":"IFERROR(IF(Lån_Ikke_Betalt*Værdier_Angivet,Hovedstol,\"\"), \"\")","v":{"v":80.27179727081375,"d":"kr. 80.27"}},{"$f":"IFERROR(IF(Lån_Ikke_Betalt*Værdier_Angivet,Renter,\"\"), \"\")","v":{"v":15.234013588097463,"d":"kr. 15.23"}},{"$f":"IFERROR(IF(Lån_Ikke_Betalt*Værdier_Angivet,Slut_saldo,\"\"), \"\")","v":{"v":3243.5129855868117,"d":"kr. 3,243.51"}}]
[null,{"$f":"IFERROR(IF(Lån_Ikke_Betalt*Værdier_Angivet,Betaling_Nummer,\"\"), \"\")","v":24},{"$f":"IFERROR(IF(Lån_Ikke_Betalt*Værdier_Angivet,Betalingsdato,\"\"), \"\")","v":"2022-04-13"},{"$f":"IFERROR(IF(Lån_Ikke_Betalt*Værdier_Angivet,Startsaldo,\"\"), \"\")","v":{"v":3243.5129855868117,"d":"kr. 3,243.51"}},{"$f":"IFERROR(IF(Lån_Ikke_Betalt*Værdier_Angivet,Månedlig_Betaling,\"\"), \"\")","v":{"v":95.5058108589112,"d":"kr. 95.51"}},{"$f":"IFERROR(IF(Lån_Ikke_Betalt*Værdier_Angivet,Hovedstol,\"\"), \"\")","v":{"v":80.63970967497164,"d":"kr. 80.64"}},{"$f":"IFERROR(IF(Lån_Ikke_Betalt*Værdier_Angivet,Renter,\"\"), \"\")","v":{"v":14.866101183939566,"d":"kr. 14.87"}},{"$f":"IFERROR(IF(Lån_Ikke_Betalt*Værdier_Angivet,Slut_saldo,\"\"), \"\")","v":{"v":3162.87327591184,"d":"kr. 3,162.87"}}]
[null,{"$f":"IFERROR(IF(Lån_Ikke_Betalt*Værdier_Angivet,Betaling_Nummer,\"\"), \"\")","v":25},{"$f":"IFERROR(IF(Lån_Ikke_Betalt*Værdier_Angivet,Betalingsdato,\"\"), \"\")","v":"2022-05-13"},{"$f":"IFERROR(IF(Lån_Ikke_Betalt*Værdier_Angivet,Startsaldo,\"\"), \"\")","v":{"v":3162.87327591184,"d":"kr. 3,162.87"}},{"$f":"IFERROR(IF(Lån_Ikke_Betalt*Værdier_Angivet,Månedlig_Betaling,\"\"), \"\")","v":{"v":95.5058108589112,"d":"kr. 95.51"}},{"$f":"IFERROR(IF(Lån_Ikke_Betalt*Værdier_Angivet,Hovedstol,\"\"), \"\")","v":{"v":81.00930834431526,"d":"kr. 81.01"}},{"$f":"IFERROR(IF(Lån_Ikke_Betalt*Værdier_Angivet,Renter,\"\"), \"\")","v":{"v":14.49650251459595,"d":"kr. 14.50"}},{"$f":"IFERROR(IF(Lån_Ikke_Betalt*Værdier_Angivet,Slut_saldo,\"\"), \"\")","v":{"v":3081.8639675675254,"d":"kr. 3,081.86"}}]
[null,{"$f":"IFERROR(IF(Lån_Ikke_Betalt*Værdier_Angivet,Betaling_Nummer,\"\"), \"\")","v":26},{"$f":"IFERROR(IF(Lån_Ikke_Betalt*Værdier_Angivet,Betalingsdato,\"\"), \"\")","v":"2022-06-13"},{"$f":"IFERROR(IF(Lån_Ikke_Betalt*Værdier_Angivet,Startsaldo,\"\"), \"\")","v":{"v":3081.8639675675254,"d":"kr. 3,081.86"}},{"$f":"IFERROR(IF(Lån_Ikke_Betalt*Værdier_Angivet,Månedlig_Betaling,\"\"), \"\")","v":{"v":95.5058108589112,"d":"kr. 95.51"}},{"$f":"IFERROR(IF(Lån_Ikke_Betalt*Værdier_Angivet,Hovedstol,\"\"), \"\")","v":{"v":81.38060100756003,"d":"kr. 81.38"}},{"$f":"IFERROR(IF(Lån_Ikke_Betalt*Værdier_Angivet,Renter,\"\"), \"\")","v":{"v":14.125209851351169,"d":"kr. 14.13"}},{"$f":"IFERROR(IF(Lån_Ikke_Betalt*Værdier_Angivet,Slut_saldo,\"\"), \"\")","v":{"v":3000.483366559965,"d":"kr. 3,000.48"}}]
[null,{"$f":"IFERROR(IF(Lån_Ikke_Betalt*Værdier_Angivet,Betaling_Nummer,\"\"), \"\")","v":27},{"$f":"IFERROR(IF(Lån_Ikke_Betalt*Værdier_Angivet,Betalingsdato,\"\"), \"\")","v":"2022-07-13"},{"$f":"IFERROR(IF(Lån_Ikke_Betalt*Værdier_Angivet,Startsaldo,\"\"), \"\")","v":{"v":3000.483366559965,"d":"kr. 3,000.48"}},{"$f":"IFERROR(IF(Lån_Ikke_Betalt*Værdier_Angivet,Månedlig_Betaling,\"\"), \"\")","v":{"v":95.5058108589112,"d":"kr. 95.51"}},{"$f":"IFERROR(IF(Lån_Ikke_Betalt*Værdier_Angivet,Hovedstol,\"\"), \"\")","v":{"v":81.75359542884469,"d":"kr. 81.75"}},{"$f":"IFERROR(IF(Lån_Ikke_Betalt*Værdier_Angivet,Renter,\"\"), \"\")","v":{"v":13.752215430066517,"d":"kr. 13.75"}},{"$f":"IFERROR(IF(Lån_Ikke_Betalt*Værdier_Angivet,Slut_saldo,\"\"), \"\")","v":{"v":2918.729771131121,"d":"kr. 2,918.73"}}]
[null,{"$f":"IFERROR(IF(Lån_Ikke_Betalt*Værdier_Angivet,Betaling_Nummer,\"\"), \"\")","v":28},{"$f":"IFERROR(IF(Lån_Ikke_Betalt*Værdier_Angivet,Betalingsdato,\"\"), \"\")","v":"2022-08-13"},{"$f":"IFERROR(IF(Lån_Ikke_Betalt*Værdier_Angivet,Startsaldo,\"\"), \"\")","v":{"v":2918.729771131121,"d":"kr. 2,918.73"}},{"$f":"IFERROR(IF(Lån_Ikke_Betalt*Værdier_Angivet,Månedlig_Betaling,\"\"), \"\")","v":{"v":95.5058108589112,"d":"kr. 95.51"}},{"$f":"IFERROR(IF(Lån_Ikke_Betalt*Værdier_Angivet,Hovedstol,\"\"), \"\")","v":{"v":82.12829940789356,"d":"kr. 82.13"}},{"$f":"IFERROR(IF(Lån_Ikke_Betalt*Værdier_Angivet,Renter,\"\"), \"\")","v":{"v":13.377511451017645,"d":"kr. 13.38"}},{"$f":"IFERROR(IF(Lån_Ikke_Betalt*Værdier_Angivet,Slut_saldo,\"\"), \"\")","v":{"v":2836.601471723228,"d":"kr. 2,836.60"}}]
[null,{"$f":"IFERROR(IF(Lån_Ikke_Betalt*Værdier_Angivet,Betaling_Nummer,\"\"), \"\")","v":29},{"$f":"IFERROR(IF(Lån_Ikke_Betalt*Værdier_Angivet,Betalingsdato,\"\"), \"\")","v":"2022-09-13"},{"$f":"IFERROR(IF(Lån_Ikke_Betalt*Værdier_Angivet,Startsaldo,\"\"), \"\")","v":{"v":2836.601471723228,"d":"kr. 2,836.60"}},{"$f":"IFERROR(IF(Lån_Ikke_Betalt*Værdier_Angivet,Månedlig_Betaling,\"\"), \"\")","v":{"v":95.5058108589112,"d":"kr. 95.51"}},{"$f":"IFERROR(IF(Lån_Ikke_Betalt*Værdier_Angivet,Hovedstol,\"\"), \"\")","v":{"v":82.50472078017975,"d":"kr. 82.50"}},{"$f":"IFERROR(IF(Lån_Ikke_Betalt*Værdier_Angivet,Renter,\"\"), \"\")","v":{"v":13.001090078731467,"d":"kr. 13.00"}},{"$f":"IFERROR(IF(Lån_Ikke_Betalt*Værdier_Angivet,Slut_saldo,\"\"), \"\")","v":{"v":2754.0967509430457,"d":"kr. 2,754.10"}}]
[null,{"$f":"IFERROR(IF(Lån_Ikke_Betalt*Værdier_Angivet,Betaling_Nummer,\"\"), \"\")","v":30},{"$f":"IFERROR(IF(Lån_Ikke_Betalt*Værdier_Angivet,Betalingsdato,\"\"), \"\")","v":"2022-10-13"},{"$f":"IFERROR(IF(Lån_Ikke_Betalt*Værdier_Angivet,Startsaldo,\"\"), \"\")","v":{"v":2754.0967509430457,"d":"kr. 2,754.10"}},{"$f":"IFERROR(IF(Lån_Ikke_Betalt*Værdier_Angivet,Månedlig_Betaling,\"\"), \"\")","v":{"v":95.5058108589112,"d":"kr. 95.51"}},{"$f":"IFERROR(IF(Lån_Ikke_Betalt*Værdier_Angivet,Hovedstol,\"\"), \"\")","v":{"v":82.8828674170889,"d":"kr. 82.88"}},{"$f":"IFERROR(IF(Lån_Ikke_Betalt*Værdier_Angivet,Renter,\"\"), \"\")","v":{"v":12.622943441822311,"d":"kr. 12.62"}},{"$f":"IFERROR(IF(Lån_Ikke_Betalt*Værdier_Angivet,Slut_saldo,\"\"), \"\")","v":{"v":2671.213883525958,"d":"kr. 2,671.21"}}]
[null,{"$f":"IFERROR(IF(Lån_Ikke_Betalt*Værdier_Angivet,Betaling_Nummer,\"\"), \"\")","v":31},{"$f":"IFERROR(IF(Lån_Ikke_Betalt*Værdier_Angivet,Betalingsdato,\"\"), \"\")","v":"2022-11-13"},{"$f":"IFERROR(IF(Lån_Ikke_Betalt*Værdier_Angivet,Startsaldo,\"\"), \"\")","v":{"v":2671.213883525958,"d":"kr. 2,671.21"}},{"$f":"IFERROR(IF(Lån_Ikke_Betalt*Værdier_Angivet,Månedlig_Betaling,\"\"), \"\")","v":{"v":95.5058108589112,"d":"kr. 95.51"}},{"$f":"IFERROR(IF(Lån_Ikke_Betalt*Værdier_Angivet,Hovedstol,\"\"), \"\")","v":{"v":83.26274722608389,"d":"kr. 83.26"}},{"$f":"IFERROR(IF(Lån_Ikke_Betalt*Værdier_Angivet,Renter,\"\"), \"\")","v":{"v":12.243063632827322,"d":"kr. 12.24"}},{"$f":"IFERROR(IF(Lån_Ikke_Betalt*Værdier_Angivet,Slut_saldo,\"\"), \"\")","v":{"v":2587.951136299874,"d":"kr. 2,587.95"}}]
[null,{"$f":"IFERROR(IF(Lån_Ikke_Betalt*Værdier_Angivet,Betaling_Nummer,\"\"), \"\")","v":32},{"$f":"IFERROR(IF(Lån_Ikke_Betalt*Værdier_Angivet,Betalingsdato,\"\"), \"\")","v":"2022-12-13"},{"$f":"IFERROR(IF(Lån_Ikke_Betalt*Værdier_Angivet,Startsaldo,\"\"), \"\")","v":{"v":2587.951136299874,"d":"kr. 2,587.95"}},{"$f":"IFERROR(IF(Lån_Ikke_Betalt*Værdier_Angivet,Månedlig_Betaling,\"\"), \"\")","v":{"v":95.5058108589112,"d":"kr. 95.51"}},{"$f":"IFERROR(IF(Lån_Ikke_Betalt*Værdier_Angivet,Hovedstol,\"\"), \"\")","v":{"v":83.64436815087011,"d":"kr. 83.64"}},{"$f":"IFERROR(IF(Lån_Ikke_Betalt*Værdier_Angivet,Renter,\"\"), \"\")","v":{"v":11.8614427080411,"d":"kr. 11.86"}},{"$f":"IFERROR(IF(Lån_Ikke_Betalt*Værdier_Angivet,Slut_saldo,\"\"), \"\")","v":{"v":2504.3067681490024,"d":"kr. 2,504.31"}}]
[null,{"$f":"IFERROR(IF(Lån_Ikke_Betalt*Værdier_Angivet,Betaling_Nummer,\"\"), \"\")","v":33},{"$f":"IFERROR(IF(Lån_Ikke_Betalt*Værdier_Angivet,Betalingsdato,\"\"), \"\")","v":"2023-01-13"},{"$f":"IFERROR(IF(Lån_Ikke_Betalt*Værdier_Angivet,Startsaldo,\"\"), \"\")","v":{"v":2504.3067681490024,"d":"kr. 2,504.31"}},{"$f":"IFERROR(IF(Lån_Ikke_Betalt*Værdier_Angivet,Månedlig_Betaling,\"\"), \"\")","v":{"v":95.5058108589112,"d":"kr. 95.51"}},{"$f":"IFERROR(IF(Lån_Ikke_Betalt*Værdier_Angivet,Hovedstol,\"\"), \"\")","v":{"v":84.0277381715616,"d":"kr. 84.03"}},{"$f":"IFERROR(IF(Lån_Ikke_Betalt*Værdier_Angivet,Renter,\"\"), \"\")","v":{"v":11.478072687349611,"d":"kr. 11.48"}},{"$f":"IFERROR(IF(Lån_Ikke_Betalt*Værdier_Angivet,Slut_saldo,\"\"), \"\")","v":{"v":2420.279029977438,"d":"kr. 2,420.28"}}]
[null,{"$f":"IFERROR(IF(Lån_Ikke_Betalt*Værdier_Angivet,Betaling_Nummer,\"\"), \"\")","v":34},{"$f":"IFERROR(IF(Lån_Ikke_Betalt*Værdier_Angivet,Betalingsdato,\"\"), \"\")","v":"2023-02-13"},{"$f":"IFERROR(IF(Lån_Ikke_Betalt*Værdier_Angivet,Startsaldo,\"\"), \"\")","v":{"v":2420.279029977438,"d":"kr. 2,420.28"}},{"$f":"IFERROR(IF(Lån_Ikke_Betalt*Værdier_Angivet,Månedlig_Betaling,\"\"), \"\")","v":{"v":95.5058108589112,"d":"kr. 95.51"}},{"$f":"IFERROR(IF(Lån_Ikke_Betalt*Værdier_Angivet,Hovedstol,\"\"), \"\")","v":{"v":84.41286530484791,"d":"kr. 84.41"}},{"$f":"IFERROR(IF(Lån_Ikke_Betalt*Værdier_Angivet,Renter,\"\"), \"\")","v":{"v":11.092945554063288,"d":"kr. 11.09"}},{"$f":"IFERROR(IF(Lån_Ikke_Betalt*Værdier_Angivet,Slut_saldo,\"\"), \"\")","v":{"v":2335.8661646725905,"d":"kr. 2,335.87"}}]
[null,{"$f":"IFERROR(IF(Lån_Ikke_Betalt*Værdier_Angivet,Betaling_Nummer,\"\"), \"\")","v":35},{"$f":"IFERROR(IF(Lån_Ikke_Betalt*Værdier_Angivet,Betalingsdato,\"\"), \"\")","v":"2023-03-13"},{"$f":"IFERROR(IF(Lån_Ikke_Betalt*Værdier_Angivet,Startsaldo,\"\"), \"\")","v":{"v":2335.8661646725905,"d":"kr. 2,335.87"}},{"$f":"IFERROR(IF(Lån_Ikke_Betalt*Værdier_Angivet,Månedlig_Betaling,\"\"), \"\")","v":{"v":95.5058108589112,"d":"kr. 95.51"}},{"$f":"IFERROR(IF(Lån_Ikke_Betalt*Værdier_Angivet,Hovedstol,\"\"), \"\")","v":{"v":84.79975760416181,"d":"kr. 84.80"}},{"$f":"IFERROR(IF(Lån_Ikke_Betalt*Værdier_Angivet,Renter,\"\"), \"\")","v":{"v":10.706053254749405,"d":"kr. 10.71"}},{"$f":"IFERROR(IF(Lån_Ikke_Betalt*Værdier_Angivet,Slut_saldo,\"\"), \"\")","v":{"v":2251.0664070684293,"d":"kr. 2,251.07"}}]
[null,{"$f":"IFERROR(IF(Lån_Ikke_Betalt*Værdier_Angivet,Betaling_Nummer,\"\"), \"\")","v":36},{"$f":"IFERROR(IF(Lån_Ikke_Betalt*Værdier_Angivet,Betalingsdato,\"\"), \"\")","v":"2023-04-13"},{"$f":"IFERROR(IF(Lån_Ikke_Betalt*Værdier_Angivet,Startsaldo,\"\"), \"\")","v":{"v":2251.0664070684293,"d":"kr. 2,251.07"}},{"$f":"IFERROR(IF(Lån_Ikke_Betalt*Værdier_Angivet,Månedlig_Betaling,\"\"), \"\")","v":{"v":95.5058108589112,"d":"kr. 95.51"}},{"$f":"IFERROR(IF(Lån_Ikke_Betalt*Værdier_Angivet,Hovedstol,\"\"), \"\")","v":{"v":85.18842315984755,"d":"kr. 85.19"}},{"$f":"IFERROR(IF(Lån_Ikke_Betalt*Værdier_Angivet,Renter,\"\"), \"\")","v":{"v":10.317387699063662,"d":"kr. 10.32"}},{"$f":"IFERROR(IF(Lån_Ikke_Betalt*Værdier_Angivet,Slut_saldo,\"\"), \"\")","v":{"v":2165.877983908582,"d":"kr. 2,165.88"}}]
[null,{"$f":"IFERROR(IF(Lån_Ikke_Betalt*Værdier_Angivet,Betaling_Nummer,\"\"), \"\")","v":37},{"$f":"IFERROR(IF(Lån_Ikke_Betalt*Værdier_Angivet,Betalingsdato,\"\"), \"\")","v":"2023-05-13"},{"$f":"IFERROR(IF(Lån_Ikke_Betalt*Værdier_Angivet,Startsaldo,\"\"), \"\")","v":{"v":2165.877983908582,"d":"kr. 2,165.88"}},{"$f":"IFERROR(IF(Lån_Ikke_Betalt*Værdier_Angivet,Månedlig_Betaling,\"\"), \"\")","v":{"v":95.5058108589112,"d":"kr. 95.51"}},{"$f":"IFERROR(IF(Lån_Ikke_Betalt*Værdier_Angivet,Hovedstol,\"\"), \"\")","v":{"v":85.57887009933019,"d":"kr. 85.58"}},{"$f":"IFERROR(IF(Lån_Ikke_Betalt*Værdier_Angivet,Renter,\"\"), \"\")","v":{"v":9.926940759581028,"d":"kr. 9.93"}},{"$f":"IFERROR(IF(Lån_Ikke_Betalt*Værdier_Angivet,Slut_saldo,\"\"), \"\")","v":{"v":2080.2991138092493,"d":"kr. 2,080.30"}}]
[null,{"$f":"IFERROR(IF(Lån_Ikke_Betalt*Værdier_Angivet,Betaling_Nummer,\"\"), \"\")","v":38},{"$f":"IFERROR(IF(Lån_Ikke_Betalt*Værdier_Angivet,Betalingsdato,\"\"), \"\")","v":"2023-06-13"},{"$f":"IFERROR(IF(Lån_Ikke_Betalt*Værdier_Angivet,Startsaldo,\"\"), \"\")","v":{"v":2080.2991138092493,"d":"kr. 2,080.30"}},{"$f":"IFERROR(IF(Lån_Ikke_Betalt*Værdier_Angivet,Månedlig_Betaling,\"\"), \"\")","v":{"v":95.5058108589112,"d":"kr. 95.51"}},{"$f":"IFERROR(IF(Lån_Ikke_Betalt*Værdier_Angivet,Hovedstol,\"\"), \"\")","v":{"v":85.97110658728545,"d":"kr. 85.97"}},{"$f":"IFERROR(IF(Lån_Ikke_Betalt*Værdier_Angivet,Renter,\"\"), \"\")","v":{"v":9.534704271625763,"d":"kr. 9.53"}},{"$f":"IFERROR(IF(Lån_Ikke_Betalt*Værdier_Angivet,Slut_saldo,\"\"), \"\")","v":{"v":1994.3280072219636,"d":"kr. 1,994.33"}}]
[null,{"$f":"IFERROR(IF(Lån_Ikke_Betalt*Værdier_Angivet,Betaling_Nummer,\"\"), \"\")","v":39},{"$f":"IFERROR(IF(Lån_Ikke_Betalt*Værdier_Angivet,Betalingsdato,\"\"), \"\")","v":"2023-07-13"},{"$f":"IFERROR(IF(Lån_Ikke_Betalt*Værdier_Angivet,Startsaldo,\"\"), \"\")","v":{"v":1994.3280072219636,"d":"kr. 1,994.33"}},{"$f":"IFERROR(IF(Lån_Ikke_Betalt*Værdier_Angivet,Månedlig_Betaling,\"\"), \"\")","v":{"v":95.5058108589112,"d":"kr. 95.51"}},{"$f":"IFERROR(IF(Lån_Ikke_Betalt*Værdier_Angivet,Hovedstol,\"\"), \"\")","v":{"v":86.36514082581051,"d":"kr. 86.37"}},{"$f":"IFERROR(IF(Lån_Ikke_Betalt*Værdier_Angivet,Renter,\"\"), \"\")","v":{"v":9.140670033100704,"d":"kr. 9.14"}},{"$f":"IFERROR(IF(Lån_Ikke_Betalt*Værdier_Angivet,Slut_saldo,\"\"), \"\")","v":{"v":1907.9628663961566,"d":"kr. 1,907.96"}}]
[null,{"$f":"IFERROR(IF(Lån_Ikke_Betalt*Værdier_Angivet,Betaling_Nummer,\"\"), \"\")","v":40},{"$f":"IFERROR(IF(Lån_Ikke_Betalt*Værdier_Angivet,Betalingsdato,\"\"), \"\")","v":"2023-08-13"},{"$f":"IFERROR(IF(Lån_Ikke_Betalt*Værdier_Angivet,Startsaldo,\"\"), \"\")","v":{"v":1907.9628663961566,"d":"kr. 1,907.96"}},{"$f":"IFERROR(IF(Lån_Ikke_Betalt*Værdier_Angivet,Månedlig_Betaling,\"\"), \"\")","v":{"v":95.5058108589112,"d":"kr. 95.51"}},{"$f":"IFERROR(IF(Lån_Ikke_Betalt*Værdier_Angivet,Hovedstol,\"\"), \"\")","v":{"v":86.76098105459546,"d":"kr. 86.76"}},{"$f":"IFERROR(IF(Lån_Ikke_Betalt*Værdier_Angivet,Renter,\"\"), \"\")","v":{"v":8.74482980431574,"d":"kr. 8.74"}},{"$f":"IFERROR(IF(Lån_Ikke_Betalt*Værdier_Angivet,Slut_saldo,\"\"), \"\")","v":{"v":1821.2018853415611,"d":"kr. 1,821.20"}}]
[null,{"$f":"IFERROR(IF(Lån_Ikke_Betalt*Værdier_Angivet,Betaling_Nummer,\"\"), \"\")","v":41},{"$f":"IFERROR(IF(Lån_Ikke_Betalt*Værdier_Angivet,Betalingsdato,\"\"), \"\")","v":"2023-09-13"},{"$f":"IFERROR(IF(Lån_Ikke_Betalt*Værdier_Angivet,Startsaldo,\"\"), \"\")","v":{"v":1821.2018853415611,"d":"kr. 1,821.20"}},{"$f":"IFERROR(IF(Lån_Ikke_Betalt*Værdier_Angivet,Månedlig_Betaling,\"\"), \"\")","v":{"v":95.5058108589112,"d":"kr. 95.51"}},{"$f":"IFERROR(IF(Lån_Ikke_Betalt*Værdier_Angivet,Hovedstol,\"\"), \"\")","v":{"v":87.1586355510957,"d":"kr. 87.16"}},{"$f":"IFERROR(IF(Lån_Ikke_Betalt*Værdier_Angivet,Renter,\"\"), \"\")","v":{"v":8.347175307815512,"d":"kr. 8.35"}},{"$f":"IFERROR(IF(Lån_Ikke_Betalt*Værdier_Angivet,Slut_saldo,\"\"), \"\")","v":{"v":1734.0432497904649,"d":"kr. 1,734.04"}}]
[null,{"$f":"IFERROR(IF(Lån_Ikke_Betalt*Værdier_Angivet,Betaling_Nummer,\"\"), \"\")","v":42},{"$f":"IFERROR(IF(Lån_Ikke_Betalt*Værdier_Angivet,Betalingsdato,\"\"), \"\")","v":"2023-10-13"},{"$f":"IFERROR(IF(Lån_Ikke_Betalt*Værdier_Angivet,Startsaldo,\"\"), \"\")","v":{"v":1734.0432497904649,"d":"kr. 1,734.04"}},{"$f":"IFERROR(IF(Lån_Ikke_Betalt*Værdier_Angivet,Månedlig_Betaling,\"\"), \"\")","v":{"v":95.5058108589112,"d":"kr. 95.51"}},{"$f":"IFERROR(IF(Lån_Ikke_Betalt*Værdier_Angivet,Hovedstol,\"\"), \"\")","v":{"v":87.5581126307049,"d":"kr. 87.56"}},{"$f":"IFERROR(IF(Lån_Ikke_Betalt*Værdier_Angivet,Renter,\"\"), \"\")","v":{"v":7.947698228206322,"d":"kr. 7.95"}},{"$f":"IFERROR(IF(Lån_Ikke_Betalt*Værdier_Angivet,Slut_saldo,\"\"), \"\")","v":{"v":1646.4851371597597,"d":"kr. 1,646.49"}}]
[null,{"$f":"IFERROR(IF(Lån_Ikke_Betalt*Værdier_Angivet,Betaling_Nummer,\"\"), \"\")","v":43},{"$f":"IFERROR(IF(Lån_Ikke_Betalt*Værdier_Angivet,Betalingsdato,\"\"), \"\")","v":"2023-11-13"},{"$f":"IFERROR(IF(Lån_Ikke_Betalt*Værdier_Angivet,Startsaldo,\"\"), \"\")","v":{"v":1646.4851371597597,"d":"kr. 1,646.49"}},{"$f":"IFERROR(IF(Lån_Ikke_Betalt*Værdier_Angivet,Månedlig_Betaling,\"\"), \"\")","v":{"v":95.5058108589112,"d":"kr. 95.51"}},{"$f":"IFERROR(IF(Lån_Ikke_Betalt*Værdier_Angivet,Hovedstol,\"\"), \"\")","v":{"v":87.95942064692895,"d":"kr. 87.96"}},{"$f":"IFERROR(IF(Lån_Ikke_Betalt*Værdier_Angivet,Renter,\"\"), \"\")","v":{"v":7.546390211982258,"d":"kr. 7.55"}},{"$f":"IFERROR(IF(Lån_Ikke_Betalt*Værdier_Angivet,Slut_saldo,\"\"), \"\")","v":{"v":1558.5257165128278,"d":"kr. 1,558.53"}}]
[null,{"$f":"IFERROR(IF(Lån_Ikke_Betalt*Værdier_Angivet,Betaling_Nummer,\"\"), \"\")","v":44},{"$f":"IFERROR(IF(Lån_Ikke_Betalt*Værdier_Angivet,Betalingsdato,\"\"), \"\")","v":"2023-12-13"},{"$f":"IFERROR(IF(Lån_Ikke_Betalt*Værdier_Angivet,Startsaldo,\"\"), \"\")","v":{"v":1558.5257165128278,"d":"kr. 1,558.53"}},{"$f":"IFERROR(IF(Lån_Ikke_Betalt*Værdier_Angivet,Månedlig_Betaling,\"\"), \"\")","v":{"v":95.5058108589112,"d":"kr. 95.51"}},{"$f":"IFERROR(IF(Lån_Ikke_Betalt*Værdier_Angivet,Hovedstol,\"\"), \"\")","v":{"v":88.3625679915607,"d":"kr. 88.36"}},{"$f":"IFERROR(IF(Lån_Ikke_Betalt*Værdier_Angivet,Renter,\"\"), \"\")","v":{"v":7.143242867350499,"d":"kr. 7.14"}},{"$f":"IFERROR(IF(Lån_Ikke_Betalt*Værdier_Angivet,Slut_saldo,\"\"), \"\")","v":{"v":1470.163148521272,"d":"kr. 1,470.16"}}]
[null,{"$f":"IFERROR(IF(Lån_Ikke_Betalt*Værdier_Angivet,Betaling_Nummer,\"\"), \"\")","v":45},{"$f":"IFERROR(IF(Lån_Ikke_Betalt*Værdier_Angivet,Betalingsdato,\"\"), \"\")","v":"2024-01-13"},{"$f":"IFERROR(IF(Lån_Ikke_Betalt*Værdier_Angivet,Startsaldo,\"\"), \"\")","v":{"v":1470.163148521272,"d":"kr. 1,470.16"}},{"$f":"IFERROR(IF(Lån_Ikke_Betalt*Værdier_Angivet,Månedlig_Betaling,\"\"), \"\")","v":{"v":95.5058108589112,"d":"kr. 95.51"}},{"$f":"IFERROR(IF(Lån_Ikke_Betalt*Værdier_Angivet,Hovedstol,\"\"), \"\")","v":{"v":88.76756309485536,"d":"kr. 88.77"}},{"$f":"IFERROR(IF(Lån_Ikke_Betalt*Værdier_Angivet,Renter,\"\"), \"\")","v":{"v":6.738247764055847,"d":"kr. 6.74"}},{"$f":"IFERROR(IF(Lån_Ikke_Betalt*Værdier_Angivet,Slut_saldo,\"\"), \"\")","v":{"v":1381.395585426415,"d":"kr. 1,381.40"}}]
[null,{"$f":"IFERROR(IF(Lån_Ikke_Betalt*Værdier_Angivet,Betaling_Nummer,\"\"), \"\")","v":46},{"$f":"IFERROR(IF(Lån_Ikke_Betalt*Værdier_Angivet,Betalingsdato,\"\"), \"\")","v":"2024-02-13"},{"$f":"IFERROR(IF(Lån_Ikke_Betalt*Værdier_Angivet,Startsaldo,\"\"), \"\")","v":{"v":1381.395585426415,"d":"kr. 1,381.40"}},{"$f":"IFERROR(IF(Lån_Ikke_Betalt*Værdier_Angivet,Månedlig_Betaling,\"\"), \"\")","v":{"v":95.5058108589112,"d":"kr. 95.51"}},{"$f":"IFERROR(IF(Lån_Ikke_Betalt*Værdier_Angivet,Hovedstol,\"\"), \"\")","v":{"v":89.17441442570679,"d":"kr. 89.17"}},{"$f":"IFERROR(IF(Lån_Ikke_Betalt*Værdier_Angivet,Renter,\"\"), \"\")","v":{"v":6.331396433204427,"d":"kr. 6.33"}},{"$f":"IFERROR(IF(Lån_Ikke_Betalt*Værdier_Angivet,Slut_saldo,\"\"), \"\")","v":{"v":1292.221171000705,"d":"kr. 1,292.22"}}]
[null,{"$f":"IFERROR(IF(Lån_Ikke_Betalt*Værdier_Angivet,Betaling_Nummer,\"\"), \"\")","v":47},{"$f":"IFERROR(IF(Lån_Ikke_Betalt*Værdier_Angivet,Betalingsdato,\"\"), \"\")","v":"2024-03-13"},{"$f":"IFERROR(IF(Lån_Ikke_Betalt*Værdier_Angivet,Startsaldo,\"\"), \"\")","v":{"v":1292.221171000705,"d":"kr. 1,292.22"}},{"$f":"IFERROR(IF(Lån_Ikke_Betalt*Værdier_Angivet,Månedlig_Betaling,\"\"), \"\")","v":{"v":95.5058108589112,"d":"kr. 95.51"}},{"$f":"IFERROR(IF(Lån_Ikke_Betalt*Værdier_Angivet,Hovedstol,\"\"), \"\")","v":{"v":89.5831304918246,"d":"kr. 89.58"}},{"$f":"IFERROR(IF(Lån_Ikke_Betalt*Værdier_Angivet,Renter,\"\"), \"\")","v":{"v":5.9226803670866035,"d":"kr. 5.92"}},{"$f":"IFERROR(IF(Lån_Ikke_Betalt*Værdier_Angivet,Slut_saldo,\"\"), \"\")","v":{"v":1202.6380405088848,"d":"kr. 1,202.64"}}]
[null,{"$f":"IFERROR(IF(Lån_Ikke_Betalt*Værdier_Angivet,Betaling_Nummer,\"\"), \"\")","v":48},{"$f":"IFERROR(IF(Lån_Ikke_Betalt*Værdier_Angivet,Betalingsdato,\"\"), \"\")","v":"2024-04-13"},{"$f":"IFERROR(IF(Lån_Ikke_Betalt*Værdier_Angivet,Startsaldo,\"\"), \"\")","v":{"v":1202.6380405088848,"d":"kr. 1,202.64"}},{"$f":"IFERROR(IF(Lån_Ikke_Betalt*Værdier_Angivet,Månedlig_Betaling,\"\"), \"\")","v":{"v":95.5058108589112,"d":"kr. 95.51"}},{"$f":"IFERROR(IF(Lån_Ikke_Betalt*Værdier_Angivet,Hovedstol,\"\"), \"\")","v":{"v":89.99371983991213,"d":"kr. 89.99"}},{"$f":"IFERROR(IF(Lån_Ikke_Betalt*Værdier_Angivet,Renter,\"\"), \"\")","v":{"v":5.512091018999074,"d":"kr. 5.51"}},{"$f":"IFERROR(IF(Lån_Ikke_Betalt*Værdier_Angivet,Slut_saldo,\"\"), \"\")","v":{"v":1112.64432066897,"d":"kr. 1,112.64"}}]
[null,{"$f":"IFERROR(IF(Lån_Ikke_Betalt*Værdier_Angivet,Betaling_Nummer,\"\"), \"\")","v":49},{"$f":"IFERROR(IF(Lån_Ikke_Betalt*Værdier_Angivet,Betalingsdato,\"\"), \"\")","v":"2024-05-13"},{"$f":"IFERROR(IF(Lån_Ikke_Betalt*Værdier_Angivet,Startsaldo,\"\"), \"\")","v":{"v":1112.64432066897,"d":"kr. 1,112.64"}},{"$f":"IFERROR(IF(Lån_Ikke_Betalt*Værdier_Angivet,Månedlig_Betaling,\"\"), \"\")","v":{"v":95.5058108589112,"d":"kr. 95.51"}},{"$f":"IFERROR(IF(Lån_Ikke_Betalt*Værdier_Angivet,Hovedstol,\"\"), \"\")","v":{"v":90.40619105584507,"d":"kr. 90.41"}},{"$f":"IFERROR(IF(Lån_Ikke_Betalt*Værdier_Angivet,Renter,\"\"), \"\")","v":{"v":5.099619803066144,"d":"kr. 5.10"}},{"$f":"IFERROR(IF(Lån_Ikke_Betalt*Værdier_Angivet,Slut_saldo,\"\"), \"\")","v":{"v":1022.2381296131243,"d":"kr. 1,022.24"}}]
[null,{"$f":"IFERROR(IF(Lån_Ikke_Betalt*Værdier_Angivet,Betaling_Nummer,\"\"), \"\")","v":50},{"$f":"IFERROR(IF(Lån_Ikke_Betalt*Værdier_Angivet,Betalingsdato,\"\"), \"\")","v":"2024-06-13"},{"$f":"IFERROR(IF(Lån_Ikke_Betalt*Værdier_Angivet,Startsaldo,\"\"), \"\")","v":{"v":1022.2381296131243,"d":"kr. 1,022.24"}},{"$f":"IFERROR(IF(Lån_Ikke_Betalt*Værdier_Angivet,Månedlig_Betaling,\"\"), \"\")","v":{"v":95.5058108589112,"d":"kr. 95.51"}},{"$f":"IFERROR(IF(Lån_Ikke_Betalt*Værdier_Angivet,Hovedstol,\"\"), \"\")","v":{"v":90.82055276485103,"d":"kr. 90.82"}},{"$f":"IFERROR(IF(Lån_Ikke_Betalt*Værdier_Angivet,Renter,\"\"), \"\")","v":{"v":4.685258094060187,"d":"kr. 4.69"}},{"$f":"IFERROR(IF(Lån_Ikke_Betalt*Værdier_Angivet,Slut_saldo,\"\"), \"\")","v":{"v":931.4175768482728,"d":"kr. 931.42"}}]
[null,{"$f":"IFERROR(IF(Lån_Ikke_Betalt*Værdier_Angivet,Betaling_Nummer,\"\"), \"\")","v":51},{"$f":"IFERROR(IF(Lån_Ikke_Betalt*Værdier_Angivet,Betalingsdato,\"\"), \"\")","v":"2024-07-13"},{"$f":"IFERROR(IF(Lån_Ikke_Betalt*Værdier_Angivet,Startsaldo,\"\"), \"\")","v":{"v":931.4175768482728,"d":"kr. 931.42"}},{"$f":"IFERROR(IF(Lån_Ikke_Betalt*Værdier_Angivet,Månedlig_Betaling,\"\"), \"\")","v":{"v":95.5058108589112,"d":"kr. 95.51"}},{"$f":"IFERROR(IF(Lån_Ikke_Betalt*Værdier_Angivet,Hovedstol,\"\"), \"\")","v":{"v":91.23681363168991,"d":"kr. 91.24"}},{"$f":"IFERROR(IF(Lån_Ikke_Betalt*Værdier_Angivet,Renter,\"\"), \"\")","v":{"v":4.268997227221286,"d":"kr. 4.27"}},{"$f":"IFERROR(IF(Lån_Ikke_Betalt*Værdier_Angivet,Slut_saldo,\"\"), \"\")","v":{"v":840.1807632165828,"d":"kr. 840.18"}}]
[null,{"$f":"IFERROR(IF(Lån_Ikke_Betalt*Værdier_Angivet,Betaling_Nummer,\"\"), \"\")","v":52},{"$f":"IFERROR(IF(Lån_Ikke_Betalt*Værdier_Angivet,Betalingsdato,\"\"), \"\")","v":"2024-08-13"},{"$f":"IFERROR(IF(Lån_Ikke_Betalt*Værdier_Angivet,Startsaldo,\"\"), \"\")","v":{"v":840.1807632165828,"d":"kr. 840.18"}},{"$f":"IFERROR(IF(Lån_Ikke_Betalt*Værdier_Angivet,Månedlig_Betaling,\"\"), \"\")","v":{"v":95.5058108589112,"d":"kr. 95.51"}},{"$f":"IFERROR(IF(Lån_Ikke_Betalt*Værdier_Angivet,Hovedstol,\"\"), \"\")","v":{"v":91.65498236083516,"d":"kr. 91.65"}},{"$f":"IFERROR(IF(Lån_Ikke_Betalt*Værdier_Angivet,Renter,\"\"), \"\")","v":{"v":3.850828498076041,"d":"kr. 3.85"}},{"$f":"IFERROR(IF(Lån_Ikke_Betalt*Værdier_Angivet,Slut_saldo,\"\"), \"\")","v":{"v":748.5257808557471,"d":"kr. 748.53"}}]
[null,{"$f":"IFERROR(IF(Lån_Ikke_Betalt*Værdier_Angivet,Betaling_Nummer,\"\"), \"\")","v":53},{"$f":"IFERROR(IF(Lån_Ikke_Betalt*Værdier_Angivet,Betalingsdato,\"\"), \"\")","v":"2024-09-13"},{"$f":"IFERROR(IF(Lån_Ikke_Betalt*Værdier_Angivet,Startsaldo,\"\"), \"\")","v":{"v":748.5257808557471,"d":"kr. 748.53"}},{"$f":"IFERROR(IF(Lån_Ikke_Betalt*Værdier_Angivet,Månedlig_Betaling,\"\"), \"\")","v":{"v":95.5058108589112,"d":"kr. 95.51"}},{"$f":"IFERROR(IF(Lån_Ikke_Betalt*Værdier_Angivet,Hovedstol,\"\"), \"\")","v":{"v":92.07506769665567,"d":"kr. 92.08"}},{"$f":"IFERROR(IF(Lån_Ikke_Betalt*Værdier_Angivet,Renter,\"\"), \"\")","v":{"v":3.4307431622555464,"d":"kr. 3.43"}},{"$f":"IFERROR(IF(Lån_Ikke_Betalt*Værdier_Angivet,Slut_saldo,\"\"), \"\")","v":{"v":656.450713159089,"d":"kr. 656.45"}}]
[null,{"$f":"IFERROR(IF(Lån_Ikke_Betalt*Værdier_Angivet,Betaling_Nummer,\"\"), \"\")","v":54},{"$f":"IFERROR(IF(Lån_Ikke_Betalt*Værdier_Angivet,Betalingsdato,\"\"), \"\")","v":"2024-10-13"},{"$f":"IFERROR(IF(Lån_Ikke_Betalt*Værdier_Angivet,Startsaldo,\"\"), \"\")","v":{"v":656.450713159089,"d":"kr. 656.45"}},{"$f":"IFERROR(IF(Lån_Ikke_Betalt*Værdier_Angivet,Månedlig_Betaling,\"\"), \"\")","v":{"v":95.5058108589112,"d":"kr. 95.51"}},{"$f":"IFERROR(IF(Lån_Ikke_Betalt*Værdier_Angivet,Hovedstol,\"\"), \"\")","v":{"v":92.49707842359867,"d":"kr. 92.50"}},{"$f":"IFERROR(IF(Lån_Ikke_Betalt*Værdier_Angivet,Renter,\"\"), \"\")","v":{"v":3.0087324353125413,"d":"kr. 3.01"}},{"$f":"IFERROR(IF(Lån_Ikke_Betalt*Værdier_Angivet,Slut_saldo,\"\"), \"\")","v":{"v":563.9536347354906,"d":"kr. 563.95"}}]
[null,{"$f":"IFERROR(IF(Lån_Ikke_Betalt*Værdier_Angivet,Betaling_Nummer,\"\"), \"\")","v":55},{"$f":"IFERROR(IF(Lån_Ikke_Betalt*Værdier_Angivet,Betalingsdato,\"\"), \"\")","v":"2024-11-13"},{"$f":"IFERROR(IF(Lån_Ikke_Betalt*Værdier_Angivet,Startsaldo,\"\"), \"\")","v":{"v":563.9536347354906,"d":"kr. 563.95"}},{"$f":"IFERROR(IF(Lån_Ikke_Betalt*Værdier_Angivet,Månedlig_Betaling,\"\"), \"\")","v":{"v":95.5058108589112,"d":"kr. 95.51"}},{"$f":"IFERROR(IF(Lån_Ikke_Betalt*Værdier_Angivet,Hovedstol,\"\"), \"\")","v":{"v":92.92102336637349,"d":"kr. 92.92"}},{"$f":"IFERROR(IF(Lån_Ikke_Betalt*Værdier_Angivet,Renter,\"\"), \"\")","v":{"v":2.584787492537714,"d":"kr. 2.58"}},{"$f":"IFERROR(IF(Lån_Ikke_Betalt*Værdier_Angivet,Slut_saldo,\"\"), \"\")","v":{"v":471.03261136911897,"d":"kr. 471.03"}}]
[null,{"$f":"IFERROR(IF(Lån_Ikke_Betalt*Værdier_Angivet,Betaling_Nummer,\"\"), \"\")","v":56},{"$f":"IFERROR(IF(Lån_Ikke_Betalt*Værdier_Angivet,Betalingsdato,\"\"), \"\")","v":"2024-12-13"},{"$f":"IFERROR(IF(Lån_Ikke_Betalt*Værdier_Angivet,Startsaldo,\"\"), \"\")","v":{"v":471.03261136911897,"d":"kr. 471.03"}},{"$f":"IFERROR(IF(Lån_Ikke_Betalt*Værdier_Angivet,Månedlig_Betaling,\"\"), \"\")","v":{"v":95.5058108589112,"d":"kr. 95.51"}},{"$f":"IFERROR(IF(Lån_Ikke_Betalt*Værdier_Angivet,Hovedstol,\"\"), \"\")","v":{"v":93.34691139013603,"d":"kr. 93.35"}},{"$f":"IFERROR(IF(Lån_Ikke_Betalt*Værdier_Angivet,Renter,\"\"), \"\")","v":{"v":2.158899468775169,"d":"kr. 2.16"}},{"$f":"IFERROR(IF(Lån_Ikke_Betalt*Værdier_Angivet,Slut_saldo,\"\"), \"\")","v":{"v":377.6856999789834,"d":"kr. 377.69"}}]
[null,{"$f":"IFERROR(IF(Lån_Ikke_Betalt*Værdier_Angivet,Betaling_Nummer,\"\"), \"\")","v":57},{"$f":"IFERROR(IF(Lån_Ikke_Betalt*Værdier_Angivet,Betalingsdato,\"\"), \"\")","v":"2025-01-13"},{"$f":"IFERROR(IF(Lån_Ikke_Betalt*Værdier_Angivet,Startsaldo,\"\"), \"\")","v":{"v":377.6856999789834,"d":"kr. 377.69"}},{"$f":"IFERROR(IF(Lån_Ikke_Betalt*Værdier_Angivet,Månedlig_Betaling,\"\"), \"\")","v":{"v":95.5058108589112,"d":"kr. 95.51"}},{"$f":"IFERROR(IF(Lån_Ikke_Betalt*Værdier_Angivet,Hovedstol,\"\"), \"\")","v":{"v":93.77475140067416,"d":"kr. 93.77"}},{"$f":"IFERROR(IF(Lån_Ikke_Betalt*Værdier_Angivet,Renter,\"\"), \"\")","v":{"v":1.7310594582370453,"d":"kr. 1.73"}},{"$f":"IFERROR(IF(Lån_Ikke_Betalt*Værdier_Angivet,Slut_saldo,\"\"), \"\")","v":{"v":283.9109485783083,"d":"kr. 283.91"}}]
[null,{"$f":"IFERROR(IF(Lån_Ikke_Betalt*Værdier_Angivet,Betaling_Nummer,\"\"), \"\")","v":58},{"$f":"IFERROR(IF(Lån_Ikke_Betalt*Værdier_Angivet,Betalingsdato,\"\"), \"\")","v":"2025-02-13"},{"$f":"IFERROR(IF(Lån_Ikke_Betalt*Værdier_Angivet,Startsaldo,\"\"), \"\")","v":{"v":283.9109485783083,"d":"kr. 283.91"}},{"$f":"IFERROR(IF(Lån_Ikke_Betalt*Værdier_Angivet,Månedlig_Betaling,\"\"), \"\")","v":{"v":95.5058108589112,"d":"kr. 95.51"}},{"$f":"IFERROR(IF(Lån_Ikke_Betalt*Værdier_Angivet,Hovedstol,\"\"), \"\")","v":{"v":94.20455234459394,"d":"kr. 94.20"}},{"$f":"IFERROR(IF(Lån_Ikke_Betalt*Værdier_Angivet,Renter,\"\"), \"\")","v":{"v":1.3012585143172883,"d":"kr. 1.30"}},{"$f":"IFERROR(IF(Lån_Ikke_Betalt*Værdier_Angivet,Slut_saldo,\"\"), \"\")","v":{"v":189.70639623371517,"d":"kr. 189.71"}}]
[null,{"$f":"IFERROR(IF(Lån_Ikke_Betalt*Værdier_Angivet,Betaling_Nummer,\"\"), \"\")","v":59},{"$f":"IFERROR(IF(Lån_Ikke_Betalt*Værdier_Angivet,Betalingsdato,\"\"), \"\")","v":"2025-03-13"},{"$f":"IFERROR(IF(Lån_Ikke_Betalt*Værdier_Angivet,Startsaldo,\"\"), \"\")","v":{"v":189.70639623371517,"d":"kr. 189.71"}},{"$f":"IFERROR(IF(Lån_Ikke_Betalt*Værdier_Angivet,Månedlig_Betaling,\"\"), \"\")","v":{"v":95.5058108589112,"d":"kr. 95.51"}},{"$f":"IFERROR(IF(Lån_Ikke_Betalt*Værdier_Angivet,Hovedstol,\"\"), \"\")","v":{"v":94.63632320950664,"d":"kr. 94.64"}},{"$f":"IFERROR(IF(Lån_Ikke_Betalt*Værdier_Angivet,Renter,\"\"), \"\")","v":{"v":0.8694876494045661,"d":"kr. 0.87"}},{"$f":"IFERROR(IF(Lån_Ikke_Betalt*Værdier_Angivet,Slut_saldo,\"\"), \"\")","v":{"v":95.07007302420698,"d":"kr. 95.07"}}]
[null,{"$f":"IFERROR(IF(Lån_Ikke_Betalt*Værdier_Angivet,Betaling_Nummer,\"\"), \"\")","v":60},{"$f":"IFERROR(IF(Lån_Ikke_Betalt*Værdier_Angivet,Betalingsdato,\"\"), \"\")","v":"2025-04-13"},{"$f":"IFERROR(IF(Lån_Ikke_Betalt*Værdier_Angivet,Startsaldo,\"\"), \"\")","v":{"v":95.07007302420698,"d":"kr. 95.07"}},{"$f":"IFERROR(IF(Lån_Ikke_Betalt*Værdier_Angivet,Månedlig_Betaling,\"\"), \"\")","v":{"v":95.5058108589112,"d":"kr. 95.51"}},{"$f":"IFERROR(IF(Lån_Ikke_Betalt*Værdier_Angivet,Hovedstol,\"\"), \"\")","v":{"v":95.07007302421688,"d":"kr. 95.07"}},{"$f":"IFERROR(IF(Lån_Ikke_Betalt*Værdier_Angivet,Renter,\"\"), \"\")","v":{"v":0.4357378346943274,"d":"kr. 0.44"}},{"$f":"IFERROR(IF(Lån_Ikke_Betalt*Værdier_Angivet,Slut_saldo,\"\"), \"\")","v":{"v":-9.094947017729282e-12,"d":"kr. -0.00"}}]
[null,{"$f":"IFERROR(IF(Lån_Ikke_Betalt*Værdier_Angivet,Betaling_Nummer,\"\"), \"\")","v":""},{"$f":"IFERROR(IF(Lån_Ikke_Betalt*Værdier_Angivet,Betalingsdato,\"\"), \"\")","v":""},{"$f":"IFERROR(IF(Lån_Ikke_Betalt*Værdier_Angivet,Startsaldo,\"\"), \"\")","v":""},{"$f":"IFERROR(IF(Lån_Ikke_Betalt*Værdier_Angivet,Månedlig_Betaling,\"\"), \"\")","v":""},{"$f":"IFERROR(IF(Lån_Ikke_Betalt*Værdier_Angivet,Hovedstol,\"\"), \"\")","v":""},{"$f":"IFERROR(IF(Lån_Ikke_Betalt*Værdier_Angivet,Renter,\"\"), \"\")","v":""},{"$f":"IFERROR(IF(Lån_Ikke_Betalt*Værdier_Angivet,Slut_saldo,\"\"), \"\")","v":""}]
[null,{"$f":"IFERROR(IF(Lån_Ikke_Betalt*Værdier_Angivet,Betaling_Nummer,\"\"), \"\")","v":""},{"$f":"IFERROR(IF(Lån_Ikke_Betalt*Værdier_Angivet,Betalingsdato,\"\"), \"\")","v":""},{"$f":"IFERROR(IF(Lån_Ikke_Betalt*Værdier_Angivet,Startsaldo,\"\"), \"\")","v":""},{"$f":"IFERROR(IF(Lån_Ikke_Betalt*Værdier_Angivet,Månedlig_Betaling,\"\"), \"\")","v":""},{"$f":"IFERROR(IF(Lån_Ikke_Betalt*Værdier_Angivet,Hovedstol,\"\"), \"\")","v":""},{"$f":"IFERROR(IF(Lån_Ikke_Betalt*Værdier_Angivet,Renter,\"\"), \"\")","v":""},{"$f":"IFERROR(IF(Lån_Ikke_Betalt*Værdier_Angivet,Slut_saldo,\"\"), \"\")","v":""}]
[null,{"$f":"IFERROR(IF(Lån_Ikke_Betalt*Værdier_Angivet,Betaling_Nummer,\"\"), \"\")","v":""},{"$f":"IFERROR(IF(Lån_Ikke_Betalt*Værdier_Angivet,Betalingsdato,\"\"), \"\")","v":""},{"$f":"IFERROR(IF(Lån_Ikke_Betalt*Værdier_Angivet,Startsaldo,\"\"), \"\")","v":""},{"$f":"IFERROR(IF(Lån_Ikke_Betalt*Værdier_Angivet,Månedlig_Betaling,\"\"), \"\")","v":""},{"$f":"IFERROR(IF(Lån_Ikke_Betalt*Værdier_Angivet,Hovedstol,\"\"), \"\")","v":""},{"$f":"IFERROR(IF(Lån_Ikke_Betalt*Værdier_Angivet,Renter,\"\"), \"\")","v":""},{"$f":"IFERROR(IF(Lån_Ikke_Betalt*Værdier_Angivet,Slut_saldo,\"\"), \"\")","v":""}]
[null,{"$f":"IFERROR(IF(Lån_Ikke_Betalt*Værdier_Angivet,Betaling_Nummer,\"\"), \"\")","v":""},{"$f":"IFERROR(IF(Lån_Ikke_Betalt*Værdier_Angivet,Betalingsdato,\"\"), \"\")","v":""},{"$f":"IFERROR(IF(Lån_Ikke_Betalt*Værdier_Angivet,Startsaldo,\"\"), \"\")","v":""},{"$f":"IFERROR(IF(Lån_Ikke_Betalt*Værdier_Angivet,Månedlig_Betaling,\"\"), \"\")","v":""},{"$f":"IFERROR(IF(Lån_Ikke_Betalt*Værdier_Angivet,Hovedstol,\"\"), \"\")","v":""},{"$f":"IFERROR(IF(Lån_Ikke_Betalt*Værdier_Angivet,Renter,\"\"), \"\")","v":""},{"$f":"IFERROR(IF(Lån_Ikke_Betalt*Værdier_Angivet,Slut_saldo,\"\"), \"\")","v":""}]
[null,{"$f":"IFERROR(IF(Lån_Ikke_Betalt*Værdier_Angivet,Betaling_Nummer,\"\"), \"\")","v":""},{"$f":"IFERROR(IF(Lån_Ikke_Betalt*Værdier_Angivet,Betalingsdato,\"\"), \"\")","v":""},{"$f":"IFERROR(IF(Lån_Ikke_Betalt*Værdier_Angivet,Startsaldo,\"\"), \"\")","v":""},{"$f":"IFERROR(IF(Lån_Ikke_Betalt*Værdier_Angivet,Månedlig_Betaling,\"\"), \"\")","v":""},{"$f":"IFERROR(IF(Lån_Ikke_Betalt*Værdier_Angivet,Hovedstol,\"\"), \"\")","v":""},{"$f":"IFERROR(IF(Lån_Ikke_Betalt*Værdier_Angivet,Renter,\"\"), \"\")","v":""},{"$f":"IFERROR(IF(Lån_Ikke_Betalt*Værdier_Angivet,Slut_saldo,\"\"), \"\")","v":""}]
[null,{"$f":"IFERROR(IF(Lån_Ikke_Betalt*Værdier_Angivet,Betaling_Nummer,\"\"), \"\")","v":""},{"$f":"IFERROR(IF(Lån_Ikke_Betalt*Værdier_Angivet,Betalingsdato,\"\"), \"\")","v":""},{"$f":"IFERROR(IF(Lån_Ikke_Betalt*Værdier_Angivet,Startsaldo,\"\"), \"\")","v":""},{"$f":"IFERROR(IF(Lån_Ikke_Betalt*Værdier_Angivet,Månedlig_Betaling,\"\"), \"\")","v":""},{"$f":"IFERROR(IF(Lån_Ikke_Betalt*Værdier_Angivet,Hovedstol,\"\"), \"\")","v":""},{"$f":"IFERROR(IF(Lån_Ikke_Betalt*Værdier_Angivet,Renter,\"\"), \"\")","v":""},{"$f":"IFERROR(IF(Lån_Ikke_Betalt*Værdier_Angivet,Slut_saldo,\"\"), \"\")","v":""}]
[null,{"$f":"IFERROR(IF(Lån_Ikke_Betalt*Værdier_Angivet,Betaling_Nummer,\"\"), \"\")","v":""},{"$f":"IFERROR(IF(Lån_Ikke_Betalt*Værdier_Angivet,Betalingsdato,\"\"), \"\")","v":""},{"$f":"IFERROR(IF(Lån_Ikke_Betalt*Værdier_Angivet,Startsaldo,\"\"), \"\")","v":""},{"$f":"IFERROR(IF(Lån_Ikke_Betalt*Værdier_Angivet,Månedlig_Betaling,\"\"), \"\")","v":""},{"$f":"IFERROR(IF(Lån_Ikke_Betalt*Værdier_Angivet,Hovedstol,\"\"), \"\")","v":""},{"$f":"IFERROR(IF(Lån_Ikke_Betalt*Værdier_Angivet,Renter,\"\"), \"\")","v":""},{"$f":"IFERROR(IF(Lån_Ikke_Betalt*Værdier_Angivet,Slut_saldo,\"\"), \"\")","v":""}]
[null,{"$f":"IFERROR(IF(Lån_Ikke_Betalt*Værdier_Angivet,Betaling_Nummer,\"\"), \"\")","v":""},{"$f":"IFERROR(IF(Lån_Ikke_Betalt*Værdier_Angivet,Betalingsdato,\"\"), \"\")","v":""},{"$f":"IFERROR(IF(Lån_Ikke_Betalt*Værdier_Angivet,Startsaldo,\"\"), \"\")","v":""},{"$f":"IFERROR(IF(Lån_Ikke_Betalt*Værdier_Angivet,Månedlig_Betaling,\"\"), \"\")","v":""},{"$f":"IFERROR(IF(Lån_Ikke_Betalt*Værdier_Angivet,Hovedstol,\"\"), \"\")","v":""},{"$f":"IFERROR(IF(Lån_Ikke_Betalt*Værdier_Angivet,Renter,\"\"), \"\")","v":""},{"$f":"IFERROR(IF(Lån_Ikke_Betalt*Værdier_Angivet,Slut_saldo,\"\"), \"\")","v":""}]
[null,{"$f":"IFERROR(IF(Lån_Ikke_Betalt*Værdier_Angivet,Betaling_Nummer,\"\"), \"\")","v":""},{"$f":"IFERROR(IF(Lån_Ikke_Betalt*Værdier_Angivet,Betalingsdato,\"\"), \"\")","v":""},{"$f":"IFERROR(IF(Lån_Ikke_Betalt*Værdier_Angivet,Startsaldo,\"\"), \"\")","v":""},{"$f":"IFERROR(IF(Lån_Ikke_Betalt*Værdier_Angivet,Månedlig_Betaling,\"\"), \"\")","v":""},{"$f":"IFERROR(IF(Lån_Ikke_Betalt*Værdier_Angivet,Hovedstol,\"\"), \"\")","v":""},{"$f":"IFERROR(IF(Lån_Ikke_Betalt*Værdier_Angivet,Renter,\"\"), \"\")","v":""},{"$f":"IFERROR(IF(Lån_Ikke_Betalt*Værdier_Angivet,Slut_saldo,\"\"), \"\")","v":""}]
[null,{"$f":"IFERROR(IF(Lån_Ikke_Betalt*Værdier_Angivet,Betaling_Nummer,\"\"), \"\")","v":""},{"$f":"IFERROR(IF(Lån_Ikke_Betalt*Værdier_Angivet,Betalingsdato,\"\"), \"\")","v":""},{"$f":"IFERROR(IF(Lån_Ikke_Betalt*Værdier_Angivet,Startsaldo,\"\"), \"\")","v":""},{"$f":"IFERROR(IF(Lån_Ikke_Betalt*Værdier_Angivet,Månedlig_Betaling,\"\"), \"\")","v":""},{"$f":"IFERROR(IF(Lån_Ikke_Betalt*Værdier_Angivet,Hovedstol,\"\"), \"\")","v":""},{"$f":"IFERROR(IF(Lån_Ikke_Betalt*Værdier_Angivet,Renter,\"\"), \"\")","v":""},{"$f":"IFERROR(IF(Lån_Ikke_Betalt*Værdier_Angivet,Slut_saldo,\"\"), \"\")","v":""}]
[null,{"$f":"IFERROR(IF(Lån_Ikke_Betalt*Værdier_Angivet,Betaling_Nummer,\"\"), \"\")","v":""},{"$f":"IFERROR(IF(Lån_Ikke_Betalt*Værdier_Angivet,Betalingsdato,\"\"), \"\")","v":""},{"$f":"IFERROR(IF(Lån_Ikke_Betalt*Værdier_Angivet,Startsaldo,\"\"), \"\")","v":""},{"$f":"IFERROR(IF(Lån_Ikke_Betalt*Værdier_Angivet,Månedlig_Betaling,\"\"), \"\")","v":""},{"$f":"IFERROR(IF(Lån_Ikke_Betalt*Værdier_Angivet,Hovedstol,\"\"), \"\")","v":""},{"$f":"IFERROR(IF(Lån_Ikke_Betalt*Værdier_Angivet,Renter,\"\"), \"\")","v":""},{"$f":"IFERROR(IF(Lån_Ikke_Betalt*Værdier_Angivet,Slut_saldo,\"\"), \"\")","v":""}]
[null,{"$f":"IFERROR(IF(Lån_Ikke_Betalt*Værdier_Angivet,Betaling_Nummer,\"\"), \"\")","v":""},{"$f":"IFERROR(IF(Lån_Ikke_Betalt*Værdier_Angivet,Betalingsdato,\"\"), \"\")","v":""},{"$f":"IFERROR(IF(Lån_Ikke_Betalt*Værdier_Angivet,Startsaldo,\"\"), \"\")","v":""},{"$f":"IFERROR(IF(Lån_Ikke_Betalt*Værdier_Angivet,Månedlig_Betaling,\"\"), \"\")","v":""},{"$f":"IFERROR(IF(Lån_Ikke_Betalt*Værdier_Angivet,Hovedstol,\"\"), \"\")","v":""},{"$f":"IFERROR(IF(Lån_Ikke_Betalt*Værdier_Angivet,Renter,\"\"), \"\")","v":""},{"$f":"IFERROR(IF(Lån_Ikke_Betalt*Værdier_Angivet,Slut_saldo,\"\"), \"\")","v":""}]
[null,{"$f":"IFERROR(IF(Lån_Ikke_Betalt*Værdier_Angivet,Betaling_Nummer,\"\"), \"\")","v":""},{"$f":"IFERROR(IF(Lån_Ikke_Betalt*Værdier_Angivet,Betalingsdato,\"\"), \"\")","v":""},{"$f":"IFERROR(IF(Lån_Ikke_Betalt*Værdier_Angivet,Startsaldo,\"\"), \"\")","v":""},{"$f":"IFERROR(IF(Lån_Ikke_Betalt*Værdier_Angivet,Månedlig_Betaling,\"\"), \"\")","v":""},{"$f":"IFERROR(IF(Lån_Ikke_Betalt*Værdier_Angivet,Hovedstol,\"\"), \"\")","v":""},{"$f":"IFERROR(IF(Lån_Ikke_Betalt*Værdier_Angivet,Renter,\"\"), \"\")","v":""},{"$f":"IFERROR(IF(Lån_Ikke_Betalt*Værdier_Angivet,Slut_saldo,\"\"), \"\")","v":""}]
[null,{"$f":"IFERROR(IF(Lån_Ikke_Betalt*Værdier_Angivet,Betaling_Nummer,\"\"), \"\")","v":""},{"$f":"IFERROR(IF(Lån_Ikke_Betalt*Værdier_Angivet,Betalingsdato,\"\"), \"\")","v":""},{"$f":"IFERROR(IF(Lån_Ikke_Betalt*Værdier_Angivet,Startsaldo,\"\"), \"\")","v":""},{"$f":"IFERROR(IF(Lån_Ikke_Betalt*Værdier_Angivet,Månedlig_Betaling,\"\"), \"\")","v":""},{"$f":"IFERROR(IF(Lån_Ikke_Betalt*Værdier_Angivet,Hovedstol,\"\"), \"\")","v":""},{"$f":"IFERROR(IF(Lån_Ikke_Betalt*Værdier_Angivet,Renter,\"\"), \"\")","v":""},{"$f":"IFERROR(IF(Lån_Ikke_Betalt*Værdier_Angivet,Slut_saldo,\"\"), \"\")","v":""}]
[null,{"$f":"IFERROR(IF(Lån_Ikke_Betalt*Værdier_Angivet,Betaling_Nummer,\"\"), \"\")","v":""},{"$f":"IFERROR(IF(Lån_Ikke_Betalt*Værdier_Angivet,Betalingsdato,\"\"), \"\")","v":""},{"$f":"IFERROR(IF(Lån_Ikke_Betalt*Værdier_Angivet,Startsaldo,\"\"), \"\")","v":""},{"$f":"IFERROR(IF(Lån_Ikke_Betalt*Værdier_Angivet,Månedlig_Betaling,\"\"), \"\")","v":""},{"$f":"IFERROR(IF(Lån_Ikke_Betalt*Værdier_Angivet,Hovedstol,\"\"), \"\")","v":""},{"$f":"IFERROR(IF(Lån_Ikke_Betalt*Værdier_Angivet,Renter,\"\"), \"\")","v":""},{"$f":"IFERROR(IF(Lån_Ikke_Betalt*Værdier_Angivet,Slut_saldo,\"\"), \"\")","v":""}]
[null,{"$f":"IFERROR(IF(Lån_Ikke_Betalt*Værdier_Angivet,Betaling_Nummer,\"\"), \"\")","v":""},{"$f":"IFERROR(IF(Lån_Ikke_Betalt*Værdier_Angivet,Betalingsdato,\"\"), \"\")","v":""},{"$f":"IFERROR(IF(Lån_Ikke_Betalt*Værdier_Angivet,Startsaldo,\"\"), \"\")","v":""},{"$f":"IFERROR(IF(Lån_Ikke_Betalt*Værdier_Angivet,Månedlig_Betaling,\"\"), \"\")","v":""},{"$f":"IFERROR(IF(Lån_Ikke_Betalt*Værdier_Angivet,Hovedstol,\"\"), \"\")","v":""},{"$f":"IFERROR(IF(Lån_Ikke_Betalt*Værdier_Angivet,Renter,\"\"), \"\")","v":""},{"$f":"IFERROR(IF(Lån_Ikke_Betalt*Værdier_Angivet,Slut_saldo,\"\"), \"\")","v":""}]
[null,{"$f":"IFERROR(IF(Lån_Ikke_Betalt*Værdier_Angivet,Betaling_Nummer,\"\"), \"\")","v":""},{"$f":"IFERROR(IF(Lån_Ikke_Betalt*Værdier_Angivet,Betalingsdato,\"\"), \"\")","v":""},{"$f":"IFERROR(IF(Lån_Ikke_Betalt*Værdier_Angivet,Startsaldo,\"\"), \"\")","v":""},{"$f":"IFERROR(IF(Lån_Ikke_Betalt*Værdier_Angivet,Månedlig_Betaling,\"\"), \"\")","v":""},{"$f":"IFERROR(IF(Lån_Ikke_Betalt*Værdier_Angivet,Hovedstol,\"\"), \"\")","v":""},{"$f":"IFERROR(IF(Lån_Ikke_Betalt*Værdier_Angivet,Renter,\"\"), \"\")","v":""},{"$f":"IFERROR(IF(Lån_Ikke_Betalt*Værdier_Angivet,Slut_saldo,\"\"), \"\")","v":""}]
[null,{"$f":"IFERROR(IF(Lån_Ikke_Betalt*Værdier_Angivet,Betaling_Nummer,\"\"), \"\")","v":""},{"$f":"IFERROR(IF(Lån_Ikke_Betalt*Værdier_Angivet,Betalingsdato,\"\"), \"\")","v":""},{"$f":"IFERROR(IF(Lån_Ikke_Betalt*Værdier_Angivet,Startsaldo,\"\"), \"\")","v":""},{"$f":"IFERROR(IF(Lån_Ikke_Betalt*Værdier_Angivet,Månedlig_Betaling,\"\"), \"\")","v":""},{"$f":"IFERROR(IF(Lån_Ikke_Betalt*Værdier_Angivet,Hovedstol,\"\"), \"\")","v":""},{"$f":"IFERROR(IF(Lån_Ikke_Betalt*Værdier_Angivet,Renter,\"\"), \"\")","v":""},{"$f":"IFERROR(IF(Lån_Ikke_Betalt*Værdier_Angivet,Slut_saldo,\"\"), \"\")","v":""}]
[null,{"$f":"IFERROR(IF(Lån_Ikke_Betalt*Værdier_Angivet,Betaling_Nummer,\"\"), \"\")","v":""},{"$f":"IFERROR(IF(Lån_Ikke_Betalt*Værdier_Angivet,Betalingsdato,\"\"), \"\")","v":""},{"$f":"IFERROR(IF(Lån_Ikke_Betalt*Værdier_Angivet,Startsaldo,\"\"), \"\")","v":""},{"$f":"IFERROR(IF(Lån_Ikke_Betalt*Værdier_Angivet,Månedlig_Betaling,\"\"), \"\")","v":""},{"$f":"IFERROR(IF(Lån_Ikke_Betalt*Værdier_Angivet,Hovedstol,\"\"), \"\")","v":""},{"$f":"IFERROR(IF(Lån_Ikke_Betalt*Værdier_Angivet,Renter,\"\"), \"\")","v":""},{"$f":"IFERROR(IF(Lån_Ikke_Betalt*Værdier_Angivet,Slut_saldo,\"\"), \"\")","v":""}]
[null,{"$f":"IFERROR(IF(Lån_Ikke_Betalt*Værdier_Angivet,Betaling_Nummer,\"\"), \"\")","v":""},{"$f":"IFERROR(IF(Lån_Ikke_Betalt*Værdier_Angivet,Betalingsdato,\"\"), \"\")","v":""},{"$f":"IFERROR(IF(Lån_Ikke_Betalt*Værdier_Angivet,Startsaldo,\"\"), \"\")","v":""},{"$f":"IFERROR(IF(Lån_Ikke_Betalt*Værdier_Angivet,Månedlig_Betaling,\"\"), \"\")","v":""},{"$f":"IFERROR(IF(Lån_Ikke_Betalt*Værdier_Angivet,Hovedstol,\"\"), \"\")","v":""},{"$f":"IFERROR(IF(Lån_Ikke_Betalt*Værdier_Angivet,Renter,\"\"), \"\")","v":""},{"$f":"IFERROR(IF(Lån_Ikke_Betalt*Værdier_Angivet,Slut_saldo,\"\"), \"\")","v":""}]
[null,{"$f":"IFERROR(IF(Lån_Ikke_Betalt*Værdier_Angivet,Betaling_Nummer,\"\"), \"\")","v":""},{"$f":"IFERROR(IF(Lån_Ikke_Betalt*Værdier_Angivet,Betalingsdato,\"\"), \"\")","v":""},{"$f":"IFERROR(IF(Lån_Ikke_Betalt*Værdier_Angivet,Startsaldo,\"\"), \"\")","v":""},{"$f":"IFERROR(IF(Lån_Ikke_Betalt*Værdier_Angivet,Månedlig_Betaling,\"\"), \"\")","v":""},{"$f":"IFERROR(IF(Lån_Ikke_Betalt*Værdier_Angivet,Hovedstol,\"\"), \"\")","v":""},{"$f":"IFERROR(IF(Lån_Ikke_Betalt*Værdier_Angivet,Renter,\"\"), \"\")","v":""},{"$f":"IFERROR(IF(Lån_Ikke_Betalt*Værdier_Angivet,Slut_saldo,\"\"), \"\")","v":""}]
[null,{"$f":"IFERROR(IF(Lån_Ikke_Betalt*Værdier_Angivet,Betaling_Nummer,\"\"), \"\")","v":""},{"$f":"IFERROR(IF(Lån_Ikke_Betalt*Værdier_Angivet,Betalingsdato,\"\"), \"\")","v":""},{"$f":"IFERROR(IF(Lån_Ikke_Betalt*Værdier_Angivet,Startsaldo,\"\"), \"\")","v":""},{"$f":"IFERROR(IF(Lån_Ikke_Betalt*Værdier_Angivet,Månedlig_Betaling,\"\"), \"\")","v":""},{"$f":"IFERROR(IF(Lån_Ikke_Betalt*Værdier_Angivet,Hovedstol,\"\"), \"\")","v":""},{"$f":"IFERROR(IF(Lån_Ikke_Betalt*Værdier_Angivet,Renter,\"\"), \"\")","v":""},{"$f":"IFERROR(IF(Lån_Ikke_Betalt*Værdier_Angivet,Slut_saldo,\"\"), \"\")","v":""}]
[null,{"$f":"IFERROR(IF(Lån_Ikke_Betalt*Værdier_Angivet,Betaling_Nummer,\"\"), \"\")","v":""},{"$f":"IFERROR(IF(Lån_Ikke_Betalt*Værdier_Angivet,Betalingsdato,\"\"), \"\")","v":""},{"$f":"IFERROR(IF(Lån_Ikke_Betalt*Værdier_Angivet,Startsaldo,\"\"), \"\")","v":""},{"$f":"IFERROR(IF(Lån_Ikke_Betalt*Værdier_Angivet,Månedlig_Betaling,\"\"), \"\")","v":""},{"$f":"IFERROR(IF(Lån_Ikke_Betalt*Værdier_Angivet,Hovedstol,\"\"), \"\")","v":""},{"$f":"IFERROR(IF(Lån_Ikke_Betalt*Værdier_Angivet,Renter,\"\"), \"\")","v":""},{"$f":"IFERROR(IF(Lån_Ikke_Betalt*Værdier_Angivet,Slut_saldo,\"\"), \"\")","v":""}]
[null,{"$f":"IFERROR(IF(Lån_Ikke_Betalt*Værdier_Angivet,Betaling_Nummer,\"\"), \"\")","v":""},{"$f":"IFERROR(IF(Lån_Ikke_Betalt*Værdier_Angivet,Betalingsdato,\"\"), \"\")","v":""},{"$f":"IFERROR(IF(Lån_Ikke_Betalt*Værdier_Angivet,Startsaldo,\"\"), \"\")","v":""},{"$f":"IFERROR(IF(Lån_Ikke_Betalt*Værdier_Angivet,Månedlig_Betaling,\"\"), \"\")","v":""},{"$f":"IFERROR(IF(Lån_Ikke_Betalt*Værdier_Angivet,Hovedstol,\"\"), \"\")","v":""},{"$f":"IFERROR(IF(Lån_Ikke_Betalt*Værdier_Angivet,Renter,\"\"), \"\")","v":""},{"$f":"IFERROR(IF(Lån_Ikke_Betalt*Værdier_Angivet,Slut_saldo,\"\"), \"\")","v":""}]
[null,{"$f":"IFERROR(IF(Lån_Ikke_Betalt*Værdier_Angivet,Betaling_Nummer,\"\"), \"\")","v":""},{"$f":"IFERROR(IF(Lån_Ikke_Betalt*Værdier_Angivet,Betalingsdato,\"\"), \"\")","v":""},{"$f":"IFERROR(IF(Lån_Ikke_Betalt*Værdier_Angivet,Startsaldo,\"\"), \"\")","v":""},{"$f":"IFERROR(IF(Lån_Ikke_Betalt*Værdier_Angivet,Månedlig_Betaling,\"\"), \"\")","v":""},{"$f":"IFERROR(IF(Lån_Ikke_Betalt*Værdier_Angivet,Hovedstol,\"\"), \"\")","v":""},{"$f":"IFERROR(IF(Lån_Ikke_Betalt*Værdier_Angivet,Renter,\"\"), \"\")","v":""},{"$f":"IFERROR(IF(Lån_Ikke_Betalt*Værdier_Angivet,Slut_saldo,\"\"), \"\")","v":""}]
[null,{"$f":"IFERROR(IF(Lån_Ikke_Betalt*Værdier_Angivet,Betaling_Nummer,\"\"), \"\")","v":""},{"$f":"IFERROR(IF(Lån_Ikke_Betalt*Værdier_Angivet,Betalingsdato,\"\"), \"\")","v":""},{"$f":"IFERROR(IF(Lån_Ikke_Betalt*Værdier_Angivet,Startsaldo,\"\"), \"\")","v":""},{"$f":"IFERROR(IF(Lån_Ikke_Betalt*Værdier_Angivet,Månedlig_Betaling,\"\"), \"\")","v":""},{"$f":"IFERROR(IF(Lån_Ikke_Betalt*Værdier_Angivet,Hovedstol,\"\"), \"\")","v":""},{"$f":"IFERROR(IF(Lån_Ikke_Betalt*Værdier_Angivet,Renter,\"\"), \"\")","v":""},{"$f":"IFERROR(IF(Lån_Ikke_Betalt*Værdier_Angivet,Slut_saldo,\"\"), \"\")","v":""}]
[null,{"$f":"IFERROR(IF(Lån_Ikke_Betalt*Værdier_Angivet,Betaling_Nummer,\"\"), \"\")","v":""},{"$f":"IFERROR(IF(Lån_Ikke_Betalt*Værdier_Angivet,Betalingsdato,\"\"), \"\")","v":""},{"$f":"IFERROR(IF(Lån_Ikke_Betalt*Værdier_Angivet,Startsaldo,\"\"), \"\")","v":""},{"$f":"IFERROR(IF(Lån_Ikke_Betalt*Værdier_Angivet,Månedlig_Betaling,\"\"), \"\")","v":""},{"$f":"IFERROR(IF(Lån_Ikke_Betalt*Værdier_Angivet,Hovedstol,\"\"), \"\")","v":""},{"$f":"IFERROR(IF(Lån_Ikke_Betalt*Værdier_Angivet,Renter,\"\"), \"\")","v":""},{"$f":"IFERROR(IF(Lån_Ikke_Betalt*Værdier_Angivet,Slut_saldo,\"\"), \"\")","v":""}]
[null,{"$f":"IFERROR(IF(Lån_Ikke_Betalt*Værdier_Angivet,Betaling_Nummer,\"\"), \"\")","v":""},{"$f":"IFERROR(IF(Lån_Ikke_Betalt*Værdier_Angivet,Betalingsdato,\"\"), \"\")","v":""},{"$f":"IFERROR(IF(Lån_Ikke_Betalt*Værdier_Angivet,Startsaldo,\"\"), \"\")","v":""},{"$f":"IFERROR(IF(Lån_Ikke_Betalt*Værdier_Angivet,Månedlig_Betaling,\"\"), \"\")","v":""},{"$f":"IFERROR(IF(Lån_Ikke_Betalt*Værdier_Angivet,Hovedstol,\"\"), \"\")","v":""},{"$f":"IFERROR(IF(Lån_Ikke_Betalt*Værdier_Angivet,Renter,\"\"), \"\")","v":""},{"$f":"IFERROR(IF(Lån_Ikke_Betalt*Værdier_Angivet,Slut_saldo,\"\"), \"\")","v":""}]
[null,{"$f":"IFERROR(IF(Lån_Ikke_Betalt*Værdier_Angivet,Betaling_Nummer,\"\"), \"\")","v":""},{"$f":"IFERROR(IF(Lån_Ikke_Betalt*Værdier_Angivet,Betalingsdato,\"\"), \"\")","v":""},{"$f":"IFERROR(IF(Lån_Ikke_Betalt*Værdier_Angivet,Startsaldo,\"\"), \"\")","v":""},{"$f":"IFERROR(IF(Lån_Ikke_Betalt*Værdier_Angivet,Månedlig_Betaling,\"\"), \"\")","v":""},{"$f":"IFERROR(IF(Lån_Ikke_Betalt*Værdier_Angivet,Hovedstol,\"\"), \"\")","v":""},{"$f":"IFERROR(IF(Lån_Ikke_Betalt*Værdier_Angivet,Renter,\"\"), \"\")","v":""},{"$f":"IFERROR(IF(Lån_Ikke_Betalt*Værdier_Angivet,Slut_saldo,\"\"), \"\")","v":""}]
[null,{"$f":"IFERROR(IF(Lån_Ikke_Betalt*Værdier_Angivet,Betaling_Nummer,\"\"), \"\")","v":""},{"$f":"IFERROR(IF(Lån_Ikke_Betalt*Værdier_Angivet,Betalingsdato,\"\"), \"\")","v":""},{"$f":"IFERROR(IF(Lån_Ikke_Betalt*Værdier_Angivet,Startsaldo,\"\"), \"\")","v":""},{"$f":"IFERROR(IF(Lån_Ikke_Betalt*Værdier_Angivet,Månedlig_Betaling,\"\"), \"\")","v":""},{"$f":"IFERROR(IF(Lån_Ikke_Betalt*Værdier_Angivet,Hovedstol,\"\"), \"\")","v":""},{"$f":"IFERROR(IF(Lån_Ikke_Betalt*Værdier_Angivet,Renter,\"\"), \"\")","v":""},{"$f":"IFERROR(IF(Lån_Ikke_Betalt*Værdier_Angivet,Slut_saldo,\"\"), \"\")","v":""}]
[null,{"$f":"IFERROR(IF(Lån_Ikke_Betalt*Værdier_Angivet,Betaling_Nummer,\"\"), \"\")","v":""},{"$f":"IFERROR(IF(Lån_Ikke_Betalt*Værdier_Angivet,Betalingsdato,\"\"), \"\")","v":""},{"$f":"IFERROR(IF(Lån_Ikke_Betalt*Værdier_Angivet,Startsaldo,\"\"), \"\")","v":""},{"$f":"IFERROR(IF(Lån_Ikke_Betalt*Værdier_Angivet,Månedlig_Betaling,\"\"), \"\")","v":""},{"$f":"IFERROR(IF(Lån_Ikke_Betalt*Værdier_Angivet,Hovedstol,\"\"), \"\")","v":""},{"$f":"IFERROR(IF(Lån_Ikke_Betalt*Værdier_Angivet,Renter,\"\"), \"\")","v":""},{"$f":"IFERROR(IF(Lån_Ikke_Betalt*Værdier_Angivet,Slut_saldo,\"\"), \"\")","v":""}]
[null,{"$f":"IFERROR(IF(Lån_Ikke_Betalt*Værdier_Angivet,Betaling_Nummer,\"\"), \"\")","v":""},{"$f":"IFERROR(IF(Lån_Ikke_Betalt*Værdier_Angivet,Betalingsdato,\"\"), \"\")","v":""},{"$f":"IFERROR(IF(Lån_Ikke_Betalt*Værdier_Angivet,Startsaldo,\"\"), \"\")","v":""},{"$f":"IFERROR(IF(Lån_Ikke_Betalt*Værdier_Angivet,Månedlig_Betaling,\"\"), \"\")","v":""},{"$f":"IFERROR(IF(Lån_Ikke_Betalt*Værdier_Angivet,Hovedstol,\"\"), \"\")","v":""},{"$f":"IFERROR(IF(Lån_Ikke_Betalt*Værdier_Angivet,Renter,\"\"), \"\")","v":""},{"$f":"IFERROR(IF(Lån_Ikke_Betalt*Værdier_Angivet,Slut_saldo,\"\"), \"\")","v":""}]
[null,{"$f":"IFERROR(IF(Lån_Ikke_Betalt*Værdier_Angivet,Betaling_Nummer,\"\"), \"\")","v":""},{"$f":"IFERROR(IF(Lån_Ikke_Betalt*Værdier_Angivet,Betalingsdato,\"\"), \"\")","v":""},{"$f":"IFERROR(IF(Lån_Ikke_Betalt*Værdier_Angivet,Startsaldo,\"\"), \"\")","v":""},{"$f":"IFERROR(IF(Lån_Ikke_Betalt*Værdier_Angivet,Månedlig_Betaling,\"\"), \"\")","v":""},{"$f":"IFERROR(IF(Lån_Ikke_Betalt*Værdier_Angivet,Hovedstol,\"\"), \"\")","v":""},{"$f":"IFERROR(IF(Lån_Ikke_Betalt*Værdier_Angivet,Renter,\"\"), \"\")","v":""},{"$f":"IFERROR(IF(Lån_Ikke_Betalt*Værdier_Angivet,Slut_saldo,\"\"), \"\")","v":""}]
[null,{"$f":"IFERROR(IF(Lån_Ikke_Betalt*Værdier_Angivet,Betaling_Nummer,\"\"), \"\")","v":""},{"$f":"IFERROR(IF(Lån_Ikke_Betalt*Værdier_Angivet,Betalingsdato,\"\"), \"\")","v":""},{"$f":"IFERROR(IF(Lån_Ikke_Betalt*Værdier_Angivet,Startsaldo,\"\"), \"\")","v":""},{"$f":"IFERROR(IF(Lån_Ikke_Betalt*Værdier_Angivet,Månedlig_Betaling,\"\"), \"\")","v":""},{"$f":"IFERROR(IF(Lån_Ikke_Betalt*Værdier_Angivet,Hovedstol,\"\"), \"\")","v":""},{"$f":"IFERROR(IF(Lån_Ikke_Betalt*Værdier_Angivet,Renter,\"\"), \"\")","v":""},{"$f":"IFERROR(IF(Lån_Ikke_Betalt*Værdier_Angivet,Slut_saldo,\"\"), \"\")","v":""}]
[null,{"$f":"IFERROR(IF(Lån_Ikke_Betalt*Værdier_Angivet,Betaling_Nummer,\"\"), \"\")","v":""},{"$f":"IFERROR(IF(Lån_Ikke_Betalt*Værdier_Angivet,Betalingsdato,\"\"), \"\")","v":""},{"$f":"IFERROR(IF(Lån_Ikke_Betalt*Værdier_Angivet,Startsaldo,\"\"), \"\")","v":""},{"$f":"IFERROR(IF(Lån_Ikke_Betalt*Værdier_Angivet,Månedlig_Betaling,\"\"), \"\")","v":""},{"$f":"IFERROR(IF(Lån_Ikke_Betalt*Værdier_Angivet,Hovedstol,\"\"), \"\")","v":""},{"$f":"IFERROR(IF(Lån_Ikke_Betalt*Værdier_Angivet,Renter,\"\"), \"\")","v":""},{"$f":"IFERROR(IF(Lån_Ikke_Betalt*Værdier_Angivet,Slut_saldo,\"\"), \"\")","v":""}]
[null,{"$f":"IFERROR(IF(Lån_Ikke_Betalt*Værdier_Angivet,Betaling_Nummer,\"\"), \"\")","v":""},{"$f":"IFERROR(IF(Lån_Ikke_Betalt*Værdier_Angivet,Betalingsdato,\"\"), \"\")","v":""},{"$f":"IFERROR(IF(Lån_Ikke_Betalt*Værdier_Angivet,Startsaldo,\"\"), \"\")","v":""},{"$f":"IFERROR(IF(Lån_Ikke_Betalt*Værdier_Angivet,Månedlig_Betaling,\"\"), \"\")","v":""},{"$f":"IFERROR(IF(Lån_Ikke_Betalt*Værdier_Angivet,Hovedstol,\"\"), \"\")","v":""},{"$f":"IFERROR(IF(Lån_Ikke_Betalt*Værdier_Angivet,Renter,\"\"), \"\")","v":""},{"$f":"IFERROR(IF(Lån_Ikke_Betalt*Værdier_Angivet,Slut_saldo,\"\"), \"\")","v":""}]
[null,{"$f":"IFERROR(IF(Lån_Ikke_Betalt*Værdier_Angivet,Betaling_Nummer,\"\"), \"\")","v":""},{"$f":"IFERROR(IF(Lån_Ikke_Betalt*Værdier_Angivet,Betalingsdato,\"\"), \"\")","v":""},{"$f":"IFERROR(IF(Lån_Ikke_Betalt*Værdier_Angivet,Startsaldo,\"\"), \"\")","v":""},{"$f":"IFERROR(IF(Lån_Ikke_Betalt*Værdier_Angivet,Månedlig_Betaling,\"\"), \"\")","v":""},{"$f":"IFERROR(IF(Lån_Ikke_Betalt*Værdier_Angivet,Hovedstol,\"\"), \"\")","v":""},{"$f":"IFERROR(IF(Lån_Ikke_Betalt*Værdier_Angivet,Renter,\"\"), \"\")","v":""},{"$f":"IFERROR(IF(Lån_Ikke_Betalt*Værdier_Angivet,Slut_saldo,\"\"), \"\")","v":""}]
[null,{"$f":"IFERROR(IF(Lån_Ikke_Betalt*Værdier_Angivet,Betaling_Nummer,\"\"), \"\")","v":""},{"$f":"IFERROR(IF(Lån_Ikke_Betalt*Værdier_Angivet,Betalingsdato,\"\"), \"\")","v":""},{"$f":"IFERROR(IF(Lån_Ikke_Betalt*Værdier_Angivet,Startsaldo,\"\"), \"\")","v":""},{"$f":"IFERROR(IF(Lån_Ikke_Betalt*Værdier_Angivet,Månedlig_Betaling,\"\"), \"\")","v":""},{"$f":"IFERROR(IF(Lån_Ikke_Betalt*Værdier_Angivet,Hovedstol,\"\"), \"\")","v":""},{"$f":"IFERROR(IF(Lån_Ikke_Betalt*Værdier_Angivet,Renter,\"\"), \"\")","v":""},{"$f":"IFERROR(IF(Lån_Ikke_Betalt*Værdier_Angivet,Slut_saldo,\"\"), \"\")","v":""}]
[null,{"$f":"IFERROR(IF(Lån_Ikke_Betalt*Værdier_Angivet,Betaling_Nummer,\"\"), \"\")","v":""},{"$f":"IFERROR(IF(Lån_Ikke_Betalt*Værdier_Angivet,Betalingsdato,\"\"), \"\")","v":""},{"$f":"IFERROR(IF(Lån_Ikke_Betalt*Værdier_Angivet,Startsaldo,\"\"), \"\")","v":""},{"$f":"IFERROR(IF(Lån_Ikke_Betalt*Værdier_Angivet,Månedlig_Betaling,\"\"), \"\")","v":""},{"$f":"IFERROR(IF(Lån_Ikke_Betalt*Værdier_Angivet,Hovedstol,\"\"), \"\")","v":""},{"$f":"IFERROR(IF(Lån_Ikke_Betalt*Værdier_Angivet,Renter,\"\"), \"\")","v":""},{"$f":"IFERROR(IF(Lån_Ikke_Betalt*Værdier_Angivet,Slut_saldo,\"\"), \"\")","v":""}]
[null,{"$f":"IFERROR(IF(Lån_Ikke_Betalt*Værdier_Angivet,Betaling_Nummer,\"\"), \"\")","v":""},{"$f":"IFERROR(IF(Lån_Ikke_Betalt*Værdier_Angivet,Betalingsdato,\"\"), \"\")","v":""},{"$f":"IFERROR(IF(Lån_Ikke_Betalt*Værdier_Angivet,Startsaldo,\"\"), \"\")","v":""},{"$f":"IFERROR(IF(Lån_Ikke_Betalt*Værdier_Angivet,Månedlig_Betaling,\"\"), \"\")","v":""},{"$f":"IFERROR(IF(Lån_Ikke_Betalt*Værdier_Angivet,Hovedstol,\"\"), \"\")","v":""},{"$f":"IFERROR(IF(Lån_Ikke_Betalt*Værdier_Angivet,Renter,\"\"), \"\")","v":""},{"$f":"IFERROR(IF(Lån_Ikke_Betalt*Værdier_Angivet,Slut_saldo,\"\"), \"\")","v":""}]
[null,{"$f":"IFERROR(IF(Lån_Ikke_Betalt*Værdier_Angivet,Betaling_Nummer,\"\"), \"\")","v":""},{"$f":"IFERROR(IF(Lån_Ikke_Betalt*Værdier_Angivet,Betalingsdato,\"\"), \"\")","v":""},{"$f":"IFERROR(IF(Lån_Ikke_Betalt*Værdier_Angivet,Startsaldo,\"\"), \"\")","v":""},{"$f":"IFERROR(IF(Lån_Ikke_Betalt*Værdier_Angivet,Månedlig_Betaling,\"\"), \"\")","v":""},{"$f":"IFERROR(IF(Lån_Ikke_Betalt*Værdier_Angivet,Hovedstol,\"\"), \"\")","v":""},{"$f":"IFERROR(IF(Lån_Ikke_Betalt*Værdier_Angivet,Renter,\"\"), \"\")","v":""},{"$f":"IFERROR(IF(Lån_Ikke_Betalt*Værdier_Angivet,Slut_saldo,\"\"), \"\")","v":""}]
[null,{"$f":"IFERROR(IF(Lån_Ikke_Betalt*Værdier_Angivet,Betaling_Nummer,\"\"), \"\")","v":""},{"$f":"IFERROR(IF(Lån_Ikke_Betalt*Værdier_Angivet,Betalingsdato,\"\"), \"\")","v":""},{"$f":"IFERROR(IF(Lån_Ikke_Betalt*Værdier_Angivet,Startsaldo,\"\"), \"\")","v":""},{"$f":"IFERROR(IF(Lån_Ikke_Betalt*Værdier_Angivet,Månedlig_Betaling,\"\"), \"\")","v":""},{"$f":"IFERROR(IF(Lån_Ikke_Betalt*Værdier_Angivet,Hovedstol,\"\"), \"\")","v":""},{"$f":"IFERROR(IF(Lån_Ikke_Betalt*Værdier_Angivet,Renter,\"\"), \"\")","v":""},{"$f":"IFERROR(IF(Lån_Ikke_Betalt*Værdier_Angivet,Slut_saldo,\"\"), \"\")","v":""}]
[null,{"$f":"IFERROR(IF(Lån_Ikke_Betalt*Værdier_Angivet,Betaling_Nummer,\"\"), \"\")","v":""},{"$f":"IFERROR(IF(Lån_Ikke_Betalt*Værdier_Angivet,Betalingsdato,\"\"), \"\")","v":""},{"$f":"IFERROR(IF(Lån_Ikke_Betalt*Værdier_Angivet,Startsaldo,\"\"), \"\")","v":""},{"$f":"IFERROR(IF(Lån_Ikke_Betalt*Værdier_Angivet,Månedlig_Betaling,\"\"), \"\")","v":""},{"$f":"IFERROR(IF(Lån_Ikke_Betalt*Værdier_Angivet,Hovedstol,\"\"), \"\")","v":""},{"$f":"IFERROR(IF(Lån_Ikke_Betalt*Værdier_Angivet,Renter,\"\"), \"\")","v":""},{"$f":"IFERROR(IF(Lån_Ikke_Betalt*Værdier_Angivet,Slut_saldo,\"\"), \"\")","v":""}]
[null,{"$f":"IFERROR(IF(Lån_Ikke_Betalt*Værdier_Angivet,Betaling_Nummer,\"\"), \"\")","v":""},{"$f":"IFERROR(IF(Lån_Ikke_Betalt*Værdier_Angivet,Betalingsdato,\"\"), \"\")","v":""},{"$f":"IFERROR(IF(Lån_Ikke_Betalt*Værdier_Angivet,Startsaldo,\"\"), \"\")","v":""},{"$f":"IFERROR(IF(Lån_Ikke_Betalt*Værdier_Angivet,Månedlig_Betaling,\"\"), \"\")","v":""},{"$f":"IFERROR(IF(Lån_Ikke_Betalt*Værdier_Angivet,Hovedstol,\"\"), \"\")","v":""},{"$f":"IFERROR(IF(Lån_Ikke_Betalt*Værdier_Angivet,Renter,\"\"), \"\")","v":""},{"$f":"IFERROR(IF(Lån_Ikke_Betalt*Værdier_Angivet,Slut_saldo,\"\"), \"\")","v":""}]
[null,{"$f":"IFERROR(IF(Lån_Ikke_Betalt*Værdier_Angivet,Betaling_Nummer,\"\"), \"\")","v":""},{"$f":"IFERROR(IF(Lån_Ikke_Betalt*Værdier_Angivet,Betalingsdato,\"\"), \"\")","v":""},{"$f":"IFERROR(IF(Lån_Ikke_Betalt*Værdier_Angivet,Startsaldo,\"\"), \"\")","v":""},{"$f":"IFERROR(IF(Lån_Ikke_Betalt*Værdier_Angivet,Månedlig_Betaling,\"\"), \"\")","v":""},{"$f":"IFERROR(IF(Lån_Ikke_Betalt*Værdier_Angivet,Hovedstol,\"\"), \"\")","v":""},{"$f":"IFERROR(IF(Lån_Ikke_Betalt*Værdier_Angivet,Renter,\"\"), \"\")","v":""},{"$f":"IFERROR(IF(Lån_Ikke_Betalt*Værdier_Angivet,Slut_saldo,\"\"), \"\")","v":""}]
[null,{"$f":"IFERROR(IF(Lån_Ikke_Betalt*Værdier_Angivet,Betaling_Nummer,\"\"), \"\")","v":""},{"$f":"IFERROR(IF(Lån_Ikke_Betalt*Værdier_Angivet,Betalingsdato,\"\"), \"\")","v":""},{"$f":"IFERROR(IF(Lån_Ikke_Betalt*Værdier_Angivet,Startsaldo,\"\"), \"\")","v":""},{"$f":"IFERROR(IF(Lån_Ikke_Betalt*Værdier_Angivet,Månedlig_Betaling,\"\"), \"\")","v":""},{"$f":"IFERROR(IF(Lån_Ikke_Betalt*Værdier_Angivet,Hovedstol,\"\"), \"\")","v":""},{"$f":"IFERROR(IF(Lån_Ikke_Betalt*Værdier_Angivet,Renter,\"\"), \"\")","v":""},{"$f":"IFERROR(IF(Lån_Ikke_Betalt*Værdier_Angivet,Slut_saldo,\"\"), \"\")","v":""}]
[null,{"$f":"IFERROR(IF(Lån_Ikke_Betalt*Værdier_Angivet,Betaling_Nummer,\"\"), \"\")","v":""},{"$f":"IFERROR(IF(Lån_Ikke_Betalt*Værdier_Angivet,Betalingsdato,\"\"), \"\")","v":""},{"$f":"IFERROR(IF(Lån_Ikke_Betalt*Værdier_Angivet,Startsaldo,\"\"), \"\")","v":""},{"$f":"IFERROR(IF(Lån_Ikke_Betalt*Værdier_Angivet,Månedlig_Betaling,\"\"), \"\")","v":""},{"$f":"IFERROR(IF(Lån_Ikke_Betalt*Værdier_Angivet,Hovedstol,\"\"), \"\")","v":""},{"$f":"IFERROR(IF(Lån_Ikke_Betalt*Værdier_Angivet,Renter,\"\"), \"\")","v":""},{"$f":"IFERROR(IF(Lån_Ikke_Betalt*Værdier_Angivet,Slut_saldo,\"\"), \"\")","v":""}]
[null,{"$f":"IFERROR(IF(Lån_Ikke_Betalt*Værdier_Angivet,Betaling_Nummer,\"\"), \"\")","v":""},{"$f":"IFERROR(IF(Lån_Ikke_Betalt*Værdier_Angivet,Betalingsdato,\"\"), \"\")","v":""},{"$f":"IFERROR(IF(Lån_Ikke_Betalt*Værdier_Angivet,Startsaldo,\"\"), \"\")","v":""},{"$f":"IFERROR(IF(Lån_Ikke_Betalt*Værdier_Angivet,Månedlig_Betaling,\"\"), \"\")","v":""},{"$f":"IFERROR(IF(Lån_Ikke_Betalt*Værdier_Angivet,Hovedstol,\"\"), \"\")","v":""},{"$f":"IFERROR(IF(Lån_Ikke_Betalt*Værdier_Angivet,Renter,\"\"), \"\")","v":""},{"$f":"IFERROR(IF(Lån_Ikke_Betalt*Værdier_Angivet,Slut_saldo,\"\"), \"\")","v":""}]
[null,{"$f":"IFERROR(IF(Lån_Ikke_Betalt*Værdier_Angivet,Betaling_Nummer,\"\"), \"\")","v":""},{"$f":"IFERROR(IF(Lån_Ikke_Betalt*Værdier_Angivet,Betalingsdato,\"\"), \"\")","v":""},{"$f":"IFERROR(IF(Lån_Ikke_Betalt*Værdier_Angivet,Startsaldo,\"\"), \"\")","v":""},{"$f":"IFERROR(IF(Lån_Ikke_Betalt*Værdier_Angivet,Månedlig_Betaling,\"\"), \"\")","v":""},{"$f":"IFERROR(IF(Lån_Ikke_Betalt*Værdier_Angivet,Hovedstol,\"\"), \"\")","v":""},{"$f":"IFERROR(IF(Lån_Ikke_Betalt*Værdier_Angivet,Renter,\"\"), \"\")","v":""},{"$f":"IFERROR(IF(Lån_Ikke_Betalt*Værdier_Angivet,Slut_saldo,\"\"), \"\")","v":""}]
[null,{"$f":"IFERROR(IF(Lån_Ikke_Betalt*Værdier_Angivet,Betaling_Nummer,\"\"), \"\")","v":""},{"$f":"IFERROR(IF(Lån_Ikke_Betalt*Værdier_Angivet,Betalingsdato,\"\"), \"\")","v":""},{"$f":"IFERROR(IF(Lån_Ikke_Betalt*Værdier_Angivet,Startsaldo,\"\"), \"\")","v":""},{"$f":"IFERROR(IF(Lån_Ikke_Betalt*Værdier_Angivet,Månedlig_Betaling,\"\"), \"\")","v":""},{"$f":"IFERROR(IF(Lån_Ikke_Betalt*Værdier_Angivet,Hovedstol,\"\"), \"\")","v":""},{"$f":"IFERROR(IF(Lån_Ikke_Betalt*Værdier_Angivet,Renter,\"\"), \"\")","v":""},{"$f":"IFERROR(IF(Lån_Ikke_Betalt*Værdier_Angivet,Slut_saldo,\"\"), \"\")","v":""}]
[null,{"$f":"IFERROR(IF(Lån_Ikke_Betalt*Værdier_Angivet,Betaling_Nummer,\"\"), \"\")","v":""},{"$f":"IFERROR(IF(Lån_Ikke_Betalt*Værdier_Angivet,Betalingsdato,\"\"), \"\")","v":""},{"$f":"IFERROR(IF(Lån_Ikke_Betalt*Værdier_Angivet,Startsaldo,\"\"), \"\")","v":""},{"$f":"IFERROR(IF(Lån_Ikke_Betalt*Værdier_Angivet,Månedlig_Betaling,\"\"), \"\")","v":""},{"$f":"IFERROR(IF(Lån_Ikke_Betalt*Værdier_Angivet,Hovedstol,\"\"), \"\")","v":""},{"$f":"IFERROR(IF(Lån_Ikke_Betalt*Værdier_Angivet,Renter,\"\"), \"\")","v":""},{"$f":"IFERROR(IF(Lån_Ikke_Betalt*Værdier_Angivet,Slut_saldo,\"\"), \"\")","v":""}]
[null,{"$f":"IFERROR(IF(Lån_Ikke_Betalt*Værdier_Angivet,Betaling_Nummer,\"\"), \"\")","v":""},{"$f":"IFERROR(IF(Lån_Ikke_Betalt*Værdier_Angivet,Betalingsdato,\"\"), \"\")","v":""},{"$f":"IFERROR(IF(Lån_Ikke_Betalt*Værdier_Angivet,Startsaldo,\"\"), \"\")","v":""},{"$f":"IFERROR(IF(Lån_Ikke_Betalt*Værdier_Angivet,Månedlig_Betaling,\"\"), \"\")","v":""},{"$f":"IFERROR(IF(Lån_Ikke_Betalt*Værdier_Angivet,Hovedstol,\"\"), \"\")","v":""},{"$f":"IFERROR(IF(Lån_Ikke_Betalt*Værdier_Angivet,Renter,\"\"), \"\")","v":""},{"$f":"IFERROR(IF(Lån_Ikke_Betalt*Værdier_Angivet,Slut_saldo,\"\"), \"\")","v":""}]
[null,{"$f":"IFERROR(IF(Lån_Ikke_Betalt*Værdier_Angivet,Betaling_Nummer,\"\"), \"\")","v":""},{"$f":"IFERROR(IF(Lån_Ikke_Betalt*Værdier_Angivet,Betalingsdato,\"\"), \"\")","v":""},{"$f":"IFERROR(IF(Lån_Ikke_Betalt*Værdier_Angivet,Startsaldo,\"\"), \"\")","v":""},{"$f":"IFERROR(IF(Lån_Ikke_Betalt*Værdier_Angivet,Månedlig_Betaling,\"\"), \"\")","v":""},{"$f":"IFERROR(IF(Lån_Ikke_Betalt*Værdier_Angivet,Hovedstol,\"\"), \"\")","v":""},{"$f":"IFERROR(IF(Lån_Ikke_Betalt*Værdier_Angivet,Renter,\"\"), \"\")","v":""},{"$f":"IFERROR(IF(Lån_Ikke_Betalt*Værdier_Angivet,Slut_saldo,\"\"), \"\")","v":""}]
[null,{"$f":"IFERROR(IF(Lån_Ikke_Betalt*Værdier_Angivet,Betaling_Nummer,\"\"), \"\")","v":""},{"$f":"IFERROR(IF(Lån_Ikke_Betalt*Værdier_Angivet,Betalingsdato,\"\"), \"\")","v":""},{"$f":"IFERROR(IF(Lån_Ikke_Betalt*Værdier_Angivet,Startsaldo,\"\"), \"\")","v":""},{"$f":"IFERROR(IF(Lån_Ikke_Betalt*Værdier_Angivet,Månedlig_Betaling,\"\"), \"\")","v":""},{"$f":"IFERROR(IF(Lån_Ikke_Betalt*Værdier_Angivet,Hovedstol,\"\"), \"\")","v":""},{"$f":"IFERROR(IF(Lån_Ikke_Betalt*Værdier_Angivet,Renter,\"\"), \"\")","v":""},{"$f":"IFERROR(IF(Lån_Ikke_Betalt*Værdier_Angivet,Slut_saldo,\"\"), \"\")","v":""}]
[null,{"$f":"IFERROR(IF(Lån_Ikke_Betalt*Værdier_Angivet,Betaling_Nummer,\"\"), \"\")","v":""},{"$f":"IFERROR(IF(Lån_Ikke_Betalt*Værdier_Angivet,Betalingsdato,\"\"), \"\")","v":""},{"$f":"IFERROR(IF(Lån_Ikke_Betalt*Værdier_Angivet,Startsaldo,\"\"), \"\")","v":""},{"$f":"IFERROR(IF(Lån_Ikke_Betalt*Værdier_Angivet,Månedlig_Betaling,\"\"), \"\")","v":""},{"$f":"IFERROR(IF(Lån_Ikke_Betalt*Værdier_Angivet,Hovedstol,\"\"), \"\")","v":""},{"$f":"IFERROR(IF(Lån_Ikke_Betalt*Værdier_Angivet,Renter,\"\"), \"\")","v":""},{"$f":"IFERROR(IF(Lån_Ikke_Betalt*Værdier_Angivet,Slut_saldo,\"\"), \"\")","v":""}]
[null,{"$f":"IFERROR(IF(Lån_Ikke_Betalt*Værdier_Angivet,Betaling_Nummer,\"\"), \"\")","v":""},{"$f":"IFERROR(IF(Lån_Ikke_Betalt*Værdier_Angivet,Betalingsdato,\"\"), \"\")","v":""},{"$f":"IFERROR(IF(Lån_Ikke_Betalt*Værdier_Angivet,Startsaldo,\"\"), \"\")","v":""},{"$f":"IFERROR(IF(Lån_Ikke_Betalt*Værdier_Angivet,Månedlig_Betaling,\"\"), \"\")","v":""},{"$f":"IFERROR(IF(Lån_Ikke_Betalt*Værdier_Angivet,Hovedstol,\"\"), \"\")","v":""},{"$f":"IFERROR(IF(Lån_Ikke_Betalt*Værdier_Angivet,Renter,\"\"), \"\")","v":""},{"$f":"IFERROR(IF(Lån_Ikke_Betalt*Værdier_Angivet,Slut_saldo,\"\"), \"\")","v":""}]
[null,{"$f":"IFERROR(IF(Lån_Ikke_Betalt*Værdier_Angivet,Betaling_Nummer,\"\"), \"\")","v":""},{"$f":"IFERROR(IF(Lån_Ikke_Betalt*Værdier_Angivet,Betalingsdato,\"\"), \"\")","v":""},{"$f":"IFERROR(IF(Lån_Ikke_Betalt*Værdier_Angivet,Startsaldo,\"\"), \"\")","v":""},{"$f":"IFERROR(IF(Lån_Ikke_Betalt*Værdier_Angivet,Månedlig_Betaling,\"\"), \"\")","v":""},{"$f":"IFERROR(IF(Lån_Ikke_Betalt*Værdier_Angivet,Hovedstol,\"\"), \"\")","v":""},{"$f":"IFERROR(IF(Lån_Ikke_Betalt*Værdier_Angivet,Renter,\"\"), \"\")","v":""},{"$f":"IFERROR(IF(Lån_Ikke_Betalt*Værdier_Angivet,Slut_saldo,\"\"), \"\")","v":""}]
[null,{"$f":"IFERROR(IF(Lån_Ikke_Betalt*Værdier_Angivet,Betaling_Nummer,\"\"), \"\")","v":""},{"$f":"IFERROR(IF(Lån_Ikke_Betalt*Værdier_Angivet,Betalingsdato,\"\"), \"\")","v":""},{"$f":"IFERROR(IF(Lån_Ikke_Betalt*Værdier_Angivet,Startsaldo,\"\"), \"\")","v":""},{"$f":"IFERROR(IF(Lån_Ikke_Betalt*Værdier_Angivet,Månedlig_Betaling,\"\"), \"\")","v":""},{"$f":"IFERROR(IF(Lån_Ikke_Betalt*Værdier_Angivet,Hovedstol,\"\"), \"\")","v":""},{"$f":"IFERROR(IF(Lån_Ikke_Betalt*Værdier_Angivet,Renter,\"\"), \"\")","v":""},{"$f":"IFERROR(IF(Lån_Ikke_Betalt*Værdier_Angivet,Slut_saldo,\"\"), \"\")","v":""}]
[null,{"$f":"IFERROR(IF(Lån_Ikke_Betalt*Værdier_Angivet,Betaling_Nummer,\"\"), \"\")","v":""},{"$f":"IFERROR(IF(Lån_Ikke_Betalt*Værdier_Angivet,Betalingsdato,\"\"), \"\")","v":""},{"$f":"IFERROR(IF(Lån_Ikke_Betalt*Værdier_Angivet,Startsaldo,\"\"), \"\")","v":""},{"$f":"IFERROR(IF(Lån_Ikke_Betalt*Værdier_Angivet,Månedlig_Betaling,\"\"), \"\")","v":""},{"$f":"IFERROR(IF(Lån_Ikke_Betalt*Værdier_Angivet,Hovedstol,\"\"), \"\")","v":""},{"$f":"IFERROR(IF(Lån_Ikke_Betalt*Værdier_Angivet,Renter,\"\"), \"\")","v":""},{"$f":"IFERROR(IF(Lån_Ikke_Betalt*Værdier_Angivet,Slut_saldo,\"\"), \"\")","v":""}]
[null,{"$f":"IFERROR(IF(Lån_Ikke_Betalt*Værdier_Angivet,Betaling_Nummer,\"\"), \"\")","v":""},{"$f":"IFERROR(IF(Lån_Ikke_Betalt*Værdier_Angivet,Betalingsdato,\"\"), \"\")","v":""},{"$f":"IFERROR(IF(Lån_Ikke_Betalt*Værdier_Angivet,Startsaldo,\"\"), \"\")","v":""},{"$f":"IFERROR(IF(Lån_Ikke_Betalt*Værdier_Angivet,Månedlig_Betaling,\"\"), \"\")","v":""},{"$f":"IFERROR(IF(Lån_Ikke_Betalt*Værdier_Angivet,Hovedstol,\"\"), \"\")","v":""},{"$f":"IFERROR(IF(Lån_Ikke_Betalt*Værdier_Angivet,Renter,\"\"), \"\")","v":""},{"$f":"IFERROR(IF(Lån_Ikke_Betalt*Værdier_Angivet,Slut_saldo,\"\"), \"\")","v":""}]
[null,{"$f":"IFERROR(IF(Lån_Ikke_Betalt*Værdier_Angivet,Betaling_Nummer,\"\"), \"\")","v":""},{"$f":"IFERROR(IF(Lån_Ikke_Betalt*Værdier_Angivet,Betalingsdato,\"\"), \"\")","v":""},{"$f":"IFERROR(IF(Lån_Ikke_Betalt*Værdier_Angivet,Startsaldo,\"\"), \"\")","v":""},{"$f":"IFERROR(IF(Lån_Ikke_Betalt*Værdier_Angivet,Månedlig_Betaling,\"\"), \"\")","v":""},{"$f":"IFERROR(IF(Lån_Ikke_Betalt*Værdier_Angivet,Hovedstol,\"\"), \"\")","v":""},{"$f":"IFERROR(IF(Lån_Ikke_Betalt*Værdier_Angivet,Renter,\"\"), \"\")","v":""},{"$f":"IFERROR(IF(Lån_Ikke_Betalt*Værdier_Angivet,Slut_saldo,\"\"), \"\")","v":""}]
[null,{"$f":"IFERROR(IF(Lån_Ikke_Betalt*Værdier_Angivet,Betaling_Nummer,\"\"), \"\")","v":""},{"$f":"IFERROR(IF(Lån_Ikke_Betalt*Værdier_Angivet,Betalingsdato,\"\"), \"\")","v":""},{"$f":"IFERROR(IF(Lån_Ikke_Betalt*Værdier_Angivet,Startsaldo,\"\"), \"\")","v":""},{"$f":"IFERROR(IF(Lån_Ikke_Betalt*Værdier_Angivet,Månedlig_Betaling,\"\"), \"\")","v":""},{"$f":"IFERROR(IF(Lån_Ikke_Betalt*Værdier_Angivet,Hovedstol,\"\"), \"\")","v":""},{"$f":"IFERROR(IF(Lån_Ikke_Betalt*Værdier_Angivet,Renter,\"\"), \"\")","v":""},{"$f":"IFERROR(IF(Lån_Ikke_Betalt*Værdier_Angivet,Slut_saldo,\"\"), \"\")","v":""}]
[null,{"$f":"IFERROR(IF(Lån_Ikke_Betalt*Værdier_Angivet,Betaling_Nummer,\"\"), \"\")","v":""},{"$f":"IFERROR(IF(Lån_Ikke_Betalt*Værdier_Angivet,Betalingsdato,\"\"), \"\")","v":""},{"$f":"IFERROR(IF(Lån_Ikke_Betalt*Værdier_Angivet,Startsaldo,\"\"), \"\")","v":""},{"$f":"IFERROR(IF(Lån_Ikke_Betalt*Værdier_Angivet,Månedlig_Betaling,\"\"), \"\")","v":""},{"$f":"IFERROR(IF(Lån_Ikke_Betalt*Værdier_Angivet,Hovedstol,\"\"), \"\")","v":""},{"$f":"IFERROR(IF(Lån_Ikke_Betalt*Værdier_Angivet,Renter,\"\"), \"\")","v":""},{"$f":"IFERROR(IF(Lån_Ikke_Betalt*Værdier_Angivet,Slut_saldo,\"\"), \"\")","v":""}]
[null,{"$f":"IFERROR(IF(Lån_Ikke_Betalt*Værdier_Angivet,Betaling_Nummer,\"\"), \"\")","v":""},{"$f":"IFERROR(IF(Lån_Ikke_Betalt*Værdier_Angivet,Betalingsdato,\"\"), \"\")","v":""},{"$f":"IFERROR(IF(Lån_Ikke_Betalt*Værdier_Angivet,Startsaldo,\"\"), \"\")","v":""},{"$f":"IFERROR(IF(Lån_Ikke_Betalt*Værdier_Angivet,Månedlig_Betaling,\"\"), \"\")","v":""},{"$f":"IFERROR(IF(Lån_Ikke_Betalt*Værdier_Angivet,Hovedstol,\"\"), \"\")","v":""},{"$f":"IFERROR(IF(Lån_Ikke_Betalt*Værdier_Angivet,Renter,\"\"), \"\")","v":""},{"$f":"IFERROR(IF(Lån_Ikke_Betalt*Værdier_Angivet,Slut_saldo,\"\"), \"\")","v":""}]
[null,{"$f":"IFERROR(IF(Lån_Ikke_Betalt*Værdier_Angivet,Betaling_Nummer,\"\"), \"\")","v":""},{"$f":"IFERROR(IF(Lån_Ikke_Betalt*Værdier_Angivet,Betalingsdato,\"\"), \"\")","v":""},{"$f":"IFERROR(IF(Lån_Ikke_Betalt*Værdier_Angivet,Startsaldo,\"\"), \"\")","v":""},{"$f":"IFERROR(IF(Lån_Ikke_Betalt*Værdier_Angivet,Månedlig_Betaling,\"\"), \"\")","v":""},{"$f":"IFERROR(IF(Lån_Ikke_Betalt*Værdier_Angivet,Hovedstol,\"\"), \"\")","v":""},{"$f":"IFERROR(IF(Lån_Ikke_Betalt*Værdier_Angivet,Renter,\"\"), \"\")","v":""},{"$f":"IFERROR(IF(Lån_Ikke_Betalt*Værdier_Angivet,Slut_saldo,\"\"), \"\")","v":""}]
[null,{"$f":"IFERROR(IF(Lån_Ikke_Betalt*Værdier_Angivet,Betaling_Nummer,\"\"), \"\")","v":""},{"$f":"IFERROR(IF(Lån_Ikke_Betalt*Værdier_Angivet,Betalingsdato,\"\"), \"\")","v":""},{"$f":"IFERROR(IF(Lån_Ikke_Betalt*Værdier_Angivet,Startsaldo,\"\"), \"\")","v":""},{"$f":"IFERROR(IF(Lån_Ikke_Betalt*Værdier_Angivet,Månedlig_Betaling,\"\"), \"\")","v":""},{"$f":"IFERROR(IF(Lån_Ikke_Betalt*Værdier_Angivet,Hovedstol,\"\"), \"\")","v":""},{"$f":"IFERROR(IF(Lån_Ikke_Betalt*Værdier_Angivet,Renter,\"\"), \"\")","v":""},{"$f":"IFERROR(IF(Lån_Ikke_Betalt*Værdier_Angivet,Slut_saldo,\"\"), \"\")","v":""}]
[null,{"$f":"IFERROR(IF(Lån_Ikke_Betalt*Værdier_Angivet,Betaling_Nummer,\"\"), \"\")","v":""},{"$f":"IFERROR(IF(Lån_Ikke_Betalt*Værdier_Angivet,Betalingsdato,\"\"), \"\")","v":""},{"$f":"IFERROR(IF(Lån_Ikke_Betalt*Værdier_Angivet,Startsaldo,\"\"), \"\")","v":""},{"$f":"IFERROR(IF(Lån_Ikke_Betalt*Værdier_Angivet,Månedlig_Betaling,\"\"), \"\")","v":""},{"$f":"IFERROR(IF(Lån_Ikke_Betalt*Værdier_Angivet,Hovedstol,\"\"), \"\")","v":""},{"$f":"IFERROR(IF(Lån_Ikke_Betalt*Værdier_Angivet,Renter,\"\"), \"\")","v":""},{"$f":"IFERROR(IF(Lån_Ikke_Betalt*Værdier_Angivet,Slut_saldo,\"\"), \"\")","v":""}]
[null,{"$f":"IFERROR(IF(Lån_Ikke_Betalt*Værdier_Angivet,Betaling_Nummer,\"\"), \"\")","v":""},{"$f":"IFERROR(IF(Lån_Ikke_Betalt*Værdier_Angivet,Betalingsdato,\"\"), \"\")","v":""},{"$f":"IFERROR(IF(Lån_Ikke_Betalt*Værdier_Angivet,Startsaldo,\"\"), \"\")","v":""},{"$f":"IFERROR(IF(Lån_Ikke_Betalt*Værdier_Angivet,Månedlig_Betaling,\"\"), \"\")","v":""},{"$f":"IFERROR(IF(Lån_Ikke_Betalt*Værdier_Angivet,Hovedstol,\"\"), \"\")","v":""},{"$f":"IFERROR(IF(Lån_Ikke_Betalt*Værdier_Angivet,Renter,\"\"), \"\")","v":""},{"$f":"IFERROR(IF(Lån_Ikke_Betalt*Værdier_Angivet,Slut_saldo,\"\"), \"\")","v":""}]
[null,{"$f":"IFERROR(IF(Lån_Ikke_Betalt*Værdier_Angivet,Betaling_Nummer,\"\"), \"\")","v":""},{"$f":"IFERROR(IF(Lån_Ikke_Betalt*Værdier_Angivet,Betalingsdato,\"\"), \"\")","v":""},{"$f":"IFERROR(IF(Lån_Ikke_Betalt*Værdier_Angivet,Startsaldo,\"\"), \"\")","v":""},{"$f":"IFERROR(IF(Lån_Ikke_Betalt*Værdier_Angivet,Månedlig_Betaling,\"\"), \"\")","v":""},{"$f":"IFERROR(IF(Lån_Ikke_Betalt*Værdier_Angivet,Hovedstol,\"\"), \"\")","v":""},{"$f":"IFERROR(IF(Lån_Ikke_Betalt*Værdier_Angivet,Renter,\"\"), \"\")","v":""},{"$f":"IFERROR(IF(Lån_Ikke_Betalt*Værdier_Angivet,Slut_saldo,\"\"), \"\")","v":""}]
[null,{"$f":"IFERROR(IF(Lån_Ikke_Betalt*Værdier_Angivet,Betaling_Nummer,\"\"), \"\")","v":""},{"$f":"IFERROR(IF(Lån_Ikke_Betalt*Værdier_Angivet,Betalingsdato,\"\"), \"\")","v":""},{"$f":"IFERROR(IF(Lån_Ikke_Betalt*Værdier_Angivet,Startsaldo,\"\"), \"\")","v":""},{"$f":"IFERROR(IF(Lån_Ikke_Betalt*Værdier_Angivet,Månedlig_Betaling,\"\"), \"\")","v":""},{"$f":"IFERROR(IF(Lån_Ikke_Betalt*Værdier_Angivet,Hovedstol,\"\"), \"\")","v":""},{"$f":"IFERROR(IF(Lån_Ikke_Betalt*Værdier_Angivet,Renter,\"\"), \"\")","v":""},{"$f":"IFERROR(IF(Lån_Ikke_Betalt*Værdier_Angivet,Slut_saldo,\"\"), \"\")","v":""}]
[null,{"$f":"IFERROR(IF(Lån_Ikke_Betalt*Værdier_Angivet,Betaling_Nummer,\"\"), \"\")","v":""},{"$f":"IFERROR(IF(Lån_Ikke_Betalt*Værdier_Angivet,Betalingsdato,\"\"), \"\")","v":""},{"$f":"IFERROR(IF(Lån_Ikke_Betalt*Værdier_Angivet,Startsaldo,\"\"), \"\")","v":""},{"$f":"IFERROR(IF(Lån_Ikke_Betalt*Værdier_Angivet,Månedlig_Betaling,\"\"), \"\")","v":""},{"$f":"IFERROR(IF(Lån_Ikke_Betalt*Værdier_Angivet,Hovedstol,\"\"), \"\")","v":""},{"$f":"IFERROR(IF(Lån_Ikke_Betalt*Værdier_Angivet,Renter,\"\"), \"\")","v":""},{"$f":"IFERROR(IF(Lån_Ikke_Betalt*Værdier_Angivet,Slut_saldo,\"\"), \"\")","v":""}]
[null,{"$f":"IFERROR(IF(Lån_Ikke_Betalt*Værdier_Angivet,Betaling_Nummer,\"\"), \"\")","v":""},{"$f":"IFERROR(IF(Lån_Ikke_Betalt*Værdier_Angivet,Betalingsdato,\"\"), \"\")","v":""},{"$f":"IFERROR(IF(Lån_Ikke_Betalt*Værdier_Angivet,Startsaldo,\"\"), \"\")","v":""},{"$f":"IFERROR(IF(Lån_Ikke_Betalt*Værdier_Angivet,Månedlig_Betaling,\"\"), \"\")","v":""},{"$f":"IFERROR(IF(Lån_Ikke_Betalt*Værdier_Angivet,Hovedstol,\"\"), \"\")","v":""},{"$f":"IFERROR(IF(Lån_Ikke_Betalt*Værdier_Angivet,Renter,\"\"), \"\")","v":""},{"$f":"IFERROR(IF(Lån_Ikke_Betalt*Værdier_Angivet,Slut_saldo,\"\"), \"\")","v":""}]
[null,{"$f":"IFERROR(IF(Lån_Ikke_Betalt*Værdier_Angivet,Betaling_Nummer,\"\"), \"\")","v":""},{"$f":"IFERROR(IF(Lån_Ikke_Betalt*Værdier_Angivet,Betalingsdato,\"\"), \"\")","v":""},{"$f":"IFERROR(IF(Lån_Ikke_Betalt*Værdier_Angivet,Startsaldo,\"\"), \"\")","v":""},{"$f":"IFERROR(IF(Lån_Ikke_Betalt*Værdier_Angivet,Månedlig_Betaling,\"\"), \"\")","v":""},{"$f":"IFERROR(IF(Lån_Ikke_Betalt*Værdier_Angivet,Hovedstol,\"\"), \"\")","v":""},{"$f":"IFERROR(IF(Lån_Ikke_Betalt*Værdier_Angivet,Renter,\"\"), \"\")","v":""},{"$f":"IFERROR(IF(Lån_Ikke_Betalt*Værdier_Angivet,Slut_saldo,\"\"), \"\")","v":""}]
[null,{"$f":"IFERROR(IF(Lån_Ikke_Betalt*Værdier_Angivet,Betaling_Nummer,\"\"), \"\")","v":""},{"$f":"IFERROR(IF(Lån_Ikke_Betalt*Værdier_Angivet,Betalingsdato,\"\"), \"\")","v":""},{"$f":"IFERROR(IF(Lån_Ikke_Betalt*Værdier_Angivet,Startsaldo,\"\"), \"\")","v":""},{"$f":"IFERROR(IF(Lån_Ikke_Betalt*Værdier_Angivet,Månedlig_Betaling,\"\"), \"\")","v":""},{"$f":"IFERROR(IF(Lån_Ikke_Betalt*Værdier_Angivet,Hovedstol,\"\"), \"\")","v":""},{"$f":"IFERROR(IF(Lån_Ikke_Betalt*Værdier_Angivet,Renter,\"\"), \"\")","v":""},{"$f":"IFERROR(IF(Lån_Ikke_Betalt*Værdier_Angivet,Slut_saldo,\"\"), \"\")","v":""}]
[null,{"$f":"IFERROR(IF(Lån_Ikke_Betalt*Værdier_Angivet,Betaling_Nummer,\"\"), \"\")","v":""},{"$f":"IFERROR(IF(Lån_Ikke_Betalt*Værdier_Angivet,Betalingsdato,\"\"), \"\")","v":""},{"$f":"IFERROR(IF(Lån_Ikke_Betalt*Værdier_Angivet,Startsaldo,\"\"), \"\")","v":""},{"$f":"IFERROR(IF(Lån_Ikke_Betalt*Værdier_Angivet,Månedlig_Betaling,\"\"), \"\")","v":""},{"$f":"IFERROR(IF(Lån_Ikke_Betalt*Værdier_Angivet,Hovedstol,\"\"), \"\")","v":""},{"$f":"IFERROR(IF(Lån_Ikke_Betalt*Værdier_Angivet,Renter,\"\"), \"\")","v":""},{"$f":"IFERROR(IF(Lån_Ikke_Betalt*Værdier_Angivet,Slut_saldo,\"\"), \"\")","v":""}]
[null,{"$f":"IFERROR(IF(Lån_Ikke_Betalt*Værdier_Angivet,Betaling_Nummer,\"\"), \"\")","v":""},{"$f":"IFERROR(IF(Lån_Ikke_Betalt*Værdier_Angivet,Betalingsdato,\"\"), \"\")","v":""},{"$f":"IFERROR(IF(Lån_Ikke_Betalt*Værdier_Angivet,Startsaldo,\"\"), \"\")","v":""},{"$f":"IFERROR(IF(Lån_Ikke_Betalt*Værdier_Angivet,Månedlig_Betaling,\"\"), \"\")","v":""},{"$f":"IFERROR(IF(Lån_Ikke_Betalt*Værdier_Angivet,Hovedstol,\"\"), \"\")","v":""},{"$f":"IFERROR(IF(Lån_Ikke_Betalt*Værdier_Angivet,Renter,\"\"), \"\")","v":""},{"$f":"IFERROR(IF(Lån_Ikke_Betalt*Værdier_Angivet,Slut_saldo,\"\"), \"\")","v":""}]
[null,{"$f":"IFERROR(IF(Lån_Ikke_Betalt*Værdier_Angivet,Betaling_Nummer,\"\"), \"\")","v":""},{"$f":"IFERROR(IF(Lån_Ikke_Betalt*Værdier_Angivet,Betalingsdato,\"\"), \"\")","v":""},{"$f":"IFERROR(IF(Lån_Ikke_Betalt*Værdier_Angivet,Startsaldo,\"\"), \"\")","v":""},{"$f":"IFERROR(IF(Lån_Ikke_Betalt*Værdier_Angivet,Månedlig_Betaling,\"\"), \"\")","v":""},{"$f":"IFERROR(IF(Lån_Ikke_Betalt*Værdier_Angivet,Hovedstol,\"\"), \"\")","v":""},{"$f":"IFERROR(IF(Lån_Ikke_Betalt*Værdier_Angivet,Renter,\"\"), \"\")","v":""},{"$f":"IFERROR(IF(Lån_Ikke_Betalt*Værdier_Angivet,Slut_saldo,\"\"), \"\")","v":""}]
[null,{"$f":"IFERROR(IF(Lån_Ikke_Betalt*Værdier_Angivet,Betaling_Nummer,\"\"), \"\")","v":""},{"$f":"IFERROR(IF(Lån_Ikke_Betalt*Værdier_Angivet,Betalingsdato,\"\"), \"\")","v":""},{"$f":"IFERROR(IF(Lån_Ikke_Betalt*Værdier_Angivet,Startsaldo,\"\"), \"\")","v":""},{"$f":"IFERROR(IF(Lån_Ikke_Betalt*Værdier_Angivet,Månedlig_Betaling,\"\"), \"\")","v":""},{"$f":"IFERROR(IF(Lån_Ikke_Betalt*Værdier_Angivet,Hovedstol,\"\"), \"\")","v":""},{"$f":"IFERROR(IF(Lån_Ikke_Betalt*Værdier_Angivet,Renter,\"\"), \"\")","v":""},{"$f":"IFERROR(IF(Lån_Ikke_Betalt*Værdier_Angivet,Slut_saldo,\"\"), \"\")","v":""}]
[null,{"$f":"IFERROR(IF(Lån_Ikke_Betalt*Værdier_Angivet,Betaling_Nummer,\"\"), \"\")","v":""},{"$f":"IFERROR(IF(Lån_Ikke_Betalt*Værdier_Angivet,Betalingsdato,\"\"), \"\")","v":""},{"$f":"IFERROR(IF(Lån_Ikke_Betalt*Værdier_Angivet,Startsaldo,\"\"), \"\")","v":""},{"$f":"IFERROR(IF(Lån_Ikke_Betalt*Værdier_Angivet,Månedlig_Betaling,\"\"), \"\")","v":""},{"$f":"IFERROR(IF(Lån_Ikke_Betalt*Værdier_Angivet,Hovedstol,\"\"), \"\")","v":""},{"$f":"IFERROR(IF(Lån_Ikke_Betalt*Værdier_Angivet,Renter,\"\"), \"\")","v":""},{"$f":"IFERROR(IF(Lån_Ikke_Betalt*Værdier_Angivet,Slut_saldo,\"\"), \"\")","v":""}]
[null,{"$f":"IFERROR(IF(Lån_Ikke_Betalt*Værdier_Angivet,Betaling_Nummer,\"\"), \"\")","v":""},{"$f":"IFERROR(IF(Lån_Ikke_Betalt*Værdier_Angivet,Betalingsdato,\"\"), \"\")","v":""},{"$f":"IFERROR(IF(Lån_Ikke_Betalt*Værdier_Angivet,Startsaldo,\"\"), \"\")","v":""},{"$f":"IFERROR(IF(Lån_Ikke_Betalt*Værdier_Angivet,Månedlig_Betaling,\"\"), \"\")","v":""},{"$f":"IFERROR(IF(Lån_Ikke_Betalt*Værdier_Angivet,Hovedstol,\"\"), \"\")","v":""},{"$f":"IFERROR(IF(Lån_Ikke_Betalt*Værdier_Angivet,Renter,\"\"), \"\")","v":""},{"$f":"IFERROR(IF(Lån_Ikke_Betalt*Værdier_Angivet,Slut_saldo,\"\"), \"\")","v":""}]
[null,{"$f":"IFERROR(IF(Lån_Ikke_Betalt*Værdier_Angivet,Betaling_Nummer,\"\"), \"\")","v":""},{"$f":"IFERROR(IF(Lån_Ikke_Betalt*Værdier_Angivet,Betalingsdato,\"\"), \"\")","v":""},{"$f":"IFERROR(IF(Lån_Ikke_Betalt*Værdier_Angivet,Startsaldo,\"\"), \"\")","v":""},{"$f":"IFERROR(IF(Lån_Ikke_Betalt*Værdier_Angivet,Månedlig_Betaling,\"\"), \"\")","v":""},{"$f":"IFERROR(IF(Lån_Ikke_Betalt*Værdier_Angivet,Hovedstol,\"\"), \"\")","v":""},{"$f":"IFERROR(IF(Lån_Ikke_Betalt*Værdier_Angivet,Renter,\"\"), \"\")","v":""},{"$f":"IFERROR(IF(Lån_Ikke_Betalt*Værdier_Angivet,Slut_saldo,\"\"), \"\")","v":""}]
[null,{"$f":"IFERROR(IF(Lån_Ikke_Betalt*Værdier_Angivet,Betaling_Nummer,\"\"), \"\")","v":""},{"$f":"IFERROR(IF(Lån_Ikke_Betalt*Værdier_Angivet,Betalingsdato,\"\"), \"\")","v":""},{"$f":"IFERROR(IF(Lån_Ikke_Betalt*Værdier_Angivet,Startsaldo,\"\"), \"\")","v":""},{"$f":"IFERROR(IF(Lån_Ikke_Betalt*Værdier_Angivet,Månedlig_Betaling,\"\"), \"\")","v":""},{"$f":"IFERROR(IF(Lån_Ikke_Betalt*Værdier_Angivet,Hovedstol,\"\"), \"\")","v":""},{"$f":"IFERROR(IF(Lån_Ikke_Betalt*Værdier_Angivet,Renter,\"\"), \"\")","v":""},{"$f":"IFERROR(IF(Lån_Ikke_Betalt*Værdier_Angivet,Slut_saldo,\"\"), \"\")","v":""}]
[null,{"$f":"IFERROR(IF(Lån_Ikke_Betalt*Værdier_Angivet,Betaling_Nummer,\"\"), \"\")","v":""},{"$f":"IFERROR(IF(Lån_Ikke_Betalt*Værdier_Angivet,Betalingsdato,\"\"), \"\")","v":""},{"$f":"IFERROR(IF(Lån_Ikke_Betalt*Værdier_Angivet,Startsaldo,\"\"), \"\")","v":""},{"$f":"IFERROR(IF(Lån_Ikke_Betalt*Værdier_Angivet,Månedlig_Betaling,\"\"), \"\")","v":""},{"$f":"IFERROR(IF(Lån_Ikke_Betalt*Værdier_Angivet,Hovedstol,\"\"), \"\")","v":""},{"$f":"IFERROR(IF(Lån_Ikke_Betalt*Værdier_Angivet,Renter,\"\"), \"\")","v":""},{"$f":"IFERROR(IF(Lån_Ikke_Betalt*Værdier_Angivet,Slut_saldo,\"\"), \"\")","v":""}]
[null,{"$f":"IFERROR(IF(Lån_Ikke_Betalt*Værdier_Angivet,Betaling_Nummer,\"\"), \"\")","v":""},{"$f":"IFERROR(IF(Lån_Ikke_Betalt*Værdier_Angivet,Betalingsdato,\"\"), \"\")","v":""},{"$f":"IFERROR(IF(Lån_Ikke_Betalt*Værdier_Angivet,Startsaldo,\"\"), \"\")","v":""},{"$f":"IFERROR(IF(Lån_Ikke_Betalt*Værdier_Angivet,Månedlig_Betaling,\"\"), \"\")","v":""},{"$f":"IFERROR(IF(Lån_Ikke_Betalt*Værdier_Angivet,Hovedstol,\"\"), \"\")","v":""},{"$f":"IFERROR(IF(Lån_Ikke_Betalt*Værdier_Angivet,Renter,\"\"), \"\")","v":""},{"$f":"IFERROR(IF(Lån_Ikke_Betalt*Værdier_Angivet,Slut_saldo,\"\"), \"\")","v":""}]
[null,{"$f":"IFERROR(IF(Lån_Ikke_Betalt*Værdier_Angivet,Betaling_Nummer,\"\"), \"\")","v":""},{"$f":"IFERROR(IF(Lån_Ikke_Betalt*Værdier_Angivet,Betalingsdato,\"\"), \"\")","v":""},{"$f":"IFERROR(IF(Lån_Ikke_Betalt*Værdier_Angivet,Startsaldo,\"\"), \"\")","v":""},{"$f":"IFERROR(IF(Lån_Ikke_Betalt*Værdier_Angivet,Månedlig_Betaling,\"\"), \"\")","v":""},{"$f":"IFERROR(IF(Lån_Ikke_Betalt*Værdier_Angivet,Hovedstol,\"\"), \"\")","v":""},{"$f":"IFERROR(IF(Lån_Ikke_Betalt*Værdier_Angivet,Renter,\"\"), \"\")","v":""},{"$f":"IFERROR(IF(Lån_Ikke_Betalt*Værdier_Angivet,Slut_saldo,\"\"), \"\")","v":""}]
[null,{"$f":"IFERROR(IF(Lån_Ikke_Betalt*Værdier_Angivet,Betaling_Nummer,\"\"), \"\")","v":""},{"$f":"IFERROR(IF(Lån_Ikke_Betalt*Værdier_Angivet,Betalingsdato,\"\"), \"\")","v":""},{"$f":"IFERROR(IF(Lån_Ikke_Betalt*Værdier_Angivet,Startsaldo,\"\"), \"\")","v":""},{"$f":"IFERROR(IF(Lån_Ikke_Betalt*Værdier_Angivet,Månedlig_Betaling,\"\"), \"\")","v":""},{"$f":"IFERROR(IF(Lån_Ikke_Betalt*Værdier_Angivet,Hovedstol,\"\"), \"\")","v":""},{"$f":"IFERROR(IF(Lån_Ikke_Betalt*Værdier_Angivet,Renter,\"\"), \"\")","v":""},{"$f":"IFERROR(IF(Lån_Ikke_Betalt*Værdier_Angivet,Slut_saldo,\"\"), \"\")","v":""}]
[null,{"$f":"IFERROR(IF(Lån_Ikke_Betalt*Værdier_Angivet,Betaling_Nummer,\"\"), \"\")","v":""},{"$f":"IFERROR(IF(Lån_Ikke_Betalt*Værdier_Angivet,Betalingsdato,\"\"), \"\")","v":""},{"$f":"IFERROR(IF(Lån_Ikke_Betalt*Værdier_Angivet,Startsaldo,\"\"), \"\")","v":""},{"$f":"IFERROR(IF(Lån_Ikke_Betalt*Værdier_Angivet,Månedlig_Betaling,\"\"), \"\")","v":""},{"$f":"IFERROR(IF(Lån_Ikke_Betalt*Værdier_Angivet,Hovedstol,\"\"), \"\")","v":""},{"$f":"IFERROR(IF(Lån_Ikke_Betalt*Værdier_Angivet,Renter,\"\"), \"\")","v":""},{"$f":"IFERROR(IF(Lån_Ikke_Betalt*Værdier_Angivet,Slut_saldo,\"\"), \"\")","v":""}]
[null,{"$f":"IFERROR(IF(Lån_Ikke_Betalt*Værdier_Angivet,Betaling_Nummer,\"\"), \"\")","v":""},{"$f":"IFERROR(IF(Lån_Ikke_Betalt*Værdier_Angivet,Betalingsdato,\"\"), \"\")","v":""},{"$f":"IFERROR(IF(Lån_Ikke_Betalt*Værdier_Angivet,Startsaldo,\"\"), \"\")","v":""},{"$f":"IFERROR(IF(Lån_Ikke_Betalt*Værdier_Angivet,Månedlig_Betaling,\"\"), \"\")","v":""},{"$f":"IFERROR(IF(Lån_Ikke_Betalt*Værdier_Angivet,Hovedstol,\"\"), \"\")","v":""},{"$f":"IFERROR(IF(Lån_Ikke_Betalt*Værdier_Angivet,Renter,\"\"), \"\")","v":""},{"$f":"IFERROR(IF(Lån_Ikke_Betalt*Værdier_Angivet,Slut_saldo,\"\"), \"\")","v":""}]
[null,{"$f":"IFERROR(IF(Lån_Ikke_Betalt*Værdier_Angivet,Betaling_Nummer,\"\"), \"\")","v":""},{"$f":"IFERROR(IF(Lån_Ikke_Betalt*Værdier_Angivet,Betalingsdato,\"\"), \"\")","v":""},{"$f":"IFERROR(IF(Lån_Ikke_Betalt*Værdier_Angivet,Startsaldo,\"\"), \"\")","v":""},{"$f":"IFERROR(IF(Lån_Ikke_Betalt*Værdier_Angivet,Månedlig_Betaling,\"\"), \"\")","v":""},{"$f":"IFERROR(IF(Lån_Ikke_Betalt*Værdier_Angivet,Hovedstol,\"\"), \"\")","v":""},{"$f":"IFERROR(IF(Lån_Ikke_Betalt*Værdier_Angivet,Renter,\"\"), \"\")","v":""},{"$f":"IFERROR(IF(Lån_Ikke_Betalt*Værdier_Angivet,Slut_saldo,\"\"), \"\")","v":""}]
[null,{"$f":"IFERROR(IF(Lån_Ikke_Betalt*Værdier_Angivet,Betaling_Nummer,\"\"), \"\")","v":""},{"$f":"IFERROR(IF(Lån_Ikke_Betalt*Værdier_Angivet,Betalingsdato,\"\"), \"\")","v":""},{"$f":"IFERROR(IF(Lån_Ikke_Betalt*Værdier_Angivet,Startsaldo,\"\"), \"\")","v":""},{"$f":"IFERROR(IF(Lån_Ikke_Betalt*Værdier_Angivet,Månedlig_Betaling,\"\"), \"\")","v":""},{"$f":"IFERROR(IF(Lån_Ikke_Betalt*Værdier_Angivet,Hovedstol,\"\"), \"\")","v":""},{"$f":"IFERROR(IF(Lån_Ikke_Betalt*Værdier_Angivet,Renter,\"\"), \"\")","v":""},{"$f":"IFERROR(IF(Lån_Ikke_Betalt*Værdier_Angivet,Slut_saldo,\"\"), \"\")","v":""}]
[null,{"$f":"IFERROR(IF(Lån_Ikke_Betalt*Værdier_Angivet,Betaling_Nummer,\"\"), \"\")","v":""},{"$f":"IFERROR(IF(Lån_Ikke_Betalt*Værdier_Angivet,Betalingsdato,\"\"), \"\")","v":""},{"$f":"IFERROR(IF(Lån_Ikke_Betalt*Værdier_Angivet,Startsaldo,\"\"), \"\")","v":""},{"$f":"IFERROR(IF(Lån_Ikke_Betalt*Værdier_Angivet,Månedlig_Betaling,\"\"), \"\")","v":""},{"$f":"IFERROR(IF(Lån_Ikke_Betalt*Værdier_Angivet,Hovedstol,\"\"), \"\")","v":""},{"$f":"IFERROR(IF(Lån_Ikke_Betalt*Værdier_Angivet,Renter,\"\"), \"\")","v":""},{"$f":"IFERROR(IF(Lån_Ikke_Betalt*Værdier_Angivet,Slut_saldo,\"\"), \"\")","v":""}]
[null,{"$f":"IFERROR(IF(Lån_Ikke_Betalt*Værdier_Angivet,Betaling_Nummer,\"\"), \"\")","v":""},{"$f":"IFERROR(IF(Lån_Ikke_Betalt*Værdier_Angivet,Betalingsdato,\"\"), \"\")","v":""},{"$f":"IFERROR(IF(Lån_Ikke_Betalt*Værdier_Angivet,Startsaldo,\"\"), \"\")","v":""},{"$f":"IFERROR(IF(Lån_Ikke_Betalt*Værdier_Angivet,Månedlig_Betaling,\"\"), \"\")","v":""},{"$f":"IFERROR(IF(Lån_Ikke_Betalt*Værdier_Angivet,Hovedstol,\"\"), \"\")","v":""},{"$f":"IFERROR(IF(Lån_Ikke_Betalt*Værdier_Angivet,Renter,\"\"), \"\")","v":""},{"$f":"IFERROR(IF(Lån_Ikke_Betalt*Værdier_Angivet,Slut_saldo,\"\"), \"\")","v":""}]
[null,{"$f":"IFERROR(IF(Lån_Ikke_Betalt*Værdier_Angivet,Betaling_Nummer,\"\"), \"\")","v":""},{"$f":"IFERROR(IF(Lån_Ikke_Betalt*Værdier_Angivet,Betalingsdato,\"\"), \"\")","v":""},{"$f":"IFERROR(IF(Lån_Ikke_Betalt*Værdier_Angivet,Startsaldo,\"\"), \"\")","v":""},{"$f":"IFERROR(IF(Lån_Ikke_Betalt*Værdier_Angivet,Månedlig_Betaling,\"\"), \"\")","v":""},{"$f":"IFERROR(IF(Lån_Ikke_Betalt*Værdier_Angivet,Hovedstol,\"\"), \"\")","v":""},{"$f":"IFERROR(IF(Lån_Ikke_Betalt*Værdier_Angivet,Renter,\"\"), \"\")","v":""},{"$f":"IFERROR(IF(Lån_Ikke_Betalt*Værdier_Angivet,Slut_saldo,\"\"), \"\")","v":""}]
[null,{"$f":"IFERROR(IF(Lån_Ikke_Betalt*Værdier_Angivet,Betaling_Nummer,\"\"), \"\")","v":""},{"$f":"IFERROR(IF(Lån_Ikke_Betalt*Værdier_Angivet,Betalingsdato,\"\"), \"\")","v":""},{"$f":"IFERROR(IF(Lån_Ikke_Betalt*Værdier_Angivet,Startsaldo,\"\"), \"\")","v":""},{"$f":"IFERROR(IF(Lån_Ikke_Betalt*Værdier_Angivet,Månedlig_Betaling,\"\"), \"\")","v":""},{"$f":"IFERROR(IF(Lån_Ikke_Betalt*Værdier_Angivet,Hovedstol,\"\"), \"\")","v":""},{"$f":"IFERROR(IF(Lån_Ikke_Betalt*Værdier_Angivet,Renter,\"\"), \"\")","v":""},{"$f":"IFERROR(IF(Lån_Ikke_Betalt*Værdier_Angivet,Slut_saldo,\"\"), \"\")","v":""}]
[null,{"$f":"IFERROR(IF(Lån_Ikke_Betalt*Værdier_Angivet,Betaling_Nummer,\"\"), \"\")","v":""},{"$f":"IFERROR(IF(Lån_Ikke_Betalt*Værdier_Angivet,Betalingsdato,\"\"), \"\")","v":""},{"$f":"IFERROR(IF(Lån_Ikke_Betalt*Værdier_Angivet,Startsaldo,\"\"), \"\")","v":""},{"$f":"IFERROR(IF(Lån_Ikke_Betalt*Værdier_Angivet,Månedlig_Betaling,\"\"), \"\")","v":""},{"$f":"IFERROR(IF(Lån_Ikke_Betalt*Værdier_Angivet,Hovedstol,\"\"), \"\")","v":""},{"$f":"IFERROR(IF(Lån_Ikke_Betalt*Værdier_Angivet,Renter,\"\"), \"\")","v":""},{"$f":"IFERROR(IF(Lån_Ikke_Betalt*Værdier_Angivet,Slut_saldo,\"\"), \"\")","v":""}]
[null,{"$f":"IFERROR(IF(Lån_Ikke_Betalt*Værdier_Angivet,Betaling_Nummer,\"\"), \"\")","v":""},{"$f":"IFERROR(IF(Lån_Ikke_Betalt*Værdier_Angivet,Betalingsdato,\"\"), \"\")","v":""},{"$f":"IFERROR(IF(Lån_Ikke_Betalt*Værdier_Angivet,Startsaldo,\"\"), \"\")","v":""},{"$f":"IFERROR(IF(Lån_Ikke_Betalt*Værdier_Angivet,Månedlig_Betaling,\"\"), \"\")","v":""},{"$f":"IFERROR(IF(Lån_Ikke_Betalt*Værdier_Angivet,Hovedstol,\"\"), \"\")","v":""},{"$f":"IFERROR(IF(Lån_Ikke_Betalt*Værdier_Angivet,Renter,\"\"), \"\")","v":""},{"$f":"IFERROR(IF(Lån_Ikke_Betalt*Værdier_Angivet,Slut_saldo,\"\"), \"\")","v":""}]
[null,{"$f":"IFERROR(IF(Lån_Ikke_Betalt*Værdier_Angivet,Betaling_Nummer,\"\"), \"\")","v":""},{"$f":"IFERROR(IF(Lån_Ikke_Betalt*Værdier_Angivet,Betalingsdato,\"\"), \"\")","v":""},{"$f":"IFERROR(IF(Lån_Ikke_Betalt*Værdier_Angivet,Startsaldo,\"\"), \"\")","v":""},{"$f":"IFERROR(IF(Lån_Ikke_Betalt*Værdier_Angivet,Månedlig_Betaling,\"\"), \"\")","v":""},{"$f":"IFERROR(IF(Lån_Ikke_Betalt*Værdier_Angivet,Hovedstol,\"\"), \"\")","v":""},{"$f":"IFERROR(IF(Lån_Ikke_Betalt*Værdier_Angivet,Renter,\"\"), \"\")","v":""},{"$f":"IFERROR(IF(Lån_Ikke_Betalt*Værdier_Angivet,Slut_saldo,\"\"), \"\")","v":""}]
[null,{"$f":"IFERROR(IF(Lån_Ikke_Betalt*Værdier_Angivet,Betaling_Nummer,\"\"), \"\")","v":""},{"$f":"IFERROR(IF(Lån_Ikke_Betalt*Værdier_Angivet,Betalingsdato,\"\"), \"\")","v":""},{"$f":"IFERROR(IF(Lån_Ikke_Betalt*Værdier_Angivet,Startsaldo,\"\"), \"\")","v":""},{"$f":"IFERROR(IF(Lån_Ikke_Betalt*Værdier_Angivet,Månedlig_Betaling,\"\"), \"\")","v":""},{"$f":"IFERROR(IF(Lån_Ikke_Betalt*Værdier_Angivet,Hovedstol,\"\"), \"\")","v":""},{"$f":"IFERROR(IF(Lån_Ikke_Betalt*Værdier_Angivet,Renter,\"\"), \"\")","v":""},{"$f":"IFERROR(IF(Lån_Ikke_Betalt*Værdier_Angivet,Slut_saldo,\"\"), \"\")","v":""}]
[null,{"$f":"IFERROR(IF(Lån_Ikke_Betalt*Værdier_Angivet,Betaling_Nummer,\"\"), \"\")","v":""},{"$f":"IFERROR(IF(Lån_Ikke_Betalt*Værdier_Angivet,Betalingsdato,\"\"), \"\")","v":""},{"$f":"IFERROR(IF(Lån_Ikke_Betalt*Værdier_Angivet,Startsaldo,\"\"), \"\")","v":""},{"$f":"IFERROR(IF(Lån_Ikke_Betalt*Værdier_Angivet,Månedlig_Betaling,\"\"), \"\")","v":""},{"$f":"IFERROR(IF(Lån_Ikke_Betalt*Værdier_Angivet,Hovedstol,\"\"), \"\")","v":""},{"$f":"IFERROR(IF(Lån_Ikke_Betalt*Værdier_Angivet,Renter,\"\"), \"\")","v":""},{"$f":"IFERROR(IF(Lån_Ikke_Betalt*Værdier_Angivet,Slut_saldo,\"\"), \"\")","v":""}]
[null,{"$f":"IFERROR(IF(Lån_Ikke_Betalt*Værdier_Angivet,Betaling_Nummer,\"\"), \"\")","v":""},{"$f":"IFERROR(IF(Lån_Ikke_Betalt*Værdier_Angivet,Betalingsdato,\"\"), \"\")","v":""},{"$f":"IFERROR(IF(Lån_Ikke_Betalt*Værdier_Angivet,Startsaldo,\"\"), \"\")","v":""},{"$f":"IFERROR(IF(Lån_Ikke_Betalt*Værdier_Angivet,Månedlig_Betaling,\"\"), \"\")","v":""},{"$f":"IFERROR(IF(Lån_Ikke_Betalt*Værdier_Angivet,Hovedstol,\"\"), \"\")","v":""},{"$f":"IFERROR(IF(Lån_Ikke_Betalt*Værdier_Angivet,Renter,\"\"), \"\")","v":""},{"$f":"IFERROR(IF(Lån_Ikke_Betalt*Værdier_Angivet,Slut_saldo,\"\"), \"\")","v":""}]
[null,{"$f":"IFERROR(IF(Lån_Ikke_Betalt*Værdier_Angivet,Betaling_Nummer,\"\"), \"\")","v":""},{"$f":"IFERROR(IF(Lån_Ikke_Betalt*Værdier_Angivet,Betalingsdato,\"\"), \"\")","v":""},{"$f":"IFERROR(IF(Lån_Ikke_Betalt*Værdier_Angivet,Startsaldo,\"\"), \"\")","v":""},{"$f":"IFERROR(IF(Lån_Ikke_Betalt*Værdier_Angivet,Månedlig_Betaling,\"\"), \"\")","v":""},{"$f":"IFERROR(IF(Lån_Ikke_Betalt*Værdier_Angivet,Hovedstol,\"\"), \"\")","v":""},{"$f":"IFERROR(IF(Lån_Ikke_Betalt*Værdier_Angivet,Renter,\"\"), \"\")","v":""},{"$f":"IFERROR(IF(Lån_Ikke_Betalt*Værdier_Angivet,Slut_saldo,\"\"), \"\")","v":""}]
[null,{"$f":"IFERROR(IF(Lån_Ikke_Betalt*Værdier_Angivet,Betaling_Nummer,\"\"), \"\")","v":""},{"$f":"IFERROR(IF(Lån_Ikke_Betalt*Værdier_Angivet,Betalingsdato,\"\"), \"\")","v":""},{"$f":"IFERROR(IF(Lån_Ikke_Betalt*Værdier_Angivet,Startsaldo,\"\"), \"\")","v":""},{"$f":"IFERROR(IF(Lån_Ikke_Betalt*Værdier_Angivet,Månedlig_Betaling,\"\"), \"\")","v":""},{"$f":"IFERROR(IF(Lån_Ikke_Betalt*Værdier_Angivet,Hovedstol,\"\"), \"\")","v":""},{"$f":"IFERROR(IF(Lån_Ikke_Betalt*Værdier_Angivet,Renter,\"\"), \"\")","v":""},{"$f":"IFERROR(IF(Lån_Ikke_Betalt*Værdier_Angivet,Slut_saldo,\"\"), \"\")","v":""}]
[null,{"$f":"IFERROR(IF(Lån_Ikke_Betalt*Værdier_Angivet,Betaling_Nummer,\"\"), \"\")","v":""},{"$f":"IFERROR(IF(Lån_Ikke_Betalt*Værdier_Angivet,Betalingsdato,\"\"), \"\")","v":""},{"$f":"IFERROR(IF(Lån_Ikke_Betalt*Værdier_Angivet,Startsaldo,\"\"), \"\")","v":""},{"$f":"IFERROR(IF(Lån_Ikke_Betalt*Værdier_Angivet,Månedlig_Betaling,\"\"), \"\")","v":""},{"$f":"IFERROR(IF(Lån_Ikke_Betalt*Værdier_Angivet,Hovedstol,\"\"), \"\")","v":""},{"$f":"IFERROR(IF(Lån_Ikke_Betalt*Værdier_Angivet,Renter,\"\"), \"\")","v":""},{"$f":"IFERROR(IF(Lån_Ikke_Betalt*Værdier_Angivet,Slut_saldo,\"\"), \"\")","v":""}]
[null,{"$f":"IFERROR(IF(Lån_Ikke_Betalt*Værdier_Angivet,Betaling_Nummer,\"\"), \"\")","v":""},{"$f":"IFERROR(IF(Lån_Ikke_Betalt*Værdier_Angivet,Betalingsdato,\"\"), \"\")","v":""},{"$f":"IFERROR(IF(Lån_Ikke_Betalt*Værdier_Angivet,Startsaldo,\"\"), \"\")","v":""},{"$f":"IFERROR(IF(Lån_Ikke_Betalt*Værdier_Angivet,Månedlig_Betaling,\"\"), \"\")","v":""},{"$f":"IFERROR(IF(Lån_Ikke_Betalt*Værdier_Angivet,Hovedstol,\"\"), \"\")","v":""},{"$f":"IFERROR(IF(Lån_Ikke_Betalt*Værdier_Angivet,Renter,\"\"), \"\")","v":""},{"$f":"IFERROR(IF(Lån_Ikke_Betalt*Værdier_Angivet,Slut_saldo,\"\"), \"\")","v":""}]
[null,{"$f":"IFERROR(IF(Lån_Ikke_Betalt*Værdier_Angivet,Betaling_Nummer,\"\"), \"\")","v":""},{"$f":"IFERROR(IF(Lån_Ikke_Betalt*Værdier_Angivet,Betalingsdato,\"\"), \"\")","v":""},{"$f":"IFERROR(IF(Lån_Ikke_Betalt*Værdier_Angivet,Startsaldo,\"\"), \"\")","v":""},{"$f":"IFERROR(IF(Lån_Ikke_Betalt*Værdier_Angivet,Månedlig_Betaling,\"\"), \"\")","v":""},{"$f":"IFERROR(IF(Lån_Ikke_Betalt*Værdier_Angivet,Hovedstol,\"\"), \"\")","v":""},{"$f":"IFERROR(IF(Lån_Ikke_Betalt*Værdier_Angivet,Renter,\"\"), \"\")","v":""},{"$f":"IFERROR(IF(Lån_Ikke_Betalt*Værdier_Angivet,Slut_saldo,\"\"), \"\")","v":""}]
[null,{"$f":"IFERROR(IF(Lån_Ikke_Betalt*Værdier_Angivet,Betaling_Nummer,\"\"), \"\")","v":""},{"$f":"IFERROR(IF(Lån_Ikke_Betalt*Værdier_Angivet,Betalingsdato,\"\"), \"\")","v":""},{"$f":"IFERROR(IF(Lån_Ikke_Betalt*Værdier_Angivet,Startsaldo,\"\"), \"\")","v":""},{"$f":"IFERROR(IF(Lån_Ikke_Betalt*Værdier_Angivet,Månedlig_Betaling,\"\"), \"\")","v":""},{"$f":"IFERROR(IF(Lån_Ikke_Betalt*Værdier_Angivet,Hovedstol,\"\"), \"\")","v":""},{"$f":"IFERROR(IF(Lån_Ikke_Betalt*Værdier_Angivet,Renter,\"\"), \"\")","v":""},{"$f":"IFERROR(IF(Lån_Ikke_Betalt*Værdier_Angivet,Slut_saldo,\"\"), \"\")","v":""}]
[null,{"$f":"IFERROR(IF(Lån_Ikke_Betalt*Værdier_Angivet,Betaling_Nummer,\"\"), \"\")","v":""},{"$f":"IFERROR(IF(Lån_Ikke_Betalt*Værdier_Angivet,Betalingsdato,\"\"), \"\")","v":""},{"$f":"IFERROR(IF(Lån_Ikke_Betalt*Værdier_Angivet,Startsaldo,\"\"), \"\")","v":""},{"$f":"IFERROR(IF(Lån_Ikke_Betalt*Værdier_Angivet,Månedlig_Betaling,\"\"), \"\")","v":""},{"$f":"IFERROR(IF(Lån_Ikke_Betalt*Værdier_Angivet,Hovedstol,\"\"), \"\")","v":""},{"$f":"IFERROR(IF(Lån_Ikke_Betalt*Værdier_Angivet,Renter,\"\"), \"\")","v":""},{"$f":"IFERROR(IF(Lån_Ikke_Betalt*Værdier_Angivet,Slut_saldo,\"\"), \"\")","v":""}]
[null,{"$f":"IFERROR(IF(Lån_Ikke_Betalt*Værdier_Angivet,Betaling_Nummer,\"\"), \"\")","v":""},{"$f":"IFERROR(IF(Lån_Ikke_Betalt*Værdier_Angivet,Betalingsdato,\"\"), \"\")","v":""},{"$f":"IFERROR(IF(Lån_Ikke_Betalt*Værdier_Angivet,Startsaldo,\"\"), \"\")","v":""},{"$f":"IFERROR(IF(Lån_Ikke_Betalt*Værdier_Angivet,Månedlig_Betaling,\"\"), \"\")","v":""},{"$f":"IFERROR(IF(Lån_Ikke_Betalt*Værdier_Angivet,Hovedstol,\"\"), \"\")","v":""},{"$f":"IFERROR(IF(Lån_Ikke_Betalt*Værdier_Angivet,Renter,\"\"), \"\")","v":""},{"$f":"IFERROR(IF(Lån_Ikke_Betalt*Værdier_Angivet,Slut_saldo,\"\"), \"\")","v":""}]
[null,{"$f":"IFERROR(IF(Lån_Ikke_Betalt*Værdier_Angivet,Betaling_Nummer,\"\"), \"\")","v":""},{"$f":"IFERROR(IF(Lån_Ikke_Betalt*Værdier_Angivet,Betalingsdato,\"\"), \"\")","v":""},{"$f":"IFERROR(IF(Lån_Ikke_Betalt*Værdier_Angivet,Startsaldo,\"\"), \"\")","v":""},{"$f":"IFERROR(IF(Lån_Ikke_Betalt*Værdier_Angivet,Månedlig_Betaling,\"\"), \"\")","v":""},{"$f":"IFERROR(IF(Lån_Ikke_Betalt*Værdier_Angivet,Hovedstol,\"\"), \"\")","v":""},{"$f":"IFERROR(IF(Lån_Ikke_Betalt*Værdier_Angivet,Renter,\"\"), \"\")","v":""},{"$f":"IFERROR(IF(Lån_Ikke_Betalt*Værdier_Angivet,Slut_saldo,\"\"), \"\")","v":""}]
[null,{"$f":"IFERROR(IF(Lån_Ikke_Betalt*Værdier_Angivet,Betaling_Nummer,\"\"), \"\")","v":""},{"$f":"IFERROR(IF(Lån_Ikke_Betalt*Værdier_Angivet,Betalingsdato,\"\"), \"\")","v":""},{"$f":"IFERROR(IF(Lån_Ikke_Betalt*Værdier_Angivet,Startsaldo,\"\"), \"\")","v":""},{"$f":"IFERROR(IF(Lån_Ikke_Betalt*Værdier_Angivet,Månedlig_Betaling,\"\"), \"\")","v":""},{"$f":"IFERROR(IF(Lån_Ikke_Betalt*Værdier_Angivet,Hovedstol,\"\"), \"\")","v":""},{"$f":"IFERROR(IF(Lån_Ikke_Betalt*Værdier_Angivet,Renter,\"\"), \"\")","v":""},{"$f":"IFERROR(IF(Lån_Ikke_Betalt*Værdier_Angivet,Slut_saldo,\"\"), \"\")","v":""}]
[null,{"$f":"IFERROR(IF(Lån_Ikke_Betalt*Værdier_Angivet,Betaling_Nummer,\"\"), \"\")","v":""},{"$f":"IFERROR(IF(Lån_Ikke_Betalt*Værdier_Angivet,Betalingsdato,\"\"), \"\")","v":""},{"$f":"IFERROR(IF(Lån_Ikke_Betalt*Værdier_Angivet,Startsaldo,\"\"), \"\")","v":""},{"$f":"IFERROR(IF(Lån_Ikke_Betalt*Værdier_Angivet,Månedlig_Betaling,\"\"), \"\")","v":""},{"$f":"IFERROR(IF(Lån_Ikke_Betalt*Værdier_Angivet,Hovedstol,\"\"), \"\")","v":""},{"$f":"IFERROR(IF(Lån_Ikke_Betalt*Værdier_Angivet,Renter,\"\"), \"\")","v":""},{"$f":"IFERROR(IF(Lån_Ikke_Betalt*Værdier_Angivet,Slut_saldo,\"\"), \"\")","v":""}]
[null,{"$f":"IFERROR(IF(Lån_Ikke_Betalt*Værdier_Angivet,Betaling_Nummer,\"\"), \"\")","v":""},{"$f":"IFERROR(IF(Lån_Ikke_Betalt*Værdier_Angivet,Betalingsdato,\"\"), \"\")","v":""},{"$f":"IFERROR(IF(Lån_Ikke_Betalt*Værdier_Angivet,Startsaldo,\"\"), \"\")","v":""},{"$f":"IFERROR(IF(Lån_Ikke_Betalt*Værdier_Angivet,Månedlig_Betaling,\"\"), \"\")","v":""},{"$f":"IFERROR(IF(Lån_Ikke_Betalt*Værdier_Angivet,Hovedstol,\"\"), \"\")","v":""},{"$f":"IFERROR(IF(Lån_Ikke_Betalt*Værdier_Angivet,Renter,\"\"), \"\")","v":""},{"$f":"IFERROR(IF(Lån_Ikke_Betalt*Værdier_Angivet,Slut_saldo,\"\"), \"\")","v":""}]
[null,{"$f":"IFERROR(IF(Lån_Ikke_Betalt*Værdier_Angivet,Betaling_Nummer,\"\"), \"\")","v":""},{"$f":"IFERROR(IF(Lån_Ikke_Betalt*Værdier_Angivet,Betalingsdato,\"\"), \"\")","v":""},{"$f":"IFERROR(IF(Lån_Ikke_Betalt*Værdier_Angivet,Startsaldo,\"\"), \"\")","v":""},{"$f":"IFERROR(IF(Lån_Ikke_Betalt*Værdier_Angivet,Månedlig_Betaling,\"\"), \"\")","v":""},{"$f":"IFERROR(IF(Lån_Ikke_Betalt*Værdier_Angivet,Hovedstol,\"\"), \"\")","v":""},{"$f":"IFERROR(IF(Lån_Ikke_Betalt*Værdier_Angivet,Renter,\"\"), \"\")","v":""},{"$f":"IFERROR(IF(Lån_Ikke_Betalt*Værdier_Angivet,Slut_saldo,\"\"), \"\")","v":""}]
[null,{"$f":"IFERROR(IF(Lån_Ikke_Betalt*Værdier_Angivet,Betaling_Nummer,\"\"), \"\")","v":""},{"$f":"IFERROR(IF(Lån_Ikke_Betalt*Værdier_Angivet,Betalingsdato,\"\"), \"\")","v":""},{"$f":"IFERROR(IF(Lån_Ikke_Betalt*Værdier_Angivet,Startsaldo,\"\"), \"\")","v":""},{"$f":"IFERROR(IF(Lån_Ikke_Betalt*Værdier_Angivet,Månedlig_Betaling,\"\"), \"\")","v":""},{"$f":"IFERROR(IF(Lån_Ikke_Betalt*Værdier_Angivet,Hovedstol,\"\"), \"\")","v":""},{"$f":"IFERROR(IF(Lån_Ikke_Betalt*Værdier_Angivet,Renter,\"\"), \"\")","v":""},{"$f":"IFERROR(IF(Lån_Ikke_Betalt*Værdier_Angivet,Slut_saldo,\"\"), \"\")","v":""}]
[null,{"$f":"IFERROR(IF(Lån_Ikke_Betalt*Værdier_Angivet,Betaling_Nummer,\"\"), \"\")","v":""},{"$f":"IFERROR(IF(Lån_Ikke_Betalt*Værdier_Angivet,Betalingsdato,\"\"), \"\")","v":""},{"$f":"IFERROR(IF(Lån_Ikke_Betalt*Værdier_Angivet,Startsaldo,\"\"), \"\")","v":""},{"$f":"IFERROR(IF(Lån_Ikke_Betalt*Værdier_Angivet,Månedlig_Betaling,\"\"), \"\")","v":""},{"$f":"IFERROR(IF(Lån_Ikke_Betalt*Værdier_Angivet,Hovedstol,\"\"), \"\")","v":""},{"$f":"IFERROR(IF(Lån_Ikke_Betalt*Værdier_Angivet,Renter,\"\"), \"\")","v":""},{"$f":"IFERROR(IF(Lån_Ikke_Betalt*Værdier_Angivet,Slut_saldo,\"\"), \"\")","v":""}]
[null,{"$f":"IFERROR(IF(Lån_Ikke_Betalt*Værdier_Angivet,Betaling_Nummer,\"\"), \"\")","v":""},{"$f":"IFERROR(IF(Lån_Ikke_Betalt*Værdier_Angivet,Betalingsdato,\"\"), \"\")","v":""},{"$f":"IFERROR(IF(Lån_Ikke_Betalt*Værdier_Angivet,Startsaldo,\"\"), \"\")","v":""},{"$f":"IFERROR(IF(Lån_Ikke_Betalt*Værdier_Angivet,Månedlig_Betaling,\"\"), \"\")","v":""},{"$f":"IFERROR(IF(Lån_Ikke_Betalt*Værdier_Angivet,Hovedstol,\"\"), \"\")","v":""},{"$f":"IFERROR(IF(Lån_Ikke_Betalt*Værdier_Angivet,Renter,\"\"), \"\")","v":""},{"$f":"IFERROR(IF(Lån_Ikke_Betalt*Værdier_Angivet,Slut_saldo,\"\"), \"\")","v":""}]
[null,{"$f":"IFERROR(IF(Lån_Ikke_Betalt*Værdier_Angivet,Betaling_Nummer,\"\"), \"\")","v":""},{"$f":"IFERROR(IF(Lån_Ikke_Betalt*Værdier_Angivet,Betalingsdato,\"\"), \"\")","v":""},{"$f":"IFERROR(IF(Lån_Ikke_Betalt*Værdier_Angivet,Startsaldo,\"\"), \"\")","v":""},{"$f":"IFERROR(IF(Lån_Ikke_Betalt*Værdier_Angivet,Månedlig_Betaling,\"\"), \"\")","v":""},{"$f":"IFERROR(IF(Lån_Ikke_Betalt*Værdier_Angivet,Hovedstol,\"\"), \"\")","v":""},{"$f":"IFERROR(IF(Lån_Ikke_Betalt*Værdier_Angivet,Renter,\"\"), \"\")","v":""},{"$f":"IFERROR(IF(Lån_Ikke_Betalt*Værdier_Angivet,Slut_saldo,\"\"), \"\")","v":""}]
[null,{"$f":"IFERROR(IF(Lån_Ikke_Betalt*Værdier_Angivet,Betaling_Nummer,\"\"), \"\")","v":""},{"$f":"IFERROR(IF(Lån_Ikke_Betalt*Værdier_Angivet,Betalingsdato,\"\"), \"\")","v":""},{"$f":"IFERROR(IF(Lån_Ikke_Betalt*Værdier_Angivet,Startsaldo,\"\"), \"\")","v":""},{"$f":"IFERROR(IF(Lån_Ikke_Betalt*Værdier_Angivet,Månedlig_Betaling,\"\"), \"\")","v":""},{"$f":"IFERROR(IF(Lån_Ikke_Betalt*Værdier_Angivet,Hovedstol,\"\"), \"\")","v":""},{"$f":"IFERROR(IF(Lån_Ikke_Betalt*Værdier_Angivet,Renter,\"\"), \"\")","v":""},{"$f":"IFERROR(IF(Lån_Ikke_Betalt*Værdier_Angivet,Slut_saldo,\"\"), \"\")","v":""}]
[null,{"$f":"IFERROR(IF(Lån_Ikke_Betalt*Værdier_Angivet,Betaling_Nummer,\"\"), \"\")","v":""},{"$f":"IFERROR(IF(Lån_Ikke_Betalt*Værdier_Angivet,Betalingsdato,\"\"), \"\")","v":""},{"$f":"IFERROR(IF(Lån_Ikke_Betalt*Værdier_Angivet,Startsaldo,\"\"), \"\")","v":""},{"$f":"IFERROR(IF(Lån_Ikke_Betalt*Værdier_Angivet,Månedlig_Betaling,\"\"), \"\")","v":""},{"$f":"IFERROR(IF(Lån_Ikke_Betalt*Værdier_Angivet,Hovedstol,\"\"), \"\")","v":""},{"$f":"IFERROR(IF(Lån_Ikke_Betalt*Værdier_Angivet,Renter,\"\"), \"\")","v":""},{"$f":"IFERROR(IF(Lån_Ikke_Betalt*Værdier_Angivet,Slut_saldo,\"\"), \"\")","v":""}]
[null,{"$f":"IFERROR(IF(Lån_Ikke_Betalt*Værdier_Angivet,Betaling_Nummer,\"\"), \"\")","v":""},{"$f":"IFERROR(IF(Lån_Ikke_Betalt*Værdier_Angivet,Betalingsdato,\"\"), \"\")","v":""},{"$f":"IFERROR(IF(Lån_Ikke_Betalt*Værdier_Angivet,Startsaldo,\"\"), \"\")","v":""},{"$f":"IFERROR(IF(Lån_Ikke_Betalt*Værdier_Angivet,Månedlig_Betaling,\"\"), \"\")","v":""},{"$f":"IFERROR(IF(Lån_Ikke_Betalt*Værdier_Angivet,Hovedstol,\"\"), \"\")","v":""},{"$f":"IFERROR(IF(Lån_Ikke_Betalt*Værdier_Angivet,Renter,\"\"), \"\")","v":""},{"$f":"IFERROR(IF(Lån_Ikke_Betalt*Værdier_Angivet,Slut_saldo,\"\"), \"\")","v":""}]
[null,{"$f":"IFERROR(IF(Lån_Ikke_Betalt*Værdier_Angivet,Betaling_Nummer,\"\"), \"\")","v":""},{"$f":"IFERROR(IF(Lån_Ikke_Betalt*Værdier_Angivet,Betalingsdato,\"\"), \"\")","v":""},{"$f":"IFERROR(IF(Lån_Ikke_Betalt*Værdier_Angivet,Startsaldo,\"\"), \"\")","v":""},{"$f":"IFERROR(IF(Lån_Ikke_Betalt*Værdier_Angivet,Månedlig_Betaling,\"\"), \"\")","v":""},{"$f":"IFERROR(IF(Lån_Ikke_Betalt*Værdier_Angivet,Hovedstol,\"\"), \"\")","v":""},{"$f":"IFERROR(IF(Lån_Ikke_Betalt*Værdier_Angivet,Renter,\"\"), \"\")","v":""},{"$f":"IFERROR(IF(Lån_Ikke_Betalt*Værdier_Angivet,Slut_saldo,\"\"), \"\")","v":""}]
[null,{"$f":"IFERROR(IF(Lån_Ikke_Betalt*Værdier_Angivet,Betaling_Nummer,\"\"), \"\")","v":""},{"$f":"IFERROR(IF(Lån_Ikke_Betalt*Værdier_Angivet,Betalingsdato,\"\"), \"\")","v":""},{"$f":"IFERROR(IF(Lån_Ikke_Betalt*Værdier_Angivet,Startsaldo,\"\"), \"\")","v":""},{"$f":"IFERROR(IF(Lån_Ikke_Betalt*Værdier_Angivet,Månedlig_Betaling,\"\"), \"\")","v":""},{"$f":"IFERROR(IF(Lån_Ikke_Betalt*Værdier_Angivet,Hovedstol,\"\"), \"\")","v":""},{"$f":"IFERROR(IF(Lån_Ikke_Betalt*Værdier_Angivet,Renter,\"\"), \"\")","v":""},{"$f":"IFERROR(IF(Lån_Ikke_Betalt*Værdier_Angivet,Slut_saldo,\"\"), \"\")","v":""}]
[null,{"$f":"IFERROR(IF(Lån_Ikke_Betalt*Værdier_Angivet,Betaling_Nummer,\"\"), \"\")","v":""},{"$f":"IFERROR(IF(Lån_Ikke_Betalt*Værdier_Angivet,Betalingsdato,\"\"), \"\")","v":""},{"$f":"IFERROR(IF(Lån_Ikke_Betalt*Værdier_Angivet,Startsaldo,\"\"), \"\")","v":""},{"$f":"IFERROR(IF(Lån_Ikke_Betalt*Værdier_Angivet,Månedlig_Betaling,\"\"), \"\")","v":""},{"$f":"IFERROR(IF(Lån_Ikke_Betalt*Værdier_Angivet,Hovedstol,\"\"), \"\")","v":""},{"$f":"IFERROR(IF(Lån_Ikke_Betalt*Værdier_Angivet,Renter,\"\"), \"\")","v":""},{"$f":"IFERROR(IF(Lån_Ikke_Betalt*Værdier_Angivet,Slut_saldo,\"\"), \"\")","v":""}]
[null,{"$f":"IFERROR(IF(Lån_Ikke_Betalt*Værdier_Angivet,Betaling_Nummer,\"\"), \"\")","v":""},{"$f":"IFERROR(IF(Lån_Ikke_Betalt*Værdier_Angivet,Betalingsdato,\"\"), \"\")","v":""},{"$f":"IFERROR(IF(Lån_Ikke_Betalt*Værdier_Angivet,Startsaldo,\"\"), \"\")","v":""},{"$f":"IFERROR(IF(Lån_Ikke_Betalt*Værdier_Angivet,Månedlig_Betaling,\"\"), \"\")","v":""},{"$f":"IFERROR(IF(Lån_Ikke_Betalt*Værdier_Angivet,Hovedstol,\"\"), \"\")","v":""},{"$f":"IFERROR(IF(Lån_Ikke_Betalt*Værdier_Angivet,Renter,\"\"), \"\")","v":""},{"$f":"IFERROR(IF(Lån_Ikke_Betalt*Værdier_Angivet,Slut_saldo,\"\"), \"\")","v":""}]
[null,{"$f":"IFERROR(IF(Lån_Ikke_Betalt*Værdier_Angivet,Betaling_Nummer,\"\"), \"\")","v":""},{"$f":"IFERROR(IF(Lån_Ikke_Betalt*Værdier_Angivet,Betalingsdato,\"\"), \"\")","v":""},{"$f":"IFERROR(IF(Lån_Ikke_Betalt*Værdier_Angivet,Startsaldo,\"\"), \"\")","v":""},{"$f":"IFERROR(IF(Lån_Ikke_Betalt*Værdier_Angivet,Månedlig_Betaling,\"\"), \"\")","v":""},{"$f":"IFERROR(IF(Lån_Ikke_Betalt*Værdier_Angivet,Hovedstol,\"\"), \"\")","v":""},{"$f":"IFERROR(IF(Lån_Ikke_Betalt*Værdier_Angivet,Renter,\"\"), \"\")","v":""},{"$f":"IFERROR(IF(Lån_Ikke_Betalt*Værdier_Angivet,Slut_saldo,\"\"), \"\")","v":""}]
[null,{"$f":"IFERROR(IF(Lån_Ikke_Betalt*Værdier_Angivet,Betaling_Nummer,\"\"), \"\")","v":""},{"$f":"IFERROR(IF(Lån_Ikke_Betalt*Værdier_Angivet,Betalingsdato,\"\"), \"\")","v":""},{"$f":"IFERROR(IF(Lån_Ikke_Betalt*Værdier_Angivet,Startsaldo,\"\"), \"\")","v":""},{"$f":"IFERROR(IF(Lån_Ikke_Betalt*Værdier_Angivet,Månedlig_Betaling,\"\"), \"\")","v":""},{"$f":"IFERROR(IF(Lån_Ikke_Betalt*Værdier_Angivet,Hovedstol,\"\"), \"\")","v":""},{"$f":"IFERROR(IF(Lån_Ikke_Betalt*Værdier_Angivet,Renter,\"\"), \"\")","v":""},{"$f":"IFERROR(IF(Lån_Ikke_Betalt*Værdier_Angivet,Slut_saldo,\"\"), \"\")","v":""}]
[null,{"$f":"IFERROR(IF(Lån_Ikke_Betalt*Værdier_Angivet,Betaling_Nummer,\"\"), \"\")","v":""},{"$f":"IFERROR(IF(Lån_Ikke_Betalt*Værdier_Angivet,Betalingsdato,\"\"), \"\")","v":""},{"$f":"IFERROR(IF(Lån_Ikke_Betalt*Værdier_Angivet,Startsaldo,\"\"), \"\")","v":""},{"$f":"IFERROR(IF(Lån_Ikke_Betalt*Værdier_Angivet,Månedlig_Betaling,\"\"), \"\")","v":""},{"$f":"IFERROR(IF(Lån_Ikke_Betalt*Værdier_Angivet,Hovedstol,\"\"), \"\")","v":""},{"$f":"IFERROR(IF(Lån_Ikke_Betalt*Værdier_Angivet,Renter,\"\"), \"\")","v":""},{"$f":"IFERROR(IF(Lån_Ikke_Betalt*Værdier_Angivet,Slut_saldo,\"\"), \"\")","v":""}]
[null,{"$f":"IFERROR(IF(Lån_Ikke_Betalt*Værdier_Angivet,Betaling_Nummer,\"\"), \"\")","v":""},{"$f":"IFERROR(IF(Lån_Ikke_Betalt*Værdier_Angivet,Betalingsdato,\"\"), \"\")","v":""},{"$f":"IFERROR(IF(Lån_Ikke_Betalt*Værdier_Angivet,Startsaldo,\"\"), \"\")","v":""},{"$f":"IFERROR(IF(Lån_Ikke_Betalt*Værdier_Angivet,Månedlig_Betaling,\"\"), \"\")","v":""},{"$f":"IFERROR(IF(Lån_Ikke_Betalt*Værdier_Angivet,Hovedstol,\"\"), \"\")","v":""},{"$f":"IFERROR(IF(Lån_Ikke_Betalt*Værdier_Angivet,Renter,\"\"), \"\")","v":""},{"$f":"IFERROR(IF(Lån_Ikke_Betalt*Værdier_Angivet,Slut_saldo,\"\"), \"\")","v":""}]
[null,{"$f":"IFERROR(IF(Lån_Ikke_Betalt*Værdier_Angivet,Betaling_Nummer,\"\"), \"\")","v":""},{"$f":"IFERROR(IF(Lån_Ikke_Betalt*Værdier_Angivet,Betalingsdato,\"\"), \"\")","v":""},{"$f":"IFERROR(IF(Lån_Ikke_Betalt*Værdier_Angivet,Startsaldo,\"\"), \"\")","v":""},{"$f":"IFERROR(IF(Lån_Ikke_Betalt*Værdier_Angivet,Månedlig_Betaling,\"\"), \"\")","v":""},{"$f":"IFERROR(IF(Lån_Ikke_Betalt*Værdier_Angivet,Hovedstol,\"\"), \"\")","v":""},{"$f":"IFERROR(IF(Lån_Ikke_Betalt*Værdier_Angivet,Renter,\"\"), \"\")","v":""},{"$f":"IFERROR(IF(Lån_Ikke_Betalt*Værdier_Angivet,Slut_saldo,\"\"), \"\")","v":""}]
[null,{"$f":"IFERROR(IF(Lån_Ikke_Betalt*Værdier_Angivet,Betaling_Nummer,\"\"), \"\")","v":""},{"$f":"IFERROR(IF(Lån_Ikke_Betalt*Værdier_Angivet,Betalingsdato,\"\"), \"\")","v":""},{"$f":"IFERROR(IF(Lån_Ikke_Betalt*Værdier_Angivet,Startsaldo,\"\"), \"\")","v":""},{"$f":"IFERROR(IF(Lån_Ikke_Betalt*Værdier_Angivet,Månedlig_Betaling,\"\"), \"\")","v":""},{"$f":"IFERROR(IF(Lån_Ikke_Betalt*Værdier_Angivet,Hovedstol,\"\"), \"\")","v":""},{"$f":"IFERROR(IF(Lån_Ikke_Betalt*Værdier_Angivet,Renter,\"\"), \"\")","v":""},{"$f":"IFERROR(IF(Lån_Ikke_Betalt*Værdier_Angivet,Slut_saldo,\"\"), \"\")","v":""}]
[null,{"$f":"IFERROR(IF(Lån_Ikke_Betalt*Værdier_Angivet,Betaling_Nummer,\"\"), \"\")","v":""},{"$f":"IFERROR(IF(Lån_Ikke_Betalt*Værdier_Angivet,Betalingsdato,\"\"), \"\")","v":""},{"$f":"IFERROR(IF(Lån_Ikke_Betalt*Værdier_Angivet,Startsaldo,\"\"), \"\")","v":""},{"$f":"IFERROR(IF(Lån_Ikke_Betalt*Værdier_Angivet,Månedlig_Betaling,\"\"), \"\")","v":""},{"$f":"IFERROR(IF(Lån_Ikke_Betalt*Værdier_Angivet,Hovedstol,\"\"), \"\")","v":""},{"$f":"IFERROR(IF(Lån_Ikke_Betalt*Værdier_Angivet,Renter,\"\"), \"\")","v":""},{"$f":"IFERROR(IF(Lån_Ikke_Betalt*Værdier_Angivet,Slut_saldo,\"\"), \"\")","v":""}]
[null,{"$f":"IFERROR(IF(Lån_Ikke_Betalt*Værdier_Angivet,Betaling_Nummer,\"\"), \"\")","v":""},{"$f":"IFERROR(IF(Lån_Ikke_Betalt*Værdier_Angivet,Betalingsdato,\"\"), \"\")","v":""},{"$f":"IFERROR(IF(Lån_Ikke_Betalt*Værdier_Angivet,Startsaldo,\"\"), \"\")","v":""},{"$f":"IFERROR(IF(Lån_Ikke_Betalt*Værdier_Angivet,Månedlig_Betaling,\"\"), \"\")","v":""},{"$f":"IFERROR(IF(Lån_Ikke_Betalt*Værdier_Angivet,Hovedstol,\"\"), \"\")","v":""},{"$f":"IFERROR(IF(Lån_Ikke_Betalt*Værdier_Angivet,Renter,\"\"), \"\")","v":""},{"$f":"IFERROR(IF(Lån_Ikke_Betalt*Værdier_Angivet,Slut_saldo,\"\"), \"\")","v":""}]
[null,{"$f":"IFERROR(IF(Lån_Ikke_Betalt*Værdier_Angivet,Betaling_Nummer,\"\"), \"\")","v":""},{"$f":"IFERROR(IF(Lån_Ikke_Betalt*Værdier_Angivet,Betalingsdato,\"\"), \"\")","v":""},{"$f":"IFERROR(IF(Lån_Ikke_Betalt*Værdier_Angivet,Startsaldo,\"\"), \"\")","v":""},{"$f":"IFERROR(IF(Lån_Ikke_Betalt*Værdier_Angivet,Månedlig_Betaling,\"\"), \"\")","v":""},{"$f":"IFERROR(IF(Lån_Ikke_Betalt*Værdier_Angivet,Hovedstol,\"\"), \"\")","v":""},{"$f":"IFERROR(IF(Lån_Ikke_Betalt*Værdier_Angivet,Renter,\"\"), \"\")","v":""},{"$f":"IFERROR(IF(Lån_Ikke_Betalt*Værdier_Angivet,Slut_saldo,\"\"), \"\")","v":""}]
[null,{"$f":"IFERROR(IF(Lån_Ikke_Betalt*Værdier_Angivet,Betaling_Nummer,\"\"), \"\")","v":""},{"$f":"IFERROR(IF(Lån_Ikke_Betalt*Værdier_Angivet,Betalingsdato,\"\"), \"\")","v":""},{"$f":"IFERROR(IF(Lån_Ikke_Betalt*Værdier_Angivet,Startsaldo,\"\"), \"\")","v":""},{"$f":"IFERROR(IF(Lån_Ikke_Betalt*Værdier_Angivet,Månedlig_Betaling,\"\"), \"\")","v":""},{"$f":"IFERROR(IF(Lån_Ikke_Betalt*Værdier_Angivet,Hovedstol,\"\"), \"\")","v":""},{"$f":"IFERROR(IF(Lån_Ikke_Betalt*Værdier_Angivet,Renter,\"\"), \"\")","v":""},{"$f":"IFERROR(IF(Lån_Ikke_Betalt*Værdier_Angivet,Slut_saldo,\"\"), \"\")","v":""}]
[null,{"$f":"IFERROR(IF(Lån_Ikke_Betalt*Værdier_Angivet,Betaling_Nummer,\"\"), \"\")","v":""},{"$f":"IFERROR(IF(Lån_Ikke_Betalt*Værdier_Angivet,Betalingsdato,\"\"), \"\")","v":""},{"$f":"IFERROR(IF(Lån_Ikke_Betalt*Værdier_Angivet,Startsaldo,\"\"), \"\")","v":""},{"$f":"IFERROR(IF(Lån_Ikke_Betalt*Værdier_Angivet,Månedlig_Betaling,\"\"), \"\")","v":""},{"$f":"IFERROR(IF(Lån_Ikke_Betalt*Værdier_Angivet,Hovedstol,\"\"), \"\")","v":""},{"$f":"IFERROR(IF(Lån_Ikke_Betalt*Værdier_Angivet,Renter,\"\"), \"\")","v":""},{"$f":"IFERROR(IF(Lån_Ikke_Betalt*Værdier_Angivet,Slut_saldo,\"\"), \"\")","v":""}]
[null,{"$f":"IFERROR(IF(Lån_Ikke_Betalt*Værdier_Angivet,Betaling_Nummer,\"\"), \"\")","v":""},{"$f":"IFERROR(IF(Lån_Ikke_Betalt*Værdier_Angivet,Betalingsdato,\"\"), \"\")","v":""},{"$f":"IFERROR(IF(Lån_Ikke_Betalt*Værdier_Angivet,Startsaldo,\"\"), \"\")","v":""},{"$f":"IFERROR(IF(Lån_Ikke_Betalt*Værdier_Angivet,Månedlig_Betaling,\"\"), \"\")","v":""},{"$f":"IFERROR(IF(Lån_Ikke_Betalt*Værdier_Angivet,Hovedstol,\"\"), \"\")","v":""},{"$f":"IFERROR(IF(Lån_Ikke_Betalt*Værdier_Angivet,Renter,\"\"), \"\")","v":""},{"$f":"IFERROR(IF(Lån_Ikke_Betalt*Værdier_Angivet,Slut_saldo,\"\"), \"\")","v":""}]
[null,{"$f":"IFERROR(IF(Lån_Ikke_Betalt*Værdier_Angivet,Betaling_Nummer,\"\"), \"\")","v":""},{"$f":"IFERROR(IF(Lån_Ikke_Betalt*Værdier_Angivet,Betalingsdato,\"\"), \"\")","v":""},{"$f":"IFERROR(IF(Lån_Ikke_Betalt*Værdier_Angivet,Startsaldo,\"\"), \"\")","v":""},{"$f":"IFERROR(IF(Lån_Ikke_Betalt*Værdier_Angivet,Månedlig_Betaling,\"\"), \"\")","v":""},{"$f":"IFERROR(IF(Lån_Ikke_Betalt*Værdier_Angivet,Hovedstol,\"\"), \"\")","v":""},{"$f":"IFERROR(IF(Lån_Ikke_Betalt*Værdier_Angivet,Renter,\"\"), \"\")","v":""},{"$f":"IFERROR(IF(Lån_Ikke_Betalt*Værdier_Angivet,Slut_saldo,\"\"), \"\")","v":""}]
[null,{"$f":"IFERROR(IF(Lån_Ikke_Betalt*Værdier_Angivet,Betaling_Nummer,\"\"), \"\")","v":""},{"$f":"IFERROR(IF(Lån_Ikke_Betalt*Værdier_Angivet,Betalingsdato,\"\"), \"\")","v":""},{"$f":"IFERROR(IF(Lån_Ikke_Betalt*Værdier_Angivet,Startsaldo,\"\"), \"\")","v":""},{"$f":"IFERROR(IF(Lån_Ikke_Betalt*Værdier_Angivet,Månedlig_Betaling,\"\"), \"\")","v":""},{"$f":"IFERROR(IF(Lån_Ikke_Betalt*Værdier_Angivet,Hovedstol,\"\"), \"\")","v":""},{"$f":"IFERROR(IF(Lån_Ikke_Betalt*Værdier_Angivet,Renter,\"\"), \"\")","v":""},{"$f":"IFERROR(IF(Lån_Ikke_Betalt*Værdier_Angivet,Slut_saldo,\"\"), \"\")","v":""}]
[null,{"$f":"IFERROR(IF(Lån_Ikke_Betalt*Værdier_Angivet,Betaling_Nummer,\"\"), \"\")","v":""},{"$f":"IFERROR(IF(Lån_Ikke_Betalt*Værdier_Angivet,Betalingsdato,\"\"), \"\")","v":""},{"$f":"IFERROR(IF(Lån_Ikke_Betalt*Værdier_Angivet,Startsaldo,\"\"), \"\")","v":""},{"$f":"IFERROR(IF(Lån_Ikke_Betalt*Værdier_Angivet,Månedlig_Betaling,\"\"), \"\")","v":""},{"$f":"IFERROR(IF(Lån_Ikke_Betalt*Værdier_Angivet,Hovedstol,\"\"), \"\")","v":""},{"$f":"IFERROR(IF(Lån_Ikke_Betalt*Værdier_Angivet,Renter,\"\"), \"\")","v":""},{"$f":"IFERROR(IF(Lån_Ikke_Betalt*Værdier_Angivet,Slut_saldo,\"\"), \"\")","v":""}]
[null,{"$f":"IFERROR(IF(Lån_Ikke_Betalt*Værdier_Angivet,Betaling_Nummer,\"\"), \"\")","v":""},{"$f":"IFERROR(IF(Lån_Ikke_Betalt*Værdier_Angivet,Betalingsdato,\"\"), \"\")","v":""},{"$f":"IFERROR(IF(Lån_Ikke_Betalt*Værdier_Angivet,Startsaldo,\"\"), \"\")","v":""},{"$f":"IFERROR(IF(Lån_Ikke_Betalt*Værdier_Angivet,Månedlig_Betaling,\"\"), \"\")","v":""},{"$f":"IFERROR(IF(Lån_Ikke_Betalt*Værdier_Angivet,Hovedstol,\"\"), \"\")","v":""},{"$f":"IFERROR(IF(Lån_Ikke_Betalt*Værdier_Angivet,Renter,\"\"), \"\")","v":""},{"$f":"IFERROR(IF(Lån_Ikke_Betalt*Værdier_Angivet,Slut_saldo,\"\"), \"\")","v":""}]
[null,{"$f":"IFERROR(IF(Lån_Ikke_Betalt*Værdier_Angivet,Betaling_Nummer,\"\"), \"\")","v":""},{"$f":"IFERROR(IF(Lån_Ikke_Betalt*Værdier_Angivet,Betalingsdato,\"\"), \"\")","v":""},{"$f":"IFERROR(IF(Lån_Ikke_Betalt*Værdier_Angivet,Startsaldo,\"\"), \"\")","v":""},{"$f":"IFERROR(IF(Lån_Ikke_Betalt*Værdier_Angivet,Månedlig_Betaling,\"\"), \"\")","v":""},{"$f":"IFERROR(IF(Lån_Ikke_Betalt*Værdier_Angivet,Hovedstol,\"\"), \"\")","v":""},{"$f":"IFERROR(IF(Lån_Ikke_Betalt*Værdier_Angivet,Renter,\"\"), \"\")","v":""},{"$f":"IFERROR(IF(Lån_Ikke_Betalt*Værdier_Angivet,Slut_saldo,\"\"), \"\")","v":""}]
[null,{"$f":"IFERROR(IF(Lån_Ikke_Betalt*Værdier_Angivet,Betaling_Nummer,\"\"), \"\")","v":""},{"$f":"IFERROR(IF(Lån_Ikke_Betalt*Værdier_Angivet,Betalingsdato,\"\"), \"\")","v":""},{"$f":"IFERROR(IF(Lån_Ikke_Betalt*Værdier_Angivet,Startsaldo,\"\"), \"\")","v":""},{"$f":"IFERROR(IF(Lån_Ikke_Betalt*Værdier_Angivet,Månedlig_Betaling,\"\"), \"\")","v":""},{"$f":"IFERROR(IF(Lån_Ikke_Betalt*Værdier_Angivet,Hovedstol,\"\"), \"\")","v":""},{"$f":"IFERROR(IF(Lån_Ikke_Betalt*Værdier_Angivet,Renter,\"\"), \"\")","v":""},{"$f":"IFERROR(IF(Lån_Ikke_Betalt*Værdier_Angivet,Slut_saldo,\"\"), \"\")","v":""}]
[null,{"$f":"IFERROR(IF(Lån_Ikke_Betalt*Værdier_Angivet,Betaling_Nummer,\"\"), \"\")","v":""},{"$f":"IFERROR(IF(Lån_Ikke_Betalt*Værdier_Angivet,Betalingsdato,\"\"), \"\")","v":""},{"$f":"IFERROR(IF(Lån_Ikke_Betalt*Værdier_Angivet,Startsaldo,\"\"), \"\")","v":""},{"$f":"IFERROR(IF(Lån_Ikke_Betalt*Værdier_Angivet,Månedlig_Betaling,\"\"), \"\")","v":""},{"$f":"IFERROR(IF(Lån_Ikke_Betalt*Værdier_Angivet,Hovedstol,\"\"), \"\")","v":""},{"$f":"IFERROR(IF(Lån_Ikke_Betalt*Værdier_Angivet,Renter,\"\"), \"\")","v":""},{"$f":"IFERROR(IF(Lån_Ikke_Betalt*Værdier_Angivet,Slut_saldo,\"\"), \"\")","v":""}]
[null,{"$f":"IFERROR(IF(Lån_Ikke_Betalt*Værdier_Angivet,Betaling_Nummer,\"\"), \"\")","v":""},{"$f":"IFERROR(IF(Lån_Ikke_Betalt*Værdier_Angivet,Betalingsdato,\"\"), \"\")","v":""},{"$f":"IFERROR(IF(Lån_Ikke_Betalt*Værdier_Angivet,Startsaldo,\"\"), \"\")","v":""},{"$f":"IFERROR(IF(Lån_Ikke_Betalt*Værdier_Angivet,Månedlig_Betaling,\"\"), \"\")","v":""},{"$f":"IFERROR(IF(Lån_Ikke_Betalt*Værdier_Angivet,Hovedstol,\"\"), \"\")","v":""},{"$f":"IFERROR(IF(Lån_Ikke_Betalt*Værdier_Angivet,Renter,\"\"), \"\")","v":""},{"$f":"IFERROR(IF(Lån_Ikke_Betalt*Værdier_Angivet,Slut_saldo,\"\"), \"\")","v":""}]
[null,{"$f":"IFERROR(IF(Lån_Ikke_Betalt*Værdier_Angivet,Betaling_Nummer,\"\"), \"\")","v":""},{"$f":"IFERROR(IF(Lån_Ikke_Betalt*Værdier_Angivet,Betalingsdato,\"\"), \"\")","v":""},{"$f":"IFERROR(IF(Lån_Ikke_Betalt*Værdier_Angivet,Startsaldo,\"\"), \"\")","v":""},{"$f":"IFERROR(IF(Lån_Ikke_Betalt*Værdier_Angivet,Månedlig_Betaling,\"\"), \"\")","v":""},{"$f":"IFERROR(IF(Lån_Ikke_Betalt*Værdier_Angivet,Hovedstol,\"\"), \"\")","v":""},{"$f":"IFERROR(IF(Lån_Ikke_Betalt*Værdier_Angivet,Renter,\"\"), \"\")","v":""},{"$f":"IFERROR(IF(Lån_Ikke_Betalt*Værdier_Angivet,Slut_saldo,\"\"), \"\")","v":""}]
[null,{"$f":"IFERROR(IF(Lån_Ikke_Betalt*Værdier_Angivet,Betaling_Nummer,\"\"), \"\")","v":""},{"$f":"IFERROR(IF(Lån_Ikke_Betalt*Værdier_Angivet,Betalingsdato,\"\"), \"\")","v":""},{"$f":"IFERROR(IF(Lån_Ikke_Betalt*Værdier_Angivet,Startsaldo,\"\"), \"\")","v":""},{"$f":"IFERROR(IF(Lån_Ikke_Betalt*Værdier_Angivet,Månedlig_Betaling,\"\"), \"\")","v":""},{"$f":"IFERROR(IF(Lån_Ikke_Betalt*Værdier_Angivet,Hovedstol,\"\"), \"\")","v":""},{"$f":"IFERROR(IF(Lån_Ikke_Betalt*Værdier_Angivet,Renter,\"\"), \"\")","v":""},{"$f":"IFERROR(IF(Lån_Ikke_Betalt*Værdier_Angivet,Slut_saldo,\"\"), \"\")","v":""}]
[null,{"$f":"IFERROR(IF(Lån_Ikke_Betalt*Værdier_Angivet,Betaling_Nummer,\"\"), \"\")","v":""},{"$f":"IFERROR(IF(Lån_Ikke_Betalt*Værdier_Angivet,Betalingsdato,\"\"), \"\")","v":""},{"$f":"IFERROR(IF(Lån_Ikke_Betalt*Værdier_Angivet,Startsaldo,\"\"), \"\")","v":""},{"$f":"IFERROR(IF(Lån_Ikke_Betalt*Værdier_Angivet,Månedlig_Betaling,\"\"), \"\")","v":""},{"$f":"IFERROR(IF(Lån_Ikke_Betalt*Værdier_Angivet,Hovedstol,\"\"), \"\")","v":""},{"$f":"IFERROR(IF(Lån_Ikke_Betalt*Værdier_Angivet,Renter,\"\"), \"\")","v":""},{"$f":"IFERROR(IF(Lån_Ikke_Betalt*Værdier_Angivet,Slut_saldo,\"\"), \"\")","v":""}]
[null,{"$f":"IFERROR(IF(Lån_Ikke_Betalt*Værdier_Angivet,Betaling_Nummer,\"\"), \"\")","v":""},{"$f":"IFERROR(IF(Lån_Ikke_Betalt*Værdier_Angivet,Betalingsdato,\"\"), \"\")","v":""},{"$f":"IFERROR(IF(Lån_Ikke_Betalt*Værdier_Angivet,Startsaldo,\"\"), \"\")","v":""},{"$f":"IFERROR(IF(Lån_Ikke_Betalt*Værdier_Angivet,Månedlig_Betaling,\"\"), \"\")","v":""},{"$f":"IFERROR(IF(Lån_Ikke_Betalt*Værdier_Angivet,Hovedstol,\"\"), \"\")","v":""},{"$f":"IFERROR(IF(Lån_Ikke_Betalt*Værdier_Angivet,Renter,\"\"), \"\")","v":""},{"$f":"IFERROR(IF(Lån_Ikke_Betalt*Værdier_Angivet,Slut_saldo,\"\"), \"\")","v":""}]
[null,{"$f":"IFERROR(IF(Lån_Ikke_Betalt*Værdier_Angivet,Betaling_Nummer,\"\"), \"\")","v":""},{"$f":"IFERROR(IF(Lån_Ikke_Betalt*Værdier_Angivet,Betalingsdato,\"\"), \"\")","v":""},{"$f":"IFERROR(IF(Lån_Ikke_Betalt*Værdier_Angivet,Startsaldo,\"\"), \"\")","v":""},{"$f":"IFERROR(IF(Lån_Ikke_Betalt*Værdier_Angivet,Månedlig_Betaling,\"\"), \"\")","v":""},{"$f":"IFERROR(IF(Lån_Ikke_Betalt*Værdier_Angivet,Hovedstol,\"\"), \"\")","v":""},{"$f":"IFERROR(IF(Lån_Ikke_Betalt*Værdier_Angivet,Renter,\"\"), \"\")","v":""},{"$f":"IFERROR(IF(Lån_Ikke_Betalt*Værdier_Angivet,Slut_saldo,\"\"), \"\")","v":""}]
[null,{"$f":"IFERROR(IF(Lån_Ikke_Betalt*Værdier_Angivet,Betaling_Nummer,\"\"), \"\")","v":""},{"$f":"IFERROR(IF(Lån_Ikke_Betalt*Værdier_Angivet,Betalingsdato,\"\"), \"\")","v":""},{"$f":"IFERROR(IF(Lån_Ikke_Betalt*Værdier_Angivet,Startsaldo,\"\"), \"\")","v":""},{"$f":"IFERROR(IF(Lån_Ikke_Betalt*Værdier_Angivet,Månedlig_Betaling,\"\"), \"\")","v":""},{"$f":"IFERROR(IF(Lån_Ikke_Betalt*Værdier_Angivet,Hovedstol,\"\"), \"\")","v":""},{"$f":"IFERROR(IF(Lån_Ikke_Betalt*Værdier_Angivet,Renter,\"\"), \"\")","v":""},{"$f":"IFERROR(IF(Lån_Ikke_Betalt*Værdier_Angivet,Slut_saldo,\"\"), \"\")","v":""}]
[null,{"$f":"IFERROR(IF(Lån_Ikke_Betalt*Værdier_Angivet,Betaling_Nummer,\"\"), \"\")","v":""},{"$f":"IFERROR(IF(Lån_Ikke_Betalt*Værdier_Angivet,Betalingsdato,\"\"), \"\")","v":""},{"$f":"IFERROR(IF(Lån_Ikke_Betalt*Værdier_Angivet,Startsaldo,\"\"), \"\")","v":""},{"$f":"IFERROR(IF(Lån_Ikke_Betalt*Værdier_Angivet,Månedlig_Betaling,\"\"), \"\")","v":""},{"$f":"IFERROR(IF(Lån_Ikke_Betalt*Værdier_Angivet,Hovedstol,\"\"), \"\")","v":""},{"$f":"IFERROR(IF(Lån_Ikke_Betalt*Værdier_Angivet,Renter,\"\"), \"\")","v":""},{"$f":"IFERROR(IF(Lån_Ikke_Betalt*Værdier_Angivet,Slut_saldo,\"\"), \"\")","v":""}]
[null,{"$f":"IFERROR(IF(Lån_Ikke_Betalt*Værdier_Angivet,Betaling_Nummer,\"\"), \"\")","v":""},{"$f":"IFERROR(IF(Lån_Ikke_Betalt*Værdier_Angivet,Betalingsdato,\"\"), \"\")","v":""},{"$f":"IFERROR(IF(Lån_Ikke_Betalt*Værdier_Angivet,Startsaldo,\"\"), \"\")","v":""},{"$f":"IFERROR(IF(Lån_Ikke_Betalt*Værdier_Angivet,Månedlig_Betaling,\"\"), \"\")","v":""},{"$f":"IFERROR(IF(Lån_Ikke_Betalt*Værdier_Angivet,Hovedstol,\"\"), \"\")","v":""},{"$f":"IFERROR(IF(Lån_Ikke_Betalt*Værdier_Angivet,Renter,\"\"), \"\")","v":""},{"$f":"IFERROR(IF(Lån_Ikke_Betalt*Værdier_Angivet,Slut_saldo,\"\"), \"\")","v":""}]
[null,{"$f":"IFERROR(IF(Lån_Ikke_Betalt*Værdier_Angivet,Betaling_Nummer,\"\"), \"\")","v":""},{"$f":"IFERROR(IF(Lån_Ikke_Betalt*Værdier_Angivet,Betalingsdato,\"\"), \"\")","v":""},{"$f":"IFERROR(IF(Lån_Ikke_Betalt*Værdier_Angivet,Startsaldo,\"\"), \"\")","v":""},{"$f":"IFERROR(IF(Lån_Ikke_Betalt*Værdier_Angivet,Månedlig_Betaling,\"\"), \"\")","v":""},{"$f":"IFERROR(IF(Lån_Ikke_Betalt*Værdier_Angivet,Hovedstol,\"\"), \"\")","v":""},{"$f":"IFERROR(IF(Lån_Ikke_Betalt*Værdier_Angivet,Renter,\"\"), \"\")","v":""},{"$f":"IFERROR(IF(Lån_Ikke_Betalt*Værdier_Angivet,Slut_saldo,\"\"), \"\")","v":""}]
[null,{"$f":"IFERROR(IF(Lån_Ikke_Betalt*Værdier_Angivet,Betaling_Nummer,\"\"), \"\")","v":""},{"$f":"IFERROR(IF(Lån_Ikke_Betalt*Værdier_Angivet,Betalingsdato,\"\"), \"\")","v":""},{"$f":"IFERROR(IF(Lån_Ikke_Betalt*Værdier_Angivet,Startsaldo,\"\"), \"\")","v":""},{"$f":"IFERROR(IF(Lån_Ikke_Betalt*Værdier_Angivet,Månedlig_Betaling,\"\"), \"\")","v":""},{"$f":"IFERROR(IF(Lån_Ikke_Betalt*Værdier_Angivet,Hovedstol,\"\"), \"\")","v":""},{"$f":"IFERROR(IF(Lån_Ikke_Betalt*Værdier_Angivet,Renter,\"\"), \"\")","v":""},{"$f":"IFERROR(IF(Lån_Ikke_Betalt*Værdier_Angivet,Slut_saldo,\"\"), \"\")","v":""}]
[null,{"$f":"IFERROR(IF(Lån_Ikke_Betalt*Værdier_Angivet,Betaling_Nummer,\"\"), \"\")","v":""},{"$f":"IFERROR(IF(Lån_Ikke_Betalt*Værdier_Angivet,Betalingsdato,\"\"), \"\")","v":""},{"$f":"IFERROR(IF(Lån_Ikke_Betalt*Værdier_Angivet,Startsaldo,\"\"), \"\")","v":""},{"$f":"IFERROR(IF(Lån_Ikke_Betalt*Værdier_Angivet,Månedlig_Betaling,\"\"), \"\")","v":""},{"$f":"IFERROR(IF(Lån_Ikke_Betalt*Værdier_Angivet,Hovedstol,\"\"), \"\")","v":""},{"$f":"IFERROR(IF(Lån_Ikke_Betalt*Værdier_Angivet,Renter,\"\"), \"\")","v":""},{"$f":"IFERROR(IF(Lån_Ikke_Betalt*Værdier_Angivet,Slut_saldo,\"\"), \"\")","v":""}]
[null,{"$f":"IFERROR(IF(Lån_Ikke_Betalt*Værdier_Angivet,Betaling_Nummer,\"\"), \"\")","v":""},{"$f":"IFERROR(IF(Lån_Ikke_Betalt*Værdier_Angivet,Betalingsdato,\"\"), \"\")","v":""},{"$f":"IFERROR(IF(Lån_Ikke_Betalt*Værdier_Angivet,Startsaldo,\"\"), \"\")","v":""},{"$f":"IFERROR(IF(Lån_Ikke_Betalt*Værdier_Angivet,Månedlig_Betaling,\"\"), \"\")","v":""},{"$f":"IFERROR(IF(Lån_Ikke_Betalt*Værdier_Angivet,Hovedstol,\"\"), \"\")","v":""},{"$f":"IFERROR(IF(Lån_Ikke_Betalt*Værdier_Angivet,Renter,\"\"), \"\")","v":""},{"$f":"IFERROR(IF(Lån_Ikke_Betalt*Værdier_Angivet,Slut_saldo,\"\"), \"\")","v":""}]
[null,{"$f":"IFERROR(IF(Lån_Ikke_Betalt*Værdier_Angivet,Betaling_Nummer,\"\"), \"\")","v":""},{"$f":"IFERROR(IF(Lån_Ikke_Betalt*Værdier_Angivet,Betalingsdato,\"\"), \"\")","v":""},{"$f":"IFERROR(IF(Lån_Ikke_Betalt*Værdier_Angivet,Startsaldo,\"\"), \"\")","v":""},{"$f":"IFERROR(IF(Lån_Ikke_Betalt*Værdier_Angivet,Månedlig_Betaling,\"\"), \"\")","v":""},{"$f":"IFERROR(IF(Lån_Ikke_Betalt*Værdier_Angivet,Hovedstol,\"\"), \"\")","v":""},{"$f":"IFERROR(IF(Lån_Ikke_Betalt*Værdier_Angivet,Renter,\"\"), \"\")","v":""},{"$f":"IFERROR(IF(Lån_Ikke_Betalt*Værdier_Angivet,Slut_saldo,\"\"), \"\")","v":""}]
[null,{"$f":"IFERROR(IF(Lån_Ikke_Betalt*Værdier_Angivet,Betaling_Nummer,\"\"), \"\")","v":""},{"$f":"IFERROR(IF(Lån_Ikke_Betalt*Værdier_Angivet,Betalingsdato,\"\"), \"\")","v":""},{"$f":"IFERROR(IF(Lån_Ikke_Betalt*Værdier_Angivet,Startsaldo,\"\"), \"\")","v":""},{"$f":"IFERROR(IF(Lån_Ikke_Betalt*Værdier_Angivet,Månedlig_Betaling,\"\"), \"\")","v":""},{"$f":"IFERROR(IF(Lån_Ikke_Betalt*Værdier_Angivet,Hovedstol,\"\"), \"\")","v":""},{"$f":"IFERROR(IF(Lån_Ikke_Betalt*Værdier_Angivet,Renter,\"\"), \"\")","v":""},{"$f":"IFERROR(IF(Lån_Ikke_Betalt*Værdier_Angivet,Slut_saldo,\"\"), \"\")","v":""}]
[null,{"$f":"IFERROR(IF(Lån_Ikke_Betalt*Værdier_Angivet,Betaling_Nummer,\"\"), \"\")","v":""},{"$f":"IFERROR(IF(Lån_Ikke_Betalt*Værdier_Angivet,Betalingsdato,\"\"), \"\")","v":""},{"$f":"IFERROR(IF(Lån_Ikke_Betalt*Værdier_Angivet,Startsaldo,\"\"), \"\")","v":""},{"$f":"IFERROR(IF(Lån_Ikke_Betalt*Værdier_Angivet,Månedlig_Betaling,\"\"), \"\")","v":""},{"$f":"IFERROR(IF(Lån_Ikke_Betalt*Værdier_Angivet,Hovedstol,\"\"), \"\")","v":""},{"$f":"IFERROR(IF(Lån_Ikke_Betalt*Værdier_Angivet,Renter,\"\"), \"\")","v":""},{"$f":"IFERROR(IF(Lån_Ikke_Betalt*Værdier_Angivet,Slut_saldo,\"\"), \"\")","v":""}]
[null,{"$f":"IFERROR(IF(Lån_Ikke_Betalt*Værdier_Angivet,Betaling_Nummer,\"\"), \"\")","v":""},{"$f":"IFERROR(IF(Lån_Ikke_Betalt*Værdier_Angivet,Betalingsdato,\"\"), \"\")","v":""},{"$f":"IFERROR(IF(Lån_Ikke_Betalt*Værdier_Angivet,Startsaldo,\"\"), \"\")","v":""},{"$f":"IFERROR(IF(Lån_Ikke_Betalt*Værdier_Angivet,Månedlig_Betaling,\"\"), \"\")","v":""},{"$f":"IFERROR(IF(Lån_Ikke_Betalt*Værdier_Angivet,Hovedstol,\"\"), \"\")","v":""},{"$f":"IFERROR(IF(Lån_Ikke_Betalt*Værdier_Angivet,Renter,\"\"), \"\")","v":""},{"$f":"IFERROR(IF(Lån_Ikke_Betalt*Værdier_Angivet,Slut_saldo,\"\"), \"\")","v":""}]
[null,{"$f":"IFERROR(IF(Lån_Ikke_Betalt*Værdier_Angivet,Betaling_Nummer,\"\"), \"\")","v":""},{"$f":"IFERROR(IF(Lån_Ikke_Betalt*Værdier_Angivet,Betalingsdato,\"\"), \"\")","v":""},{"$f":"IFERROR(IF(Lån_Ikke_Betalt*Værdier_Angivet,Startsaldo,\"\"), \"\")","v":""},{"$f":"IFERROR(IF(Lån_Ikke_Betalt*Værdier_Angivet,Månedlig_Betaling,\"\"), \"\")","v":""},{"$f":"IFERROR(IF(Lån_Ikke_Betalt*Værdier_Angivet,Hovedstol,\"\"), \"\")","v":""},{"$f":"IFERROR(IF(Lån_Ikke_Betalt*Værdier_Angivet,Renter,\"\"), \"\")","v":""},{"$f":"IFERROR(IF(Lån_Ikke_Betalt*Værdier_Angivet,Slut_saldo,\"\"), \"\")","v":""}]
[null,{"$f":"IFERROR(IF(Lån_Ikke_Betalt*Værdier_Angivet,Betaling_Nummer,\"\"), \"\")","v":""},{"$f":"IFERROR(IF(Lån_Ikke_Betalt*Værdier_Angivet,Betalingsdato,\"\"), \"\")","v":""},{"$f":"IFERROR(IF(Lån_Ikke_Betalt*Værdier_Angivet,Startsaldo,\"\"), \"\")","v":""},{"$f":"IFERROR(IF(Lån_Ikke_Betalt*Værdier_Angivet,Månedlig_Betaling,\"\"), \"\")","v":""},{"$f":"IFERROR(IF(Lån_Ikke_Betalt*Værdier_Angivet,Hovedstol,\"\"), \"\")","v":""},{"$f":"IFERROR(IF(Lån_Ikke_Betalt*Værdier_Angivet,Renter,\"\"), \"\")","v":""},{"$f":"IFERROR(IF(Lån_Ikke_Betalt*Værdier_Angivet,Slut_saldo,\"\"), \"\")","v":""}]
[null,{"$f":"IFERROR(IF(Lån_Ikke_Betalt*Værdier_Angivet,Betaling_Nummer,\"\"), \"\")","v":""},{"$f":"IFERROR(IF(Lån_Ikke_Betalt*Værdier_Angivet,Betalingsdato,\"\"), \"\")","v":""},{"$f":"IFERROR(IF(Lån_Ikke_Betalt*Værdier_Angivet,Startsaldo,\"\"), \"\")","v":""},{"$f":"IFERROR(IF(Lån_Ikke_Betalt*Værdier_Angivet,Månedlig_Betaling,\"\"), \"\")","v":""},{"$f":"IFERROR(IF(Lån_Ikke_Betalt*Værdier_Angivet,Hovedstol,\"\"), \"\")","v":""},{"$f":"IFERROR(IF(Lån_Ikke_Betalt*Værdier_Angivet,Renter,\"\"), \"\")","v":""},{"$f":"IFERROR(IF(Lån_Ikke_Betalt*Værdier_Angivet,Slut_saldo,\"\"), \"\")","v":""}]
[null,{"$f":"IFERROR(IF(Lån_Ikke_Betalt*Værdier_Angivet,Betaling_Nummer,\"\"), \"\")","v":""},{"$f":"IFERROR(IF(Lån_Ikke_Betalt*Værdier_Angivet,Betalingsdato,\"\"), \"\")","v":""},{"$f":"IFERROR(IF(Lån_Ikke_Betalt*Værdier_Angivet,Startsaldo,\"\"), \"\")","v":""},{"$f":"IFERROR(IF(Lån_Ikke_Betalt*Værdier_Angivet,Månedlig_Betaling,\"\"), \"\")","v":""},{"$f":"IFERROR(IF(Lån_Ikke_Betalt*Værdier_Angivet,Hovedstol,\"\"), \"\")","v":""},{"$f":"IFERROR(IF(Lån_Ikke_Betalt*Værdier_Angivet,Renter,\"\"), \"\")","v":""},{"$f":"IFERROR(IF(Lån_Ikke_Betalt*Værdier_Angivet,Slut_saldo,\"\"), \"\")","v":""}]
[null,{"$f":"IFERROR(IF(Lån_Ikke_Betalt*Værdier_Angivet,Betaling_Nummer,\"\"), \"\")","v":""},{"$f":"IFERROR(IF(Lån_Ikke_Betalt*Værdier_Angivet,Betalingsdato,\"\"), \"\")","v":""},{"$f":"IFERROR(IF(Lån_Ikke_Betalt*Værdier_Angivet,Startsaldo,\"\"), \"\")","v":""},{"$f":"IFERROR(IF(Lån_Ikke_Betalt*Værdier_Angivet,Månedlig_Betaling,\"\"), \"\")","v":""},{"$f":"IFERROR(IF(Lån_Ikke_Betalt*Værdier_Angivet,Hovedstol,\"\"), \"\")","v":""},{"$f":"IFERROR(IF(Lån_Ikke_Betalt*Værdier_Angivet,Renter,\"\"), \"\")","v":""},{"$f":"IFERROR(IF(Lån_Ikke_Betalt*Værdier_Angivet,Slut_saldo,\"\"), \"\")","v":""}]
[null,{"$f":"IFERROR(IF(Lån_Ikke_Betalt*Værdier_Angivet,Betaling_Nummer,\"\"), \"\")","v":""},{"$f":"IFERROR(IF(Lån_Ikke_Betalt*Værdier_Angivet,Betalingsdato,\"\"), \"\")","v":""},{"$f":"IFERROR(IF(Lån_Ikke_Betalt*Værdier_Angivet,Startsaldo,\"\"), \"\")","v":""},{"$f":"IFERROR(IF(Lån_Ikke_Betalt*Værdier_Angivet,Månedlig_Betaling,\"\"), \"\")","v":""},{"$f":"IFERROR(IF(Lån_Ikke_Betalt*Værdier_Angivet,Hovedstol,\"\"), \"\")","v":""},{"$f":"IFERROR(IF(Lån_Ikke_Betalt*Værdier_Angivet,Renter,\"\"), \"\")","v":""},{"$f":"IFERROR(IF(Lån_Ikke_Betalt*Værdier_Angivet,Slut_saldo,\"\"), \"\")","v":""}]
[null,{"$f":"IFERROR(IF(Lån_Ikke_Betalt*Værdier_Angivet,Betaling_Nummer,\"\"), \"\")","v":""},{"$f":"IFERROR(IF(Lån_Ikke_Betalt*Værdier_Angivet,Betalingsdato,\"\"), \"\")","v":""},{"$f":"IFERROR(IF(Lån_Ikke_Betalt*Værdier_Angivet,Startsaldo,\"\"), \"\")","v":""},{"$f":"IFERROR(IF(Lån_Ikke_Betalt*Værdier_Angivet,Månedlig_Betaling,\"\"), \"\")","v":""},{"$f":"IFERROR(IF(Lån_Ikke_Betalt*Værdier_Angivet,Hovedstol,\"\"), \"\")","v":""},{"$f":"IFERROR(IF(Lån_Ikke_Betalt*Værdier_Angivet,Renter,\"\"), \"\")","v":""},{"$f":"IFERROR(IF(Lån_Ikke_Betalt*Værdier_Angivet,Slut_saldo,\"\"), \"\")","v":""}]
[null,{"$f":"IFERROR(IF(Lån_Ikke_Betalt*Værdier_Angivet,Betaling_Nummer,\"\"), \"\")","v":""},{"$f":"IFERROR(IF(Lån_Ikke_Betalt*Værdier_Angivet,Betalingsdato,\"\"), \"\")","v":""},{"$f":"IFERROR(IF(Lån_Ikke_Betalt*Værdier_Angivet,Startsaldo,\"\"), \"\")","v":""},{"$f":"IFERROR(IF(Lån_Ikke_Betalt*Værdier_Angivet,Månedlig_Betaling,\"\"), \"\")","v":""},{"$f":"IFERROR(IF(Lån_Ikke_Betalt*Værdier_Angivet,Hovedstol,\"\"), \"\")","v":""},{"$f":"IFERROR(IF(Lån_Ikke_Betalt*Værdier_Angivet,Renter,\"\"), \"\")","v":""},{"$f":"IFERROR(IF(Lån_Ikke_Betalt*Værdier_Angivet,Slut_saldo,\"\"), \"\")","v":""}]
[null,{"$f":"IFERROR(IF(Lån_Ikke_Betalt*Værdier_Angivet,Betaling_Nummer,\"\"), \"\")","v":""},{"$f":"IFERROR(IF(Lån_Ikke_Betalt*Værdier_Angivet,Betalingsdato,\"\"), \"\")","v":""},{"$f":"IFERROR(IF(Lån_Ikke_Betalt*Værdier_Angivet,Startsaldo,\"\"), \"\")","v":""},{"$f":"IFERROR(IF(Lån_Ikke_Betalt*Værdier_Angivet,Månedlig_Betaling,\"\"), \"\")","v":""},{"$f":"IFERROR(IF(Lån_Ikke_Betalt*Værdier_Angivet,Hovedstol,\"\"), \"\")","v":""},{"$f":"IFERROR(IF(Lån_Ikke_Betalt*Værdier_Angivet,Renter,\"\"), \"\")","v":""},{"$f":"IFERROR(IF(Lån_Ikke_Betalt*Værdier_Angivet,Slut_saldo,\"\"), \"\")","v":""}]
[null,{"$f":"IFERROR(IF(Lån_Ikke_Betalt*Værdier_Angivet,Betaling_Nummer,\"\"), \"\")","v":""},{"$f":"IFERROR(IF(Lån_Ikke_Betalt*Værdier_Angivet,Betalingsdato,\"\"), \"\")","v":""},{"$f":"IFERROR(IF(Lån_Ikke_Betalt*Værdier_Angivet,Startsaldo,\"\"), \"\")","v":""},{"$f":"IFERROR(IF(Lån_Ikke_Betalt*Værdier_Angivet,Månedlig_Betaling,\"\"), \"\")","v":""},{"$f":"IFERROR(IF(Lån_Ikke_Betalt*Værdier_Angivet,Hovedstol,\"\"), \"\")","v":""},{"$f":"IFERROR(IF(Lån_Ikke_Betalt*Værdier_Angivet,Renter,\"\"), \"\")","v":""},{"$f":"IFERROR(IF(Lån_Ikke_Betalt*Værdier_Angivet,Slut_saldo,\"\"), \"\")","v":""}]
[null,{"$f":"IFERROR(IF(Lån_Ikke_Betalt*Værdier_Angivet,Betaling_Nummer,\"\"), \"\")","v":""},{"$f":"IFERROR(IF(Lån_Ikke_Betalt*Værdier_Angivet,Betalingsdato,\"\"), \"\")","v":""},{"$f":"IFERROR(IF(Lån_Ikke_Betalt*Værdier_Angivet,Startsaldo,\"\"), \"\")","v":""},{"$f":"IFERROR(IF(Lån_Ikke_Betalt*Værdier_Angivet,Månedlig_Betaling,\"\"), \"\")","v":""},{"$f":"IFERROR(IF(Lån_Ikke_Betalt*Værdier_Angivet,Hovedstol,\"\"), \"\")","v":""},{"$f":"IFERROR(IF(Lån_Ikke_Betalt*Værdier_Angivet,Renter,\"\"), \"\")","v":""},{"$f":"IFERROR(IF(Lån_Ikke_Betalt*Værdier_Angivet,Slut_saldo,\"\"), \"\")","v":""}]
[null,{"$f":"IFERROR(IF(Lån_Ikke_Betalt*Værdier_Angivet,Betaling_Nummer,\"\"), \"\")","v":""},{"$f":"IFERROR(IF(Lån_Ikke_Betalt*Værdier_Angivet,Betalingsdato,\"\"), \"\")","v":""},{"$f":"IFERROR(IF(Lån_Ikke_Betalt*Værdier_Angivet,Startsaldo,\"\"), \"\")","v":""},{"$f":"IFERROR(IF(Lån_Ikke_Betalt*Værdier_Angivet,Månedlig_Betaling,\"\"), \"\")","v":""},{"$f":"IFERROR(IF(Lån_Ikke_Betalt*Værdier_Angivet,Hovedstol,\"\"), \"\")","v":""},{"$f":"IFERROR(IF(Lån_Ikke_Betalt*Værdier_Angivet,Renter,\"\"), \"\")","v":""},{"$f":"IFERROR(IF(Lån_Ikke_Betalt*Værdier_Angivet,Slut_saldo,\"\"), \"\")","v":""}]
[null,{"$f":"IFERROR(IF(Lån_Ikke_Betalt*Værdier_Angivet,Betaling_Nummer,\"\"), \"\")","v":""},{"$f":"IFERROR(IF(Lån_Ikke_Betalt*Værdier_Angivet,Betalingsdato,\"\"), \"\")","v":""},{"$f":"IFERROR(IF(Lån_Ikke_Betalt*Værdier_Angivet,Startsaldo,\"\"), \"\")","v":""},{"$f":"IFERROR(IF(Lån_Ikke_Betalt*Værdier_Angivet,Månedlig_Betaling,\"\"), \"\")","v":""},{"$f":"IFERROR(IF(Lån_Ikke_Betalt*Værdier_Angivet,Hovedstol,\"\"), \"\")","v":""},{"$f":"IFERROR(IF(Lån_Ikke_Betalt*Værdier_Angivet,Renter,\"\"), \"\")","v":""},{"$f":"IFERROR(IF(Lån_Ikke_Betalt*Værdier_Angivet,Slut_saldo,\"\"), \"\")","v":""}]
[null,{"$f":"IFERROR(IF(Lån_Ikke_Betalt*Værdier_Angivet,Betaling_Nummer,\"\"), \"\")","v":""},{"$f":"IFERROR(IF(Lån_Ikke_Betalt*Værdier_Angivet,Betalingsdato,\"\"), \"\")","v":""},{"$f":"IFERROR(IF(Lån_Ikke_Betalt*Værdier_Angivet,Startsaldo,\"\"), \"\")","v":""},{"$f":"IFERROR(IF(Lån_Ikke_Betalt*Værdier_Angivet,Månedlig_Betaling,\"\"), \"\")","v":""},{"$f":"IFERROR(IF(Lån_Ikke_Betalt*Værdier_Angivet,Hovedstol,\"\"), \"\")","v":""},{"$f":"IFERROR(IF(Lån_Ikke_Betalt*Værdier_Angivet,Renter,\"\"), \"\")","v":""},{"$f":"IFERROR(IF(Lån_Ikke_Betalt*Værdier_Angivet,Slut_saldo,\"\"), \"\")","v":""}]
[null,{"$f":"IFERROR(IF(Lån_Ikke_Betalt*Værdier_Angivet,Betaling_Nummer,\"\"), \"\")","v":""},{"$f":"IFERROR(IF(Lån_Ikke_Betalt*Værdier_Angivet,Betalingsdato,\"\"), \"\")","v":""},{"$f":"IFERROR(IF(Lån_Ikke_Betalt*Værdier_Angivet,Startsaldo,\"\"), \"\")","v":""},{"$f":"IFERROR(IF(Lån_Ikke_Betalt*Værdier_Angivet,Månedlig_Betaling,\"\"), \"\")","v":""},{"$f":"IFERROR(IF(Lån_Ikke_Betalt*Værdier_Angivet,Hovedstol,\"\"), \"\")","v":""},{"$f":"IFERROR(IF(Lån_Ikke_Betalt*Værdier_Angivet,Renter,\"\"), \"\")","v":""},{"$f":"IFERROR(IF(Lån_Ikke_Betalt*Værdier_Angivet,Slut_saldo,\"\"), \"\")","v":""}]
[null,{"$f":"IFERROR(IF(Lån_Ikke_Betalt*Værdier_Angivet,Betaling_Nummer,\"\"), \"\")","v":""},{"$f":"IFERROR(IF(Lån_Ikke_Betalt*Værdier_Angivet,Betalingsdato,\"\"), \"\")","v":""},{"$f":"IFERROR(IF(Lån_Ikke_Betalt*Værdier_Angivet,Startsaldo,\"\"), \"\")","v":""},{"$f":"IFERROR(IF(Lån_Ikke_Betalt*Værdier_Angivet,Månedlig_Betaling,\"\"), \"\")","v":""},{"$f":"IFERROR(IF(Lån_Ikke_Betalt*Værdier_Angivet,Hovedstol,\"\"), \"\")","v":""},{"$f":"IFERROR(IF(Lån_Ikke_Betalt*Værdier_Angivet,Renter,\"\"), \"\")","v":""},{"$f":"IFERROR(IF(Lån_Ikke_Betalt*Værdier_Angivet,Slut_saldo,\"\"), \"\")","v":""}]
[null,{"$f":"IFERROR(IF(Lån_Ikke_Betalt*Værdier_Angivet,Betaling_Nummer,\"\"), \"\")","v":""},{"$f":"IFERROR(IF(Lån_Ikke_Betalt*Værdier_Angivet,Betalingsdato,\"\"), \"\")","v":""},{"$f":"IFERROR(IF(Lån_Ikke_Betalt*Værdier_Angivet,Startsaldo,\"\"), \"\")","v":""},{"$f":"IFERROR(IF(Lån_Ikke_Betalt*Værdier_Angivet,Månedlig_Betaling,\"\"), \"\")","v":""},{"$f":"IFERROR(IF(Lån_Ikke_Betalt*Værdier_Angivet,Hovedstol,\"\"), \"\")","v":""},{"$f":"IFERROR(IF(Lån_Ikke_Betalt*Værdier_Angivet,Renter,\"\"), \"\")","v":""},{"$f":"IFERROR(IF(Lån_Ikke_Betalt*Værdier_Angivet,Slut_saldo,\"\"), \"\")","v":""}]
[null,{"$f":"IFERROR(IF(Lån_Ikke_Betalt*Værdier_Angivet,Betaling_Nummer,\"\"), \"\")","v":""},{"$f":"IFERROR(IF(Lån_Ikke_Betalt*Værdier_Angivet,Betalingsdato,\"\"), \"\")","v":""},{"$f":"IFERROR(IF(Lån_Ikke_Betalt*Værdier_Angivet,Startsaldo,\"\"), \"\")","v":""},{"$f":"IFERROR(IF(Lån_Ikke_Betalt*Værdier_Angivet,Månedlig_Betaling,\"\"), \"\")","v":""},{"$f":"IFERROR(IF(Lån_Ikke_Betalt*Værdier_Angivet,Hovedstol,\"\"), \"\")","v":""},{"$f":"IFERROR(IF(Lån_Ikke_Betalt*Værdier_Angivet,Renter,\"\"), \"\")","v":""},{"$f":"IFERROR(IF(Lån_Ikke_Betalt*Værdier_Angivet,Slut_saldo,\"\"), \"\")","v":""}]
[null,{"$f":"IFERROR(IF(Lån_Ikke_Betalt*Værdier_Angivet,Betaling_Nummer,\"\"), \"\")","v":""},{"$f":"IFERROR(IF(Lån_Ikke_Betalt*Værdier_Angivet,Betalingsdato,\"\"), \"\")","v":""},{"$f":"IFERROR(IF(Lån_Ikke_Betalt*Værdier_Angivet,Startsaldo,\"\"), \"\")","v":""},{"$f":"IFERROR(IF(Lån_Ikke_Betalt*Værdier_Angivet,Månedlig_Betaling,\"\"), \"\")","v":""},{"$f":"IFERROR(IF(Lån_Ikke_Betalt*Værdier_Angivet,Hovedstol,\"\"), \"\")","v":""},{"$f":"IFERROR(IF(Lån_Ikke_Betalt*Værdier_Angivet,Renter,\"\"), \"\")","v":""},{"$f":"IFERROR(IF(Lån_Ikke_Betalt*Værdier_Angivet,Slut_saldo,\"\"), \"\")","v":""}]
[null,{"$f":"IFERROR(IF(Lån_Ikke_Betalt*Værdier_Angivet,Betaling_Nummer,\"\"), \"\")","v":""},{"$f":"IFERROR(IF(Lån_Ikke_Betalt*Værdier_Angivet,Betalingsdato,\"\"), \"\")","v":""},{"$f":"IFERROR(IF(Lån_Ikke_Betalt*Værdier_Angivet,Startsaldo,\"\"), \"\")","v":""},{"$f":"IFERROR(IF(Lån_Ikke_Betalt*Værdier_Angivet,Månedlig_Betaling,\"\"), \"\")","v":""},{"$f":"IFERROR(IF(Lån_Ikke_Betalt*Værdier_Angivet,Hovedstol,\"\"), \"\")","v":""},{"$f":"IFERROR(IF(Lån_Ikke_Betalt*Værdier_Angivet,Renter,\"\"), \"\")","v":""},{"$f":"IFERROR(IF(Lån_Ikke_Betalt*Værdier_Angivet,Slut_saldo,\"\"), \"\")","v":""}]
[null,{"$f":"IFERROR(IF(Lån_Ikke_Betalt*Værdier_Angivet,Betaling_Nummer,\"\"), \"\")","v":""},{"$f":"IFERROR(IF(Lån_Ikke_Betalt*Værdier_Angivet,Betalingsdato,\"\"), \"\")","v":""},{"$f":"IFERROR(IF(Lån_Ikke_Betalt*Værdier_Angivet,Startsaldo,\"\"), \"\")","v":""},{"$f":"IFERROR(IF(Lån_Ikke_Betalt*Værdier_Angivet,Månedlig_Betaling,\"\"), \"\")","v":""},{"$f":"IFERROR(IF(Lån_Ikke_Betalt*Værdier_Angivet,Hovedstol,\"\"), \"\")","v":""},{"$f":"IFERROR(IF(Lån_Ikke_Betalt*Værdier_Angivet,Renter,\"\"), \"\")","v":""},{"$f":"IFERROR(IF(Lån_Ikke_Betalt*Værdier_Angivet,Slut_saldo,\"\"), \"\")","v":""}]
[null,{"$f":"IFERROR(IF(Lån_Ikke_Betalt*Værdier_Angivet,Betaling_Nummer,\"\"), \"\")","v":""},{"$f":"IFERROR(IF(Lån_Ikke_Betalt*Værdier_Angivet,Betalingsdato,\"\"), \"\")","v":""},{"$f":"IFERROR(IF(Lån_Ikke_Betalt*Værdier_Angivet,Startsaldo,\"\"), \"\")","v":""},{"$f":"IFERROR(IF(Lån_Ikke_Betalt*Værdier_Angivet,Månedlig_Betaling,\"\"), \"\")","v":""},{"$f":"IFERROR(IF(Lån_Ikke_Betalt*Værdier_Angivet,Hovedstol,\"\"), \"\")","v":""},{"$f":"IFERROR(IF(Lån_Ikke_Betalt*Værdier_Angivet,Renter,\"\"), \"\")","v":""},{"$f":"IFERROR(IF(Lån_Ikke_Betalt*Værdier_Angivet,Slut_saldo,\"\"), \"\")","v":""}]
[null,{"$f":"IFERROR(IF(Lån_Ikke_Betalt*Værdier_Angivet,Betaling_Nummer,\"\"), \"\")","v":""},{"$f":"IFERROR(IF(Lån_Ikke_Betalt*Værdier_Angivet,Betalingsdato,\"\"), \"\")","v":""},{"$f":"IFERROR(IF(Lån_Ikke_Betalt*Værdier_Angivet,Startsaldo,\"\"), \"\")","v":""},{"$f":"IFERROR(IF(Lån_Ikke_Betalt*Værdier_Angivet,Månedlig_Betaling,\"\"), \"\")","v":""},{"$f":"IFERROR(IF(Lån_Ikke_Betalt*Værdier_Angivet,Hovedstol,\"\"), \"\")","v":""},{"$f":"IFERROR(IF(Lån_Ikke_Betalt*Værdier_Angivet,Renter,\"\"), \"\")","v":""},{"$f":"IFERROR(IF(Lån_Ikke_Betalt*Værdier_Angivet,Slut_saldo,\"\"), \"\")","v":""}]
[null,{"$f":"IFERROR(IF(Lån_Ikke_Betalt*Værdier_Angivet,Betaling_Nummer,\"\"), \"\")","v":""},{"$f":"IFERROR(IF(Lån_Ikke_Betalt*Værdier_Angivet,Betalingsdato,\"\"), \"\")","v":""},{"$f":"IFERROR(IF(Lån_Ikke_Betalt*Værdier_Angivet,Startsaldo,\"\"), \"\")","v":""},{"$f":"IFERROR(IF(Lån_Ikke_Betalt*Værdier_Angivet,Månedlig_Betaling,\"\"), \"\")","v":""},{"$f":"IFERROR(IF(Lån_Ikke_Betalt*Værdier_Angivet,Hovedstol,\"\"), \"\")","v":""},{"$f":"IFERROR(IF(Lån_Ikke_Betalt*Værdier_Angivet,Renter,\"\"), \"\")","v":""},{"$f":"IFERROR(IF(Lån_Ikke_Betalt*Værdier_Angivet,Slut_saldo,\"\"), \"\")","v":""}]
[null,{"$f":"IFERROR(IF(Lån_Ikke_Betalt*Værdier_Angivet,Betaling_Nummer,\"\"), \"\")","v":""},{"$f":"IFERROR(IF(Lån_Ikke_Betalt*Værdier_Angivet,Betalingsdato,\"\"), \"\")","v":""},{"$f":"IFERROR(IF(Lån_Ikke_Betalt*Værdier_Angivet,Startsaldo,\"\"), \"\")","v":""},{"$f":"IFERROR(IF(Lån_Ikke_Betalt*Værdier_Angivet,Månedlig_Betaling,\"\"), \"\")","v":""},{"$f":"IFERROR(IF(Lån_Ikke_Betalt*Værdier_Angivet,Hovedstol,\"\"), \"\")","v":""},{"$f":"IFERROR(IF(Lån_Ikke_Betalt*Værdier_Angivet,Renter,\"\"), \"\")","v":""},{"$f":"IFERROR(IF(Lån_Ikke_Betalt*Værdier_Angivet,Slut_saldo,\"\"), \"\")","v":""}]
[null,{"$f":"IFERROR(IF(Lån_Ikke_Betalt*Værdier_Angivet,Betaling_Nummer,\"\"), \"\")","v":""},{"$f":"IFERROR(IF(Lån_Ikke_Betalt*Værdier_Angivet,Betalingsdato,\"\"), \"\")","v":""},{"$f":"IFERROR(IF(Lån_Ikke_Betalt*Værdier_Angivet,Startsaldo,\"\"), \"\")","v":""},{"$f":"IFERROR(IF(Lån_Ikke_Betalt*Værdier_Angivet,Månedlig_Betaling,\"\"), \"\")","v":""},{"$f":"IFERROR(IF(Lån_Ikke_Betalt*Værdier_Angivet,Hovedstol,\"\"), \"\")","v":""},{"$f":"IFERROR(IF(Lån_Ikke_Betalt*Værdier_Angivet,Renter,\"\"), \"\")","v":""},{"$f":"IFERROR(IF(Lån_Ikke_Betalt*Værdier_Angivet,Slut_saldo,\"\"), \"\")","v":""}]
[null,{"$f":"IFERROR(IF(Lån_Ikke_Betalt*Værdier_Angivet,Betaling_Nummer,\"\"), \"\")","v":""},{"$f":"IFERROR(IF(Lån_Ikke_Betalt*Værdier_Angivet,Betalingsdato,\"\"), \"\")","v":""},{"$f":"IFERROR(IF(Lån_Ikke_Betalt*Værdier_Angivet,Startsaldo,\"\"), \"\")","v":""},{"$f":"IFERROR(IF(Lån_Ikke_Betalt*Værdier_Angivet,Månedlig_Betaling,\"\"), \"\")","v":""},{"$f":"IFERROR(IF(Lån_Ikke_Betalt*Værdier_Angivet,Hovedstol,\"\"), \"\")","v":""},{"$f":"IFERROR(IF(Lån_Ikke_Betalt*Værdier_Angivet,Renter,\"\"), \"\")","v":""},{"$f":"IFERROR(IF(Lån_Ikke_Betalt*Værdier_Angivet,Slut_saldo,\"\"), \"\")","v":""}]
[null,{"$f":"IFERROR(IF(Lån_Ikke_Betalt*Værdier_Angivet,Betaling_Nummer,\"\"), \"\")","v":""},{"$f":"IFERROR(IF(Lån_Ikke_Betalt*Værdier_Angivet,Betalingsdato,\"\"), \"\")","v":""},{"$f":"IFERROR(IF(Lån_Ikke_Betalt*Værdier_Angivet,Startsaldo,\"\"), \"\")","v":""},{"$f":"IFERROR(IF(Lån_Ikke_Betalt*Værdier_Angivet,Månedlig_Betaling,\"\"), \"\")","v":""},{"$f":"IFERROR(IF(Lån_Ikke_Betalt*Værdier_Angivet,Hovedstol,\"\"), \"\")","v":""},{"$f":"IFERROR(IF(Lån_Ikke_Betalt*Værdier_Angivet,Renter,\"\"), \"\")","v":""},{"$f":"IFERROR(IF(Lån_Ikke_Betalt*Værdier_Angivet,Slut_saldo,\"\"), \"\")","v":""}]
[null,{"$f":"IFERROR(IF(Lån_Ikke_Betalt*Værdier_Angivet,Betaling_Nummer,\"\"), \"\")","v":""},{"$f":"IFERROR(IF(Lån_Ikke_Betalt*Værdier_Angivet,Betalingsdato,\"\"), \"\")","v":""},{"$f":"IFERROR(IF(Lån_Ikke_Betalt*Værdier_Angivet,Startsaldo,\"\"), \"\")","v":""},{"$f":"IFERROR(IF(Lån_Ikke_Betalt*Værdier_Angivet,Månedlig_Betaling,\"\"), \"\")","v":""},{"$f":"IFERROR(IF(Lån_Ikke_Betalt*Værdier_Angivet,Hovedstol,\"\"), \"\")","v":""},{"$f":"IFERROR(IF(Lån_Ikke_Betalt*Værdier_Angivet,Renter,\"\"), \"\")","v":""},{"$f":"IFERROR(IF(Lån_Ikke_Betalt*Værdier_Angivet,Slut_saldo,\"\"), \"\")","v":""}]
[null,{"$f":"IFERROR(IF(Lån_Ikke_Betalt*Værdier_Angivet,Betaling_Nummer,\"\"), \"\")","v":""},{"$f":"IFERROR(IF(Lån_Ikke_Betalt*Værdier_Angivet,Betalingsdato,\"\"), \"\")","v":""},{"$f":"IFERROR(IF(Lån_Ikke_Betalt*Værdier_Angivet,Startsaldo,\"\"), \"\")","v":""},{"$f":"IFERROR(IF(Lån_Ikke_Betalt*Værdier_Angivet,Månedlig_Betaling,\"\"), \"\")","v":""},{"$f":"IFERROR(IF(Lån_Ikke_Betalt*Værdier_Angivet,Hovedstol,\"\"), \"\")","v":""},{"$f":"IFERROR(IF(Lån_Ikke_Betalt*Værdier_Angivet,Renter,\"\"), \"\")","v":""},{"$f":"IFERROR(IF(Lån_Ikke_Betalt*Værdier_Angivet,Slut_saldo,\"\"), \"\")","v":""}]
[null,{"$f":"IFERROR(IF(Lån_Ikke_Betalt*Værdier_Angivet,Betaling_Nummer,\"\"), \"\")","v":""},{"$f":"IFERROR(IF(Lån_Ikke_Betalt*Værdier_Angivet,Betalingsdato,\"\"), \"\")","v":""},{"$f":"IFERROR(IF(Lån_Ikke_Betalt*Værdier_Angivet,Startsaldo,\"\"), \"\")","v":""},{"$f":"IFERROR(IF(Lån_Ikke_Betalt*Værdier_Angivet,Månedlig_Betaling,\"\"), \"\")","v":""},{"$f":"IFERROR(IF(Lån_Ikke_Betalt*Værdier_Angivet,Hovedstol,\"\"), \"\")","v":""},{"$f":"IFERROR(IF(Lån_Ikke_Betalt*Værdier_Angivet,Renter,\"\"), \"\")","v":""},{"$f":"IFERROR(IF(Lån_Ikke_Betalt*Værdier_Angivet,Slut_saldo,\"\"), \"\")","v":""}]
[null,{"$f":"IFERROR(IF(Lån_Ikke_Betalt*Værdier_Angivet,Betaling_Nummer,\"\"), \"\")","v":""},{"$f":"IFERROR(IF(Lån_Ikke_Betalt*Værdier_Angivet,Betalingsdato,\"\"), \"\")","v":""},{"$f":"IFERROR(IF(Lån_Ikke_Betalt*Værdier_Angivet,Startsaldo,\"\"), \"\")","v":""},{"$f":"IFERROR(IF(Lån_Ikke_Betalt*Værdier_Angivet,Månedlig_Betaling,\"\"), \"\")","v":""},{"$f":"IFERROR(IF(Lån_Ikke_Betalt*Værdier_Angivet,Hovedstol,\"\"), \"\")","v":""},{"$f":"IFERROR(IF(Lån_Ikke_Betalt*Værdier_Angivet,Renter,\"\"), \"\")","v":""},{"$f":"IFERROR(IF(Lån_Ikke_Betalt*Værdier_Angivet,Slut_saldo,\"\"), \"\")","v":""}]
[null,{"$f":"IFERROR(IF(Lån_Ikke_Betalt*Værdier_Angivet,Betaling_Nummer,\"\"), \"\")","v":""},{"$f":"IFERROR(IF(Lån_Ikke_Betalt*Værdier_Angivet,Betalingsdato,\"\"), \"\")","v":""},{"$f":"IFERROR(IF(Lån_Ikke_Betalt*Værdier_Angivet,Startsaldo,\"\"), \"\")","v":""},{"$f":"IFERROR(IF(Lån_Ikke_Betalt*Værdier_Angivet,Månedlig_Betaling,\"\"), \"\")","v":""},{"$f":"IFERROR(IF(Lån_Ikke_Betalt*Værdier_Angivet,Hovedstol,\"\"), \"\")","v":""},{"$f":"IFERROR(IF(Lån_Ikke_Betalt*Værdier_Angivet,Renter,\"\"), \"\")","v":""},{"$f":"IFERROR(IF(Lån_Ikke_Betalt*Værdier_Angivet,Slut_saldo,\"\"), \"\")","v":""}]
[null,{"$f":"IFERROR(IF(Lån_Ikke_Betalt*Værdier_Angivet,Betaling_Nummer,\"\"), \"\")","v":""},{"$f":"IFERROR(IF(Lån_Ikke_Betalt*Værdier_Angivet,Betalingsdato,\"\"), \"\")","v":""},{"$f":"IFERROR(IF(Lån_Ikke_Betalt*Værdier_Angivet,Startsaldo,\"\"), \"\")","v":""},{"$f":"IFERROR(IF(Lån_Ikke_Betalt*Værdier_Angivet,Månedlig_Betaling,\"\"), \"\")","v":""},{"$f":"IFERROR(IF(Lån_Ikke_Betalt*Værdier_Angivet,Hovedstol,\"\"), \"\")","v":""},{"$f":"IFERROR(IF(Lån_Ikke_Betalt*Værdier_Angivet,Renter,\"\"), \"\")","v":""},{"$f":"IFERROR(IF(Lån_Ikke_Betalt*Værdier_Angivet,Slut_saldo,\"\"), \"\")","v":""}]
[null,{"$f":"IFERROR(IF(Lån_Ikke_Betalt*Værdier_Angivet,Betaling_Nummer,\"\"), \"\")","v":""},{"$f":"IFERROR(IF(Lån_Ikke_Betalt*Værdier_Angivet,Betalingsdato,\"\"), \"\")","v":""},{"$f":"IFERROR(IF(Lån_Ikke_Betalt*Værdier_Angivet,Startsaldo,\"\"), \"\")","v":""},{"$f":"IFERROR(IF(Lån_Ikke_Betalt*Værdier_Angivet,Månedlig_Betaling,\"\"), \"\")","v":""},{"$f":"IFERROR(IF(Lån_Ikke_Betalt*Værdier_Angivet,Hovedstol,\"\"), \"\")","v":""},{"$f":"IFERROR(IF(Lån_Ikke_Betalt*Værdier_Angivet,Renter,\"\"), \"\")","v":""},{"$f":"IFERROR(IF(Lån_Ikke_Betalt*Værdier_Angivet,Slut_saldo,\"\"), \"\")","v":""}]
[null,{"$f":"IFERROR(IF(Lån_Ikke_Betalt*Værdier_Angivet,Betaling_Nummer,\"\"), \"\")","v":""},{"$f":"IFERROR(IF(Lån_Ikke_Betalt*Værdier_Angivet,Betalingsdato,\"\"), \"\")","v":""},{"$f":"IFERROR(IF(Lån_Ikke_Betalt*Værdier_Angivet,Startsaldo,\"\"), \"\")","v":""},{"$f":"IFERROR(IF(Lån_Ikke_Betalt*Værdier_Angivet,Månedlig_Betaling,\"\"), \"\")","v":""},{"$f":"IFERROR(IF(Lån_Ikke_Betalt*Værdier_Angivet,Hovedstol,\"\"), \"\")","v":""},{"$f":"IFERROR(IF(Lån_Ikke_Betalt*Værdier_Angivet,Renter,\"\"), \"\")","v":""},{"$f":"IFERROR(IF(Lån_Ikke_Betalt*Værdier_Angivet,Slut_saldo,\"\"), \"\")","v":""}]
[null,{"$f":"IFERROR(IF(Lån_Ikke_Betalt*Værdier_Angivet,Betaling_Nummer,\"\"), \"\")","v":""},{"$f":"IFERROR(IF(Lån_Ikke_Betalt*Værdier_Angivet,Betalingsdato,\"\"), \"\")","v":""},{"$f":"IFERROR(IF(Lån_Ikke_Betalt*Værdier_Angivet,Startsaldo,\"\"), \"\")","v":""},{"$f":"IFERROR(IF(Lån_Ikke_Betalt*Værdier_Angivet,Månedlig_Betaling,\"\"), \"\")","v":""},{"$f":"IFERROR(IF(Lån_Ikke_Betalt*Værdier_Angivet,Hovedstol,\"\"), \"\")","v":""},{"$f":"IFERROR(IF(Lån_Ikke_Betalt*Værdier_Angivet,Renter,\"\"), \"\")","v":""},{"$f":"IFERROR(IF(Lån_Ikke_Betalt*Værdier_Angivet,Slut_saldo,\"\"), \"\")","v":""}]
[null,{"$f":"IFERROR(IF(Lån_Ikke_Betalt*Værdier_Angivet,Betaling_Nummer,\"\"), \"\")","v":""},{"$f":"IFERROR(IF(Lån_Ikke_Betalt*Værdier_Angivet,Betalingsdato,\"\"), \"\")","v":""},{"$f":"IFERROR(IF(Lån_Ikke_Betalt*Værdier_Angivet,Startsaldo,\"\"), \"\")","v":""},{"$f":"IFERROR(IF(Lån_Ikke_Betalt*Værdier_Angivet,Månedlig_Betaling,\"\"), \"\")","v":""},{"$f":"IFERROR(IF(Lån_Ikke_Betalt*Værdier_Angivet,Hovedstol,\"\"), \"\")","v":""},{"$f":"IFERROR(IF(Lån_Ikke_Betalt*Værdier_Angivet,Renter,\"\"), \"\")","v":""},{"$f":"IFERROR(IF(Lån_Ikke_Betalt*Værdier_Angivet,Slut_saldo,\"\"), \"\")","v":""}]
[null,{"$f":"IFERROR(IF(Lån_Ikke_Betalt*Værdier_Angivet,Betaling_Nummer,\"\"), \"\")","v":""},{"$f":"IFERROR(IF(Lån_Ikke_Betalt*Værdier_Angivet,Betalingsdato,\"\"), \"\")","v":""},{"$f":"IFERROR(IF(Lån_Ikke_Betalt*Værdier_Angivet,Startsaldo,\"\"), \"\")","v":""},{"$f":"IFERROR(IF(Lån_Ikke_Betalt*Værdier_Angivet,Månedlig_Betaling,\"\"), \"\")","v":""},{"$f":"IFERROR(IF(Lån_Ikke_Betalt*Værdier_Angivet,Hovedstol,\"\"), \"\")","v":""},{"$f":"IFERROR(IF(Lån_Ikke_Betalt*Værdier_Angivet,Renter,\"\"), \"\")","v":""},{"$f":"IFERROR(IF(Lån_Ikke_Betalt*Værdier_Angivet,Slut_saldo,\"\"), \"\")","v":""}]
[null,{"$f":"IFERROR(IF(Lån_Ikke_Betalt*Værdier_Angivet,Betaling_Nummer,\"\"), \"\")","v":""},{"$f":"IFERROR(IF(Lån_Ikke_Betalt*Værdier_Angivet,Betalingsdato,\"\"), \"\")","v":""},{"$f":"IFERROR(IF(Lån_Ikke_Betalt*Værdier_Angivet,Startsaldo,\"\"), \"\")","v":""},{"$f":"IFERROR(IF(Lån_Ikke_Betalt*Værdier_Angivet,Månedlig_Betaling,\"\"), \"\")","v":""},{"$f":"IFERROR(IF(Lån_Ikke_Betalt*Værdier_Angivet,Hovedstol,\"\"), \"\")","v":""},{"$f":"IFERROR(IF(Lån_Ikke_Betalt*Værdier_Angivet,Renter,\"\"), \"\")","v":""},{"$f":"IFERROR(IF(Lån_Ikke_Betalt*Værdier_Angivet,Slut_saldo,\"\"), \"\")","v":""}]
[null,{"$f":"IFERROR(IF(Lån_Ikke_Betalt*Værdier_Angivet,Betaling_Nummer,\"\"), \"\")","v":""},{"$f":"IFERROR(IF(Lån_Ikke_Betalt*Værdier_Angivet,Betalingsdato,\"\"), \"\")","v":""},{"$f":"IFERROR(IF(Lån_Ikke_Betalt*Værdier_Angivet,Startsaldo,\"\"), \"\")","v":""},{"$f":"IFERROR(IF(Lån_Ikke_Betalt*Værdier_Angivet,Månedlig_Betaling,\"\"), \"\")","v":""},{"$f":"IFERROR(IF(Lån_Ikke_Betalt*Værdier_Angivet,Hovedstol,\"\"), \"\")","v":""},{"$f":"IFERROR(IF(Lån_Ikke_Betalt*Værdier_Angivet,Renter,\"\"), \"\")","v":""},{"$f":"IFERROR(IF(Lån_Ikke_Betalt*Værdier_Angivet,Slut_saldo,\"\"), \"\")","v":""}]
[null,{"$f":"IFERROR(IF(Lån_Ikke_Betalt*Værdier_Angivet,Betaling_Nummer,\"\"), \"\")","v":""},{"$f":"IFERROR(IF(Lån_Ikke_Betalt*Værdier_Angivet,Betalingsdato,\"\"), \"\")","v":""},{"$f":"IFERROR(IF(Lån_Ikke_Betalt*Værdier_Angivet,Startsaldo,\"\"), \"\")","v":""},{"$f":"IFERROR(IF(Lån_Ikke_Betalt*Værdier_Angivet,Månedlig_Betaling,\"\"), \"\")","v":""},{"$f":"IFERROR(IF(Lån_Ikke_Betalt*Værdier_Angivet,Hovedstol,\"\"), \"\")","v":""},{"$f":"IFERROR(IF(Lån_Ikke_Betalt*Værdier_Angivet,Renter,\"\"), \"\")","v":""},{"$f":"IFERROR(IF(Lån_Ikke_Betalt*Værdier_Angivet,Slut_saldo,\"\"), \"\")","v":""}]
[null,{"$f":"IFERROR(IF(Lån_Ikke_Betalt*Værdier_Angivet,Betaling_Nummer,\"\"), \"\")","v":""},{"$f":"IFERROR(IF(Lån_Ikke_Betalt*Værdier_Angivet,Betalingsdato,\"\"), \"\")","v":""},{"$f":"IFERROR(IF(Lån_Ikke_Betalt*Værdier_Angivet,Startsaldo,\"\"), \"\")","v":""},{"$f":"IFERROR(IF(Lån_Ikke_Betalt*Værdier_Angivet,Månedlig_Betaling,\"\"), \"\")","v":""},{"$f":"IFERROR(IF(Lån_Ikke_Betalt*Værdier_Angivet,Hovedstol,\"\"), \"\")","v":""},{"$f":"IFERROR(IF(Lån_Ikke_Betalt*Værdier_Angivet,Renter,\"\"), \"\")","v":""},{"$f":"IFERROR(IF(Lån_Ikke_Betalt*Værdier_Angivet,Slut_saldo,\"\"), \"\")","v":""}]
[null,{"$f":"IFERROR(IF(Lån_Ikke_Betalt*Værdier_Angivet,Betaling_Nummer,\"\"), \"\")","v":""},{"$f":"IFERROR(IF(Lån_Ikke_Betalt*Værdier_Angivet,Betalingsdato,\"\"), \"\")","v":""},{"$f":"IFERROR(IF(Lån_Ikke_Betalt*Værdier_Angivet,Startsaldo,\"\"), \"\")","v":""},{"$f":"IFERROR(IF(Lån_Ikke_Betalt*Værdier_Angivet,Månedlig_Betaling,\"\"), \"\")","v":""},{"$f":"IFERROR(IF(Lån_Ikke_Betalt*Værdier_Angivet,Hovedstol,\"\"), \"\")","v":""},{"$f":"IFERROR(IF(Lån_Ikke_Betalt*Værdier_Angivet,Renter,\"\"), \"\")","v":""},{"$f":"IFERROR(IF(Lån_Ikke_Betalt*Værdier_Angivet,Slut_saldo,\"\"), \"\")","v":""}]
[null,{"$f":"IFERROR(IF(Lån_Ikke_Betalt*Værdier_Angivet,Betaling_Nummer,\"\"), \"\")","v":""},{"$f":"IFERROR(IF(Lån_Ikke_Betalt*Værdier_Angivet,Betalingsdato,\"\"), \"\")","v":""},{"$f":"IFERROR(IF(Lån_Ikke_Betalt*Værdier_Angivet,Startsaldo,\"\"), \"\")","v":""},{"$f":"IFERROR(IF(Lån_Ikke_Betalt*Værdier_Angivet,Månedlig_Betaling,\"\"), \"\")","v":""},{"$f":"IFERROR(IF(Lån_Ikke_Betalt*Værdier_Angivet,Hovedstol,\"\"), \"\")","v":""},{"$f":"IFERROR(IF(Lån_Ikke_Betalt*Værdier_Angivet,Renter,\"\"), \"\")","v":""},{"$f":"IFERROR(IF(Lån_Ikke_Betalt*Værdier_Angivet,Slut_saldo,\"\"), \"\")","v":""}]
[null,{"$f":"IFERROR(IF(Lån_Ikke_Betalt*Værdier_Angivet,Betaling_Nummer,\"\"), \"\")","v":""},{"$f":"IFERROR(IF(Lån_Ikke_Betalt*Værdier_Angivet,Betalingsdato,\"\"), \"\")","v":""},{"$f":"IFERROR(IF(Lån_Ikke_Betalt*Værdier_Angivet,Startsaldo,\"\"), \"\")","v":""},{"$f":"IFERROR(IF(Lån_Ikke_Betalt*Værdier_Angivet,Månedlig_Betaling,\"\"), \"\")","v":""},{"$f":"IFERROR(IF(Lån_Ikke_Betalt*Værdier_Angivet,Hovedstol,\"\"), \"\")","v":""},{"$f":"IFERROR(IF(Lån_Ikke_Betalt*Værdier_Angivet,Renter,\"\"), \"\")","v":""},{"$f":"IFERROR(IF(Lån_Ikke_Betalt*Værdier_Angivet,Slut_saldo,\"\"), \"\")","v":""}]
[null,{"$f":"IFERROR(IF(Lån_Ikke_Betalt*Værdier_Angivet,Betaling_Nummer,\"\"), \"\")","v":""},{"$f":"IFERROR(IF(Lån_Ikke_Betalt*Værdier_Angivet,Betalingsdato,\"\"), \"\")","v":""},{"$f":"IFERROR(IF(Lån_Ikke_Betalt*Værdier_Angivet,Startsaldo,\"\"), \"\")","v":""},{"$f":"IFERROR(IF(Lån_Ikke_Betalt*Værdier_Angivet,Månedlig_Betaling,\"\"), \"\")","v":""},{"$f":"IFERROR(IF(Lån_Ikke_Betalt*Værdier_Angivet,Hovedstol,\"\"), \"\")","v":""},{"$f":"IFERROR(IF(Lån_Ikke_Betalt*Værdier_Angivet,Renter,\"\"), \"\")","v":""},{"$f":"IFERROR(IF(Lån_Ikke_Betalt*Værdier_Angivet,Slut_saldo,\"\"), \"\")","v":""}]
[null,{"$f":"IFERROR(IF(Lån_Ikke_Betalt*Værdier_Angivet,Betaling_Nummer,\"\"), \"\")","v":""},{"$f":"IFERROR(IF(Lån_Ikke_Betalt*Værdier_Angivet,Betalingsdato,\"\"), \"\")","v":""},{"$f":"IFERROR(IF(Lån_Ikke_Betalt*Værdier_Angivet,Startsaldo,\"\"), \"\")","v":""},{"$f":"IFERROR(IF(Lån_Ikke_Betalt*Værdier_Angivet,Månedlig_Betaling,\"\"), \"\")","v":""},{"$f":"IFERROR(IF(Lån_Ikke_Betalt*Værdier_Angivet,Hovedstol,\"\"), \"\")","v":""},{"$f":"IFERROR(IF(Lån_Ikke_Betalt*Værdier_Angivet,Renter,\"\"), \"\")","v":""},{"$f":"IFERROR(IF(Lån_Ikke_Betalt*Værdier_Angivet,Slut_saldo,\"\"), \"\")","v":""}]
[null,{"$f":"IFERROR(IF(Lån_Ikke_Betalt*Værdier_Angivet,Betaling_Nummer,\"\"), \"\")","v":""},{"$f":"IFERROR(IF(Lån_Ikke_Betalt*Værdier_Angivet,Betalingsdato,\"\"), \"\")","v":""},{"$f":"IFERROR(IF(Lån_Ikke_Betalt*Værdier_Angivet,Startsaldo,\"\"), \"\")","v":""},{"$f":"IFERROR(IF(Lån_Ikke_Betalt*Værdier_Angivet,Månedlig_Betaling,\"\"), \"\")","v":""},{"$f":"IFERROR(IF(Lån_Ikke_Betalt*Værdier_Angivet,Hovedstol,\"\"), \"\")","v":""},{"$f":"IFERROR(IF(Lån_Ikke_Betalt*Værdier_Angivet,Renter,\"\"), \"\")","v":""},{"$f":"IFERROR(IF(Lån_Ikke_Betalt*Værdier_Angivet,Slut_saldo,\"\"), \"\")","v":""}]
[null,{"$f":"IFERROR(IF(Lån_Ikke_Betalt*Værdier_Angivet,Betaling_Nummer,\"\"), \"\")","v":""},{"$f":"IFERROR(IF(Lån_Ikke_Betalt*Værdier_Angivet,Betalingsdato,\"\"), \"\")","v":""},{"$f":"IFERROR(IF(Lån_Ikke_Betalt*Værdier_Angivet,Startsaldo,\"\"), \"\")","v":""},{"$f":"IFERROR(IF(Lån_Ikke_Betalt*Værdier_Angivet,Månedlig_Betaling,\"\"), \"\")","v":""},{"$f":"IFERROR(IF(Lån_Ikke_Betalt*Værdier_Angivet,Hovedstol,\"\"), \"\")","v":""},{"$f":"IFERROR(IF(Lån_Ikke_Betalt*Værdier_Angivet,Renter,\"\"), \"\")","v":""},{"$f":"IFERROR(IF(Lån_Ikke_Betalt*Værdier_Angivet,Slut_saldo,\"\"), \"\")","v":""}]
[null,{"$f":"IFERROR(IF(Lån_Ikke_Betalt*Værdier_Angivet,Betaling_Nummer,\"\"), \"\")","v":""},{"$f":"IFERROR(IF(Lån_Ikke_Betalt*Værdier_Angivet,Betalingsdato,\"\"), \"\")","v":""},{"$f":"IFERROR(IF(Lån_Ikke_Betalt*Værdier_Angivet,Startsaldo,\"\"), \"\")","v":""},{"$f":"IFERROR(IF(Lån_Ikke_Betalt*Værdier_Angivet,Månedlig_Betaling,\"\"), \"\")","v":""},{"$f":"IFERROR(IF(Lån_Ikke_Betalt*Værdier_Angivet,Hovedstol,\"\"), \"\")","v":""},{"$f":"IFERROR(IF(Lån_Ikke_Betalt*Værdier_Angivet,Renter,\"\"), \"\")","v":""},{"$f":"IFERROR(IF(Lån_Ikke_Betalt*Værdier_Angivet,Slut_saldo,\"\"), \"\")","v":""}]
[null,{"$f":"IFERROR(IF(Lån_Ikke_Betalt*Værdier_Angivet,Betaling_Nummer,\"\"), \"\")","v":""},{"$f":"IFERROR(IF(Lån_Ikke_Betalt*Værdier_Angivet,Betalingsdato,\"\"), \"\")","v":""},{"$f":"IFERROR(IF(Lån_Ikke_Betalt*Værdier_Angivet,Startsaldo,\"\"), \"\")","v":""},{"$f":"IFERROR(IF(Lån_Ikke_Betalt*Værdier_Angivet,Månedlig_Betaling,\"\"), \"\")","v":""},{"$f":"IFERROR(IF(Lån_Ikke_Betalt*Værdier_Angivet,Hovedstol,\"\"), \"\")","v":""},{"$f":"IFERROR(IF(Lån_Ikke_Betalt*Værdier_Angivet,Renter,\"\"), \"\")","v":""},{"$f":"IFERROR(IF(Lån_Ikke_Betalt*Værdier_Angivet,Slut_saldo,\"\"), \"\")","v":""}]
[null,{"$f":"IFERROR(IF(Lån_Ikke_Betalt*Værdier_Angivet,Betaling_Nummer,\"\"), \"\")","v":""},{"$f":"IFERROR(IF(Lån_Ikke_Betalt*Værdier_Angivet,Betalingsdato,\"\"), \"\")","v":""},{"$f":"IFERROR(IF(Lån_Ikke_Betalt*Værdier_Angivet,Startsaldo,\"\"), \"\")","v":""},{"$f":"IFERROR(IF(Lån_Ikke_Betalt*Værdier_Angivet,Månedlig_Betaling,\"\"), \"\")","v":""},{"$f":"IFERROR(IF(Lån_Ikke_Betalt*Værdier_Angivet,Hovedstol,\"\"), \"\")","v":""},{"$f":"IFERROR(IF(Lån_Ikke_Betalt*Værdier_Angivet,Renter,\"\"), \"\")","v":""},{"$f":"IFERROR(IF(Lån_Ikke_Betalt*Værdier_Angivet,Slut_saldo,\"\"), \"\")","v":""}]
[null,{"$f":"IFERROR(IF(Lån_Ikke_Betalt*Værdier_Angivet,Betaling_Nummer,\"\"), \"\")","v":""},{"$f":"IFERROR(IF(Lån_Ikke_Betalt*Værdier_Angivet,Betalingsdato,\"\"), \"\")","v":""},{"$f":"IFERROR(IF(Lån_Ikke_Betalt*Værdier_Angivet,Startsaldo,\"\"), \"\")","v":""},{"$f":"IFERROR(IF(Lån_Ikke_Betalt*Værdier_Angivet,Månedlig_Betaling,\"\"), \"\")","v":""},{"$f":"IFERROR(IF(Lån_Ikke_Betalt*Værdier_Angivet,Hovedstol,\"\"), \"\")","v":""},{"$f":"IFERROR(IF(Lån_Ikke_Betalt*Værdier_Angivet,Renter,\"\"), \"\")","v":""},{"$f":"IFERROR(IF(Lån_Ikke_Betalt*Værdier_Angivet,Slut_saldo,\"\"), \"\")","v":""}]
[null,{"$f":"IFERROR(IF(Lån_Ikke_Betalt*Værdier_Angivet,Betaling_Nummer,\"\"), \"\")","v":""},{"$f":"IFERROR(IF(Lån_Ikke_Betalt*Værdier_Angivet,Betalingsdato,\"\"), \"\")","v":""},{"$f":"IFERROR(IF(Lån_Ikke_Betalt*Værdier_Angivet,Startsaldo,\"\"), \"\")","v":""},{"$f":"IFERROR(IF(Lån_Ikke_Betalt*Værdier_Angivet,Månedlig_Betaling,\"\"), \"\")","v":""},{"$f":"IFERROR(IF(Lån_Ikke_Betalt*Værdier_Angivet,Hovedstol,\"\"), \"\")","v":""},{"$f":"IFERROR(IF(Lån_Ikke_Betalt*Værdier_Angivet,Renter,\"\"), \"\")","v":""},{"$f":"IFERROR(IF(Lån_Ikke_Betalt*Værdier_Angivet,Slut_saldo,\"\"), \"\")","v":""}]
[null,{"$f":"IFERROR(IF(Lån_Ikke_Betalt*Værdier_Angivet,Betaling_Nummer,\"\"), \"\")","v":""},{"$f":"IFERROR(IF(Lån_Ikke_Betalt*Værdier_Angivet,Betalingsdato,\"\"), \"\")","v":""},{"$f":"IFERROR(IF(Lån_Ikke_Betalt*Værdier_Angivet,Startsaldo,\"\"), \"\")","v":""},{"$f":"IFERROR(IF(Lån_Ikke_Betalt*Værdier_Angivet,Månedlig_Betaling,\"\"), \"\")","v":""},{"$f":"IFERROR(IF(Lån_Ikke_Betalt*Værdier_Angivet,Hovedstol,\"\"), \"\")","v":""},{"$f":"IFERROR(IF(Lån_Ikke_Betalt*Værdier_Angivet,Renter,\"\"), \"\")","v":""},{"$f":"IFERROR(IF(Lån_Ikke_Betalt*Værdier_Angivet,Slut_saldo,\"\"), \"\")","v":""}]
[null,{"$f":"IFERROR(IF(Lån_Ikke_Betalt*Værdier_Angivet,Betaling_Nummer,\"\"), \"\")","v":""},{"$f":"IFERROR(IF(Lån_Ikke_Betalt*Værdier_Angivet,Betalingsdato,\"\"), \"\")","v":""},{"$f":"IFERROR(IF(Lån_Ikke_Betalt*Værdier_Angivet,Startsaldo,\"\"), \"\")","v":""},{"$f":"IFERROR(IF(Lån_Ikke_Betalt*Værdier_Angivet,Månedlig_Betaling,\"\"), \"\")","v":""},{"$f":"IFERROR(IF(Lån_Ikke_Betalt*Værdier_Angivet,Hovedstol,\"\"), \"\")","v":""},{"$f":"IFERROR(IF(Lån_Ikke_Betalt*Værdier_Angivet,Renter,\"\"), \"\")","v":""},{"$f":"IFERROR(IF(Lån_Ikke_Betalt*Værdier_Angivet,Slut_saldo,\"\"), \"\")","v":""}]
[null,{"$f":"IFERROR(IF(Lån_Ikke_Betalt*Værdier_Angivet,Betaling_Nummer,\"\"), \"\")","v":""},{"$f":"IFERROR(IF(Lån_Ikke_Betalt*Værdier_Angivet,Betalingsdato,\"\"), \"\")","v":""},{"$f":"IFERROR(IF(Lån_Ikke_Betalt*Værdier_Angivet,Startsaldo,\"\"), \"\")","v":""},{"$f":"IFERROR(IF(Lån_Ikke_Betalt*Værdier_Angivet,Månedlig_Betaling,\"\"), \"\")","v":""},{"$f":"IFERROR(IF(Lån_Ikke_Betalt*Værdier_Angivet,Hovedstol,\"\"), \"\")","v":""},{"$f":"IFERROR(IF(Lån_Ikke_Betalt*Værdier_Angivet,Renter,\"\"), \"\")","v":""},{"$f":"IFERROR(IF(Lån_Ikke_Betalt*Værdier_Angivet,Slut_saldo,\"\"), \"\")","v":""}]
[null,{"$f":"IFERROR(IF(Lån_Ikke_Betalt*Værdier_Angivet,Betaling_Nummer,\"\"), \"\")","v":""},{"$f":"IFERROR(IF(Lån_Ikke_Betalt*Værdier_Angivet,Betalingsdato,\"\"), \"\")","v":""},{"$f":"IFERROR(IF(Lån_Ikke_Betalt*Værdier_Angivet,Startsaldo,\"\"), \"\")","v":""},{"$f":"IFERROR(IF(Lån_Ikke_Betalt*Værdier_Angivet,Månedlig_Betaling,\"\"), \"\")","v":""},{"$f":"IFERROR(IF(Lån_Ikke_Betalt*Værdier_Angivet,Hovedstol,\"\"), \"\")","v":""},{"$f":"IFERROR(IF(Lån_Ikke_Betalt*Værdier_Angivet,Renter,\"\"), \"\")","v":""},{"$f":"IFERROR(IF(Lån_Ikke_Betalt*Værdier_Angivet,Slut_saldo,\"\"), \"\")","v":""}]
[null,{"$f":"IFERROR(IF(Lån_Ikke_Betalt*Værdier_Angivet,Betaling_Nummer,\"\"), \"\")","v":""},{"$f":"IFERROR(IF(Lån_Ikke_Betalt*Værdier_Angivet,Betalingsdato,\"\"), \"\")","v":""},{"$f":"IFERROR(IF(Lån_Ikke_Betalt*Værdier_Angivet,Startsaldo,\"\"), \"\")","v":""},{"$f":"IFERROR(IF(Lån_Ikke_Betalt*Værdier_Angivet,Månedlig_Betaling,\"\"), \"\")","v":""},{"$f":"IFERROR(IF(Lån_Ikke_Betalt*Værdier_Angivet,Hovedstol,\"\"), \"\")","v":""},{"$f":"IFERROR(IF(Lån_Ikke_Betalt*Værdier_Angivet,Renter,\"\"), \"\")","v":""},{"$f":"IFERROR(IF(Lån_Ikke_Betalt*Værdier_Angivet,Slut_saldo,\"\"), \"\")","v":""}]
[null,{"$f":"IFERROR(IF(Lån_Ikke_Betalt*Værdier_Angivet,Betaling_Nummer,\"\"), \"\")","v":""},{"$f":"IFERROR(IF(Lån_Ikke_Betalt*Værdier_Angivet,Betalingsdato,\"\"), \"\")","v":""},{"$f":"IFERROR(IF(Lån_Ikke_Betalt*Værdier_Angivet,Startsaldo,\"\"), \"\")","v":""},{"$f":"IFERROR(IF(Lån_Ikke_Betalt*Værdier_Angivet,Månedlig_Betaling,\"\"), \"\")","v":""},{"$f":"IFERROR(IF(Lån_Ikke_Betalt*Værdier_Angivet,Hovedstol,\"\"), \"\")","v":""},{"$f":"IFERROR(IF(Lån_Ikke_Betalt*Værdier_Angivet,Renter,\"\"), \"\")","v":""},{"$f":"IFERROR(IF(Lån_Ikke_Betalt*Værdier_Angivet,Slut_saldo,\"\"), \"\")","v":""}]
[null,{"$f":"IFERROR(IF(Lån_Ikke_Betalt*Værdier_Angivet,Betaling_Nummer,\"\"), \"\")","v":""},{"$f":"IFERROR(IF(Lån_Ikke_Betalt*Værdier_Angivet,Betalingsdato,\"\"), \"\")","v":""},{"$f":"IFERROR(IF(Lån_Ikke_Betalt*Værdier_Angivet,Startsaldo,\"\"), \"\")","v":""},{"$f":"IFERROR(IF(Lån_Ikke_Betalt*Værdier_Angivet,Månedlig_Betaling,\"\"), \"\")","v":""},{"$f":"IFERROR(IF(Lån_Ikke_Betalt*Værdier_Angivet,Hovedstol,\"\"), \"\")","v":""},{"$f":"IFERROR(IF(Lån_Ikke_Betalt*Værdier_Angivet,Renter,\"\"), \"\")","v":""},{"$f":"IFERROR(IF(Lån_Ikke_Betalt*Værdier_Angivet,Slut_saldo,\"\"), \"\")","v":""}]
[null,{"$f":"IFERROR(IF(Lån_Ikke_Betalt*Værdier_Angivet,Betaling_Nummer,\"\"), \"\")","v":""},{"$f":"IFERROR(IF(Lån_Ikke_Betalt*Værdier_Angivet,Betalingsdato,\"\"), \"\")","v":""},{"$f":"IFERROR(IF(Lån_Ikke_Betalt*Værdier_Angivet,Startsaldo,\"\"), \"\")","v":""},{"$f":"IFERROR(IF(Lån_Ikke_Betalt*Værdier_Angivet,Månedlig_Betaling,\"\"), \"\")","v":""},{"$f":"IFERROR(IF(Lån_Ikke_Betalt*Værdier_Angivet,Hovedstol,\"\"), \"\")","v":""},{"$f":"IFERROR(IF(Lån_Ikke_Betalt*Værdier_Angivet,Renter,\"\"), \"\")","v":""},{"$f":"IFERROR(IF(Lån_Ikke_Betalt*Værdier_Angivet,Slut_saldo,\"\"), \"\")","v":""}]
[null,{"$f":"IFERROR(IF(Lån_Ikke_Betalt*Værdier_Angivet,Betaling_Nummer,\"\"), \"\")","v":""},{"$f":"IFERROR(IF(Lån_Ikke_Betalt*Værdier_Angivet,Betalingsdato,\"\"), \"\")","v":""},{"$f":"IFERROR(IF(Lån_Ikke_Betalt*Værdier_Angivet,Startsaldo,\"\"), \"\")","v":""},{"$f":"IFERROR(IF(Lån_Ikke_Betalt*Værdier_Angivet,Månedlig_Betaling,\"\"), \"\")","v":""},{"$f":"IFERROR(IF(Lån_Ikke_Betalt*Værdier_Angivet,Hovedstol,\"\"), \"\")","v":""},{"$f":"IFERROR(IF(Lån_Ikke_Betalt*Værdier_Angivet,Renter,\"\"), \"\")","v":""},{"$f":"IFERROR(IF(Lån_Ikke_Betalt*Værdier_Angivet,Slut_saldo,\"\"), \"\")","v":""}]
[null,{"$f":"IFERROR(IF(Lån_Ikke_Betalt*Værdier_Angivet,Betaling_Nummer,\"\"), \"\")","v":""},{"$f":"IFERROR(IF(Lån_Ikke_Betalt*Værdier_Angivet,Betalingsdato,\"\"), \"\")","v":""},{"$f":"IFERROR(IF(Lån_Ikke_Betalt*Værdier_Angivet,Startsaldo,\"\"), \"\")","v":""},{"$f":"IFERROR(IF(Lån_Ikke_Betalt*Værdier_Angivet,Månedlig_Betaling,\"\"), \"\")","v":""},{"$f":"IFERROR(IF(Lån_Ikke_Betalt*Værdier_Angivet,Hovedstol,\"\"), \"\")","v":""},{"$f":"IFERROR(IF(Lån_Ikke_Betalt*Værdier_Angivet,Renter,\"\"), \"\")","v":""},{"$f":"IFERROR(IF(Lån_Ikke_Betalt*Værdier_Angivet,Slut_saldo,\"\"), \"\")","v":""}]
[null,{"$f":"IFERROR(IF(Lån_Ikke_Betalt*Værdier_Angivet,Betaling_Nummer,\"\"), \"\")","v":""},{"$f":"IFERROR(IF(Lån_Ikke_Betalt*Værdier_Angivet,Betalingsdato,\"\"), \"\")","v":""},{"$f":"IFERROR(IF(Lån_Ikke_Betalt*Værdier_Angivet,Startsaldo,\"\"), \"\")","v":""},{"$f":"IFERROR(IF(Lån_Ikke_Betalt*Værdier_Angivet,Månedlig_Betaling,\"\"), \"\")","v":""},{"$f":"IFERROR(IF(Lån_Ikke_Betalt*Værdier_Angivet,Hovedstol,\"\"), \"\")","v":""},{"$f":"IFERROR(IF(Lån_Ikke_Betalt*Værdier_Angivet,Renter,\"\"), \"\")","v":""},{"$f":"IFERROR(IF(Lån_Ikke_Betalt*Værdier_Angivet,Slut_saldo,\"\"), \"\")","v":""}]
[null,{"$f":"IFERROR(IF(Lån_Ikke_Betalt*Værdier_Angivet,Betaling_Nummer,\"\"), \"\")","v":""},{"$f":"IFERROR(IF(Lån_Ikke_Betalt*Værdier_Angivet,Betalingsdato,\"\"), \"\")","v":""},{"$f":"IFERROR(IF(Lån_Ikke_Betalt*Værdier_Angivet,Startsaldo,\"\"), \"\")","v":""},{"$f":"IFERROR(IF(Lån_Ikke_Betalt*Værdier_Angivet,Månedlig_Betaling,\"\"), \"\")","v":""},{"$f":"IFERROR(IF(Lån_Ikke_Betalt*Værdier_Angivet,Hovedstol,\"\"), \"\")","v":""},{"$f":"IFERROR(IF(Lån_Ikke_Betalt*Værdier_Angivet,Renter,\"\"), \"\")","v":""},{"$f":"IFERROR(IF(Lån_Ikke_Betalt*Værdier_Angivet,Slut_saldo,\"\"), \"\")","v":""}]
[null,{"$f":"IFERROR(IF(Lån_Ikke_Betalt*Værdier_Angivet,Betaling_Nummer,\"\"), \"\")","v":""},{"$f":"IFERROR(IF(Lån_Ikke_Betalt*Værdier_Angivet,Betalingsdato,\"\"), \"\")","v":""},{"$f":"IFERROR(IF(Lån_Ikke_Betalt*Værdier_Angivet,Startsaldo,\"\"), \"\")","v":""},{"$f":"IFERROR(IF(Lån_Ikke_Betalt*Værdier_Angivet,Månedlig_Betaling,\"\"), \"\")","v":""},{"$f":"IFERROR(IF(Lån_Ikke_Betalt*Værdier_Angivet,Hovedstol,\"\"), \"\")","v":""},{"$f":"IFERROR(IF(Lån_Ikke_Betalt*Værdier_Angivet,Renter,\"\"), \"\")","v":""},{"$f":"IFERROR(IF(Lån_Ikke_Betalt*Værdier_Angivet,Slut_saldo,\"\"), \"\")","v":""}]
[null,{"$f":"IFERROR(IF(Lån_Ikke_Betalt*Værdier_Angivet,Betaling_Nummer,\"\"), \"\")","v":""},{"$f":"IFERROR(IF(Lån_Ikke_Betalt*Værdier_Angivet,Betalingsdato,\"\"), \"\")","v":""},{"$f":"IFERROR(IF(Lån_Ikke_Betalt*Værdier_Angivet,Startsaldo,\"\"), \"\")","v":""},{"$f":"IFERROR(IF(Lån_Ikke_Betalt*Værdier_Angivet,Månedlig_Betaling,\"\"), \"\")","v":""},{"$f":"IFERROR(IF(Lån_Ikke_Betalt*Værdier_Angivet,Hovedstol,\"\"), \"\")","v":""},{"$f":"IFERROR(IF(Lån_Ikke_Betalt*Værdier_Angivet,Renter,\"\"), \"\")","v":""},{"$f":"IFERROR(IF(Lån_Ikke_Betalt*Værdier_Angivet,Slut_saldo,\"\"), \"\")","v":""}]
[null,{"$f":"IFERROR(IF(Lån_Ikke_Betalt*Værdier_Angivet,Betaling_Nummer,\"\"), \"\")","v":""},{"$f":"IFERROR(IF(Lån_Ikke_Betalt*Værdier_Angivet,Betalingsdato,\"\"), \"\")","v":""},{"$f":"IFERROR(IF(Lån_Ikke_Betalt*Værdier_Angivet,Startsaldo,\"\"), \"\")","v":""},{"$f":"IFERROR(IF(Lån_Ikke_Betalt*Værdier_Angivet,Månedlig_Betaling,\"\"), \"\")","v":""},{"$f":"IFERROR(IF(Lån_Ikke_Betalt*Værdier_Angivet,Hovedstol,\"\"), \"\")","v":""},{"$f":"IFERROR(IF(Lån_Ikke_Betalt*Værdier_Angivet,Renter,\"\"), \"\")","v":""},{"$f":"IFERROR(IF(Lån_Ikke_Betalt*Værdier_Angivet,Slut_saldo,\"\"), \"\")","v":""}]
[null,{"$f":"IFERROR(IF(Lån_Ikke_Betalt*Værdier_Angivet,Betaling_Nummer,\"\"), \"\")","v":""},{"$f":"IFERROR(IF(Lån_Ikke_Betalt*Værdier_Angivet,Betalingsdato,\"\"), \"\")","v":""},{"$f":"IFERROR(IF(Lån_Ikke_Betalt*Værdier_Angivet,Startsaldo,\"\"), \"\")","v":""},{"$f":"IFERROR(IF(Lån_Ikke_Betalt*Værdier_Angivet,Månedlig_Betaling,\"\"), \"\")","v":""},{"$f":"IFERROR(IF(Lån_Ikke_Betalt*Værdier_Angivet,Hovedstol,\"\"), \"\")","v":""},{"$f":"IFERROR(IF(Lån_Ikke_Betalt*Værdier_Angivet,Renter,\"\"), \"\")","v":""},{"$f":"IFERROR(IF(Lån_Ikke_Betalt*Værdier_Angivet,Slut_saldo,\"\"), \"\")","v":""}]
[null,{"$f":"IFERROR(IF(Lån_Ikke_Betalt*Værdier_Angivet,Betaling_Nummer,\"\"), \"\")","v":""},{"$f":"IFERROR(IF(Lån_Ikke_Betalt*Værdier_Angivet,Betalingsdato,\"\"), \"\")","v":""},{"$f":"IFERROR(IF(Lån_Ikke_Betalt*Værdier_Angivet,Startsaldo,\"\"), \"\")","v":""},{"$f":"IFERROR(IF(Lån_Ikke_Betalt*Værdier_Angivet,Månedlig_Betaling,\"\"), \"\")","v":""},{"$f":"IFERROR(IF(Lån_Ikke_Betalt*Værdier_Angivet,Hovedstol,\"\"), \"\")","v":""},{"$f":"IFERROR(IF(Lån_Ikke_Betalt*Værdier_Angivet,Renter,\"\"), \"\")","v":""},{"$f":"IFERROR(IF(Lån_Ikke_Betalt*Værdier_Angivet,Slut_saldo,\"\"), \"\")","v":""}]
[null,{"$f":"IFERROR(IF(Lån_Ikke_Betalt*Værdier_Angivet,Betaling_Nummer,\"\"), \"\")","v":""},{"$f":"IFERROR(IF(Lån_Ikke_Betalt*Værdier_Angivet,Betalingsdato,\"\"), \"\")","v":""},{"$f":"IFERROR(IF(Lån_Ikke_Betalt*Værdier_Angivet,Startsaldo,\"\"), \"\")","v":""},{"$f":"IFERROR(IF(Lån_Ikke_Betalt*Værdier_Angivet,Månedlig_Betaling,\"\"), \"\")","v":""},{"$f":"IFERROR(IF(Lån_Ikke_Betalt*Værdier_Angivet,Hovedstol,\"\"), \"\")","v":""},{"$f":"IFERROR(IF(Lån_Ikke_Betalt*Værdier_Angivet,Renter,\"\"), \"\")","v":""},{"$f":"IFERROR(IF(Lån_Ikke_Betalt*Værdier_Angivet,Slut_saldo,\"\"), \"\")","v":""}]
[null,{"$f":"IFERROR(IF(Lån_Ikke_Betalt*Værdier_Angivet,Betaling_Nummer,\"\"), \"\")","v":""},{"$f":"IFERROR(IF(Lån_Ikke_Betalt*Værdier_Angivet,Betalingsdato,\"\"), \"\")","v":""},{"$f":"IFERROR(IF(Lån_Ikke_Betalt*Værdier_Angivet,Startsaldo,\"\"), \"\")","v":""},{"$f":"IFERROR(IF(Lån_Ikke_Betalt*Værdier_Angivet,Månedlig_Betaling,\"\"), \"\")","v":""},{"$f":"IFERROR(IF(Lån_Ikke_Betalt*Værdier_Angivet,Hovedstol,\"\"), \"\")","v":""},{"$f":"IFERROR(IF(Lån_Ikke_Betalt*Værdier_Angivet,Renter,\"\"), \"\")","v":""},{"$f":"IFERROR(IF(Lån_Ikke_Betalt*Værdier_Angivet,Slut_saldo,\"\"), \"\")","v":""}]
[null,{"$f":"IFERROR(IF(Lån_Ikke_Betalt*Værdier_Angivet,Betaling_Nummer,\"\"), \"\")","v":""},{"$f":"IFERROR(IF(Lån_Ikke_Betalt*Værdier_Angivet,Betalingsdato,\"\"), \"\")","v":""},{"$f":"IFERROR(IF(Lån_Ikke_Betalt*Værdier_Angivet,Startsaldo,\"\"), \"\")","v":""},{"$f":"IFERROR(IF(Lån_Ikke_Betalt*Værdier_Angivet,Månedlig_Betaling,\"\"), \"\")","v":""},{"$f":"IFERROR(IF(Lån_Ikke_Betalt*Værdier_Angivet,Hovedstol,\"\"), \"\")","v":""},{"$f":"IFERROR(IF(Lån_Ikke_Betalt*Værdier_Angivet,Renter,\"\"), \"\")","v":""},{"$f":"IFERROR(IF(Lån_Ikke_Betalt*Værdier_Angivet,Slut_saldo,\"\"), \"\")","v":""}]
[null,{"$f":"IFERROR(IF(Lån_Ikke_Betalt*Værdier_Angivet,Betaling_Nummer,\"\"), \"\")","v":""},{"$f":"IFERROR(IF(Lån_Ikke_Betalt*Værdier_Angivet,Betalingsdato,\"\"), \"\")","v":""},{"$f":"IFERROR(IF(Lån_Ikke_Betalt*Værdier_Angivet,Startsaldo,\"\"), \"\")","v":""},{"$f":"IFERROR(IF(Lån_Ikke_Betalt*Værdier_Angivet,Månedlig_Betaling,\"\"), \"\")","v":""},{"$f":"IFERROR(IF(Lån_Ikke_Betalt*Værdier_Angivet,Hovedstol,\"\"), \"\")","v":""},{"$f":"IFERROR(IF(Lån_Ikke_Betalt*Værdier_Angivet,Renter,\"\"), \"\")","v":""},{"$f":"IFERROR(IF(Lån_Ikke_Betalt*Værdier_Angivet,Slut_saldo,\"\"), \"\")","v":""}]
[null,{"$f":"IFERROR(IF(Lån_Ikke_Betalt*Værdier_Angivet,Betaling_Nummer,\"\"), \"\")","v":""},{"$f":"IFERROR(IF(Lån_Ikke_Betalt*Værdier_Angivet,Betalingsdato,\"\"), \"\")","v":""},{"$f":"IFERROR(IF(Lån_Ikke_Betalt*Værdier_Angivet,Startsaldo,\"\"), \"\")","v":""},{"$f":"IFERROR(IF(Lån_Ikke_Betalt*Værdier_Angivet,Månedlig_Betaling,\"\"), \"\")","v":""},{"$f":"IFERROR(IF(Lån_Ikke_Betalt*Værdier_Angivet,Hovedstol,\"\"), \"\")","v":""},{"$f":"IFERROR(IF(Lån_Ikke_Betalt*Værdier_Angivet,Renter,\"\"), \"\")","v":""},{"$f":"IFERROR(IF(Lån_Ikke_Betalt*Værdier_Angivet,Slut_saldo,\"\"), \"\")","v":""}]
[null,{"$f":"IFERROR(IF(Lån_Ikke_Betalt*Værdier_Angivet,Betaling_Nummer,\"\"), \"\")","v":""},{"$f":"IFERROR(IF(Lån_Ikke_Betalt*Værdier_Angivet,Betalingsdato,\"\"), \"\")","v":""},{"$f":"IFERROR(IF(Lån_Ikke_Betalt*Værdier_Angivet,Startsaldo,\"\"), \"\")","v":""},{"$f":"IFERROR(IF(Lån_Ikke_Betalt*Værdier_Angivet,Månedlig_Betaling,\"\"), \"\")","v":""},{"$f":"IFERROR(IF(Lån_Ikke_Betalt*Værdier_Angivet,Hovedstol,\"\"), \"\")","v":""},{"$f":"IFERROR(IF(Lån_Ikke_Betalt*Værdier_Angivet,Renter,\"\"), \"\")","v":""},{"$f":"IFERROR(IF(Lån_Ikke_Betalt*Værdier_Angivet,Slut_saldo,\"\"), \"\")","v":""}]
[null,{"$f":"IFERROR(IF(Lån_Ikke_Betalt*Værdier_Angivet,Betaling_Nummer,\"\"), \"\")","v":""},{"$f":"IFERROR(IF(Lån_Ikke_Betalt*Værdier_Angivet,Betalingsdato,\"\"), \"\")","v":""},{"$f":"IFERROR(IF(Lån_Ikke_Betalt*Værdier_Angivet,Startsaldo,\"\"), \"\")","v":""},{"$f":"IFERROR(IF(Lån_Ikke_Betalt*Værdier_Angivet,Månedlig_Betaling,\"\"), \"\")","v":""},{"$f":"IFERROR(IF(Lån_Ikke_Betalt*Værdier_Angivet,Hovedstol,\"\"), \"\")","v":""},{"$f":"IFERROR(IF(Lån_Ikke_Betalt*Værdier_Angivet,Renter,\"\"), \"\")","v":""},{"$f":"IFERROR(IF(Lån_Ikke_Betalt*Værdier_Angivet,Slut_saldo,\"\"), \"\")","v":""}]
[null,{"$f":"IFERROR(IF(Lån_Ikke_Betalt*Værdier_Angivet,Betaling_Nummer,\"\"), \"\")","v":""},{"$f":"IFERROR(IF(Lån_Ikke_Betalt*Værdier_Angivet,Betalingsdato,\"\"), \"\")","v":""},{"$f":"IFERROR(IF(Lån_Ikke_Betalt*Værdier_Angivet,Startsaldo,\"\"), \"\")","v":""},{"$f":"IFERROR(IF(Lån_Ikke_Betalt*Værdier_Angivet,Månedlig_Betaling,\"\"), \"\")","v":""},{"$f":"IFERROR(IF(Lån_Ikke_Betalt*Værdier_Angivet,Hovedstol,\"\"), \"\")","v":""},{"$f":"IFERROR(IF(Lån_Ikke_Betalt*Værdier_Angivet,Renter,\"\"), \"\")","v":""},{"$f":"IFERROR(IF(Lån_Ikke_Betalt*Værdier_Angivet,Slut_saldo,\"\"), \"\")","v":""}]
[null,{"$f":"IFERROR(IF(Lån_Ikke_Betalt*Værdier_Angivet,Betaling_Nummer,\"\"), \"\")","v":""},{"$f":"IFERROR(IF(Lån_Ikke_Betalt*Værdier_Angivet,Betalingsdato,\"\"), \"\")","v":""},{"$f":"IFERROR(IF(Lån_Ikke_Betalt*Værdier_Angivet,Startsaldo,\"\"), \"\")","v":""},{"$f":"IFERROR(IF(Lån_Ikke_Betalt*Værdier_Angivet,Månedlig_Betaling,\"\"), \"\")","v":""},{"$f":"IFERROR(IF(Lån_Ikke_Betalt*Værdier_Angivet,Hovedstol,\"\"), \"\")","v":""},{"$f":"IFERROR(IF(Lån_Ikke_Betalt*Værdier_Angivet,Renter,\"\"), \"\")","v":""},{"$f":"IFERROR(IF(Lån_Ikke_Betalt*Værdier_Angivet,Slut_saldo,\"\"), \"\")","v":""}]
[null,{"$f":"IFERROR(IF(Lån_Ikke_Betalt*Værdier_Angivet,Betaling_Nummer,\"\"), \"\")","v":""},{"$f":"IFERROR(IF(Lån_Ikke_Betalt*Værdier_Angivet,Betalingsdato,\"\"), \"\")","v":""},{"$f":"IFERROR(IF(Lån_Ikke_Betalt*Værdier_Angivet,Startsaldo,\"\"), \"\")","v":""},{"$f":"IFERROR(IF(Lån_Ikke_Betalt*Værdier_Angivet,Månedlig_Betaling,\"\"), \"\")","v":""},{"$f":"IFERROR(IF(Lån_Ikke_Betalt*Værdier_Angivet,Hovedstol,\"\"), \"\")","v":""},{"$f":"IFERROR(IF(Lån_Ikke_Betalt*Værdier_Angivet,Renter,\"\"), \"\")","v":""},{"$f":"IFERROR(IF(Lån_Ikke_Betalt*Værdier_Angivet,Slut_saldo,\"\"), \"\")","v":""}]
[null,{"$f":"IFERROR(IF(Lån_Ikke_Betalt*Værdier_Angivet,Betaling_Nummer,\"\"), \"\")","v":""},{"$f":"IFERROR(IF(Lån_Ikke_Betalt*Værdier_Angivet,Betalingsdato,\"\"), \"\")","v":""},{"$f":"IFERROR(IF(Lån_Ikke_Betalt*Værdier_Angivet,Startsaldo,\"\"), \"\")","v":""},{"$f":"IFERROR(IF(Lån_Ikke_Betalt*Værdier_Angivet,Månedlig_Betaling,\"\"), \"\")","v":""},{"$f":"IFERROR(IF(Lån_Ikke_Betalt*Værdier_Angivet,Hovedstol,\"\"), \"\")","v":""},{"$f":"IFERROR(IF(Lån_Ikke_Betalt*Værdier_Angivet,Renter,\"\"), \"\")","v":""},{"$f":"IFERROR(IF(Lån_Ikke_Betalt*Værdier_Angivet,Slut_saldo,\"\"), \"\")","v":""}]
[null,{"$f":"IFERROR(IF(Lån_Ikke_Betalt*Værdier_Angivet,Betaling_Nummer,\"\"), \"\")","v":""},{"$f":"IFERROR(IF(Lån_Ikke_Betalt*Værdier_Angivet,Betalingsdato,\"\"), \"\")","v":""},{"$f":"IFERROR(IF(Lån_Ikke_Betalt*Værdier_Angivet,Startsaldo,\"\"), \"\")","v":""},{"$f":"IFERROR(IF(Lån_Ikke_Betalt*Værdier_Angivet,Månedlig_Betaling,\"\"), \"\")","v":""},{"$f":"IFERROR(IF(Lån_Ikke_Betalt*Værdier_Angivet,Hovedstol,\"\"), \"\")","v":""},{"$f":"IFERROR(IF(Lån_Ikke_Betalt*Værdier_Angivet,Renter,\"\"), \"\")","v":""},{"$f":"IFERROR(IF(Lån_Ikke_Betalt*Værdier_Angivet,Slut_saldo,\"\"), \"\")","v":""}]
[null,{"$f":"IFERROR(IF(Lån_Ikke_Betalt*Værdier_Angivet,Betaling_Nummer,\"\"), \"\")","v":""},{"$f":"IFERROR(IF(Lån_Ikke_Betalt*Værdier_Angivet,Betalingsdato,\"\"), \"\")","v":""},{"$f":"IFERROR(IF(Lån_Ikke_Betalt*Værdier_Angivet,Startsaldo,\"\"), \"\")","v":""},{"$f":"IFERROR(IF(Lån_Ikke_Betalt*Værdier_Angivet,Månedlig_Betaling,\"\"), \"\")","v":""},{"$f":"IFERROR(IF(Lån_Ikke_Betalt*Værdier_Angivet,Hovedstol,\"\"), \"\")","v":""},{"$f":"IFERROR(IF(Lån_Ikke_Betalt*Værdier_Angivet,Renter,\"\"), \"\")","v":""},{"$f":"IFERROR(IF(Lån_Ikke_Betalt*Værdier_Angivet,Slut_saldo,\"\"), \"\")","v":""}]
[null,{"$f":"IFERROR(IF(Lån_Ikke_Betalt*Værdier_Angivet,Betaling_Nummer,\"\"), \"\")","v":""},{"$f":"IFERROR(IF(Lån_Ikke_Betalt*Værdier_Angivet,Betalingsdato,\"\"), \"\")","v":""},{"$f":"IFERROR(IF(Lån_Ikke_Betalt*Værdier_Angivet,Startsaldo,\"\"), \"\")","v":""},{"$f":"IFERROR(IF(Lån_Ikke_Betalt*Værdier_Angivet,Månedlig_Betaling,\"\"), \"\")","v":""},{"$f":"IFERROR(IF(Lån_Ikke_Betalt*Værdier_Angivet,Hovedstol,\"\"), \"\")","v":""},{"$f":"IFERROR(IF(Lån_Ikke_Betalt*Værdier_Angivet,Renter,\"\"), \"\")","v":""},{"$f":"IFERROR(IF(Lån_Ikke_Betalt*Værdier_Angivet,Slut_saldo,\"\"), \"\")","v":""}]
[null,{"$f":"IFERROR(IF(Lån_Ikke_Betalt*Værdier_Angivet,Betaling_Nummer,\"\"), \"\")","v":""},{"$f":"IFERROR(IF(Lån_Ikke_Betalt*Værdier_Angivet,Betalingsdato,\"\"), \"\")","v":""},{"$f":"IFERROR(IF(Lån_Ikke_Betalt*Værdier_Angivet,Startsaldo,\"\"), \"\")","v":""},{"$f":"IFERROR(IF(Lån_Ikke_Betalt*Værdier_Angivet,Månedlig_Betaling,\"\"), \"\")","v":""},{"$f":"IFERROR(IF(Lån_Ikke_Betalt*Værdier_Angivet,Hovedstol,\"\"), \"\")","v":""},{"$f":"IFERROR(IF(Lån_Ikke_Betalt*Værdier_Angivet,Renter,\"\"), \"\")","v":""},{"$f":"IFERROR(IF(Lån_Ikke_Betalt*Værdier_Angivet,Slut_saldo,\"\"), \"\")","v":""}]
[null,{"$f":"IFERROR(IF(Lån_Ikke_Betalt*Værdier_Angivet,Betaling_Nummer,\"\"), \"\")","v":""},{"$f":"IFERROR(IF(Lån_Ikke_Betalt*Værdier_Angivet,Betalingsdato,\"\"), \"\")","v":""},{"$f":"IFERROR(IF(Lån_Ikke_Betalt*Værdier_Angivet,Startsaldo,\"\"), \"\")","v":""},{"$f":"IFERROR(IF(Lån_Ikke_Betalt*Værdier_Angivet,Månedlig_Betaling,\"\"), \"\")","v":""},{"$f":"IFERROR(IF(Lån_Ikke_Betalt*Værdier_Angivet,Hovedstol,\"\"), \"\")","v":""},{"$f":"IFERROR(IF(Lån_Ikke_Betalt*Værdier_Angivet,Renter,\"\"), \"\")","v":""},{"$f":"IFERROR(IF(Lån_Ikke_Betalt*Værdier_Angivet,Slut_saldo,\"\"), \"\")","v":""}]
[null,{"$f":"IFERROR(IF(Lån_Ikke_Betalt*Værdier_Angivet,Betaling_Nummer,\"\"), \"\")","v":""},{"$f":"IFERROR(IF(Lån_Ikke_Betalt*Værdier_Angivet,Betalingsdato,\"\"), \"\")","v":""},{"$f":"IFERROR(IF(Lån_Ikke_Betalt*Værdier_Angivet,Startsaldo,\"\"), \"\")","v":""},{"$f":"IFERROR(IF(Lån_Ikke_Betalt*Værdier_Angivet,Månedlig_Betaling,\"\"), \"\")","v":""},{"$f":"IFERROR(IF(Lån_Ikke_Betalt*Værdier_Angivet,Hovedstol,\"\"), \"\")","v":""},{"$f":"IFERROR(IF(Lån_Ikke_Betalt*Værdier_Angivet,Renter,\"\"), \"\")","v":""},{"$f":"IFERROR(IF(Lån_Ikke_Betalt*Værdier_Angivet,Slut_saldo,\"\"), \"\")","v":""}]
[null,{"$f":"IFERROR(IF(Lån_Ikke_Betalt*Værdier_Angivet,Betaling_Nummer,\"\"), \"\")","v":""},{"$f":"IFERROR(IF(Lån_Ikke_Betalt*Værdier_Angivet,Betalingsdato,\"\"), \"\")","v":""},{"$f":"IFERROR(IF(Lån_Ikke_Betalt*Værdier_Angivet,Startsaldo,\"\"), \"\")","v":""},{"$f":"IFERROR(IF(Lån_Ikke_Betalt*Værdier_Angivet,Månedlig_Betaling,\"\"), \"\")","v":""},{"$f":"IFERROR(IF(Lån_Ikke_Betalt*Værdier_Angivet,Hovedstol,\"\"), \"\")","v":""},{"$f":"IFERROR(IF(Lån_Ikke_Betalt*Værdier_Angivet,Renter,\"\"), \"\")","v":""},{"$f":"IFERROR(IF(Lån_Ikke_Betalt*Værdier_Angivet,Slut_saldo,\"\"), \"\")","v":""}]
[null,{"$f":"IFERROR(IF(Lån_Ikke_Betalt*Værdier_Angivet,Betaling_Nummer,\"\"), \"\")","v":""},{"$f":"IFERROR(IF(Lån_Ikke_Betalt*Værdier_Angivet,Betalingsdato,\"\"), \"\")","v":""},{"$f":"IFERROR(IF(Lån_Ikke_Betalt*Værdier_Angivet,Startsaldo,\"\"), \"\")","v":""},{"$f":"IFERROR(IF(Lån_Ikke_Betalt*Værdier_Angivet,Månedlig_Betaling,\"\"), \"\")","v":""},{"$f":"IFERROR(IF(Lån_Ikke_Betalt*Værdier_Angivet,Hovedstol,\"\"), \"\")","v":""},{"$f":"IFERROR(IF(Lån_Ikke_Betalt*Værdier_Angivet,Renter,\"\"), \"\")","v":""},{"$f":"IFERROR(IF(Lån_Ikke_Betalt*Værdier_Angivet,Slut_saldo,\"\"), \"\")","v":""}]
[null,{"$f":"IFERROR(IF(Lån_Ikke_Betalt*Værdier_Angivet,Betaling_Nummer,\"\"), \"\")","v":""},{"$f":"IFERROR(IF(Lån_Ikke_Betalt*Værdier_Angivet,Betalingsdato,\"\"), \"\")","v":""},{"$f":"IFERROR(IF(Lån_Ikke_Betalt*Værdier_Angivet,Startsaldo,\"\"), \"\")","v":""},{"$f":"IFERROR(IF(Lån_Ikke_Betalt*Værdier_Angivet,Månedlig_Betaling,\"\"), \"\")","v":""},{"$f":"IFERROR(IF(Lån_Ikke_Betalt*Værdier_Angivet,Hovedstol,\"\"), \"\")","v":""},{"$f":"IFERROR(IF(Lån_Ikke_Betalt*Værdier_Angivet,Renter,\"\"), \"\")","v":""},{"$f":"IFERROR(IF(Lån_Ikke_Betalt*Værdier_Angivet,Slut_saldo,\"\"), \"\")","v":""}]
[null,{"$f":"IFERROR(IF(Lån_Ikke_Betalt*Værdier_Angivet,Betaling_Nummer,\"\"), \"\")","v":""},{"$f":"IFERROR(IF(Lån_Ikke_Betalt*Værdier_Angivet,Betalingsdato,\"\"), \"\")","v":""},{"$f":"IFERROR(IF(Lån_Ikke_Betalt*Værdier_Angivet,Startsaldo,\"\"), \"\")","v":""},{"$f":"IFERROR(IF(Lån_Ikke_Betalt*Værdier_Angivet,Månedlig_Betaling,\"\"), \"\")","v":""},{"$f":"IFERROR(IF(Lån_Ikke_Betalt*Værdier_Angivet,Hovedstol,\"\"), \"\")","v":""},{"$f":"IFERROR(IF(Lån_Ikke_Betalt*Værdier_Angivet,Renter,\"\"), \"\")","v":""},{"$f":"IFERROR(IF(Lån_Ikke_Betalt*Værdier_Angivet,Slut_saldo,\"\"), \"\")","v":""}]
[null,{"$f":"IFERROR(IF(Lån_Ikke_Betalt*Værdier_Angivet,Betaling_Nummer,\"\"), \"\")","v":""},{"$f":"IFERROR(IF(Lån_Ikke_Betalt*Værdier_Angivet,Betalingsdato,\"\"), \"\")","v":""},{"$f":"IFERROR(IF(Lån_Ikke_Betalt*Værdier_Angivet,Startsaldo,\"\"), \"\")","v":""},{"$f":"IFERROR(IF(Lån_Ikke_Betalt*Værdier_Angivet,Månedlig_Betaling,\"\"), \"\")","v":""},{"$f":"IFERROR(IF(Lån_Ikke_Betalt*Værdier_Angivet,Hovedstol,\"\"), \"\")","v":""},{"$f":"IFERROR(IF(Lån_Ikke_Betalt*Værdier_Angivet,Renter,\"\"), \"\")","v":""},{"$f":"IFERROR(IF(Lån_Ikke_Betalt*Værdier_Angivet,Slut_saldo,\"\"), \"\")","v":""}]
[null,{"$f":"IFERROR(IF(Lån_Ikke_Betalt*Værdier_Angivet,Betaling_Nummer,\"\"), \"\")","v":""},{"$f":"IFERROR(IF(Lån_Ikke_Betalt*Værdier_Angivet,Betalingsdato,\"\"), \"\")","v":""},{"$f":"IFERROR(IF(Lån_Ikke_Betalt*Værdier_Angivet,Startsaldo,\"\"), \"\")","v":""},{"$f":"IFERROR(IF(Lån_Ikke_Betalt*Værdier_Angivet,Månedlig_Betaling,\"\"), \"\")","v":""},{"$f":"IFERROR(IF(Lån_Ikke_Betalt*Værdier_Angivet,Hovedstol,\"\"), \"\")","v":""},{"$f":"IFERROR(IF(Lån_Ikke_Betalt*Værdier_Angivet,Renter,\"\"), \"\")","v":""},{"$f":"IFERROR(IF(Lån_Ikke_Betalt*Værdier_Angivet,Slut_saldo,\"\"), \"\")","v":""}]
[null,{"$f":"IFERROR(IF(Lån_Ikke_Betalt*Værdier_Angivet,Betaling_Nummer,\"\"), \"\")","v":""},{"$f":"IFERROR(IF(Lån_Ikke_Betalt*Værdier_Angivet,Betalingsdato,\"\"), \"\")","v":""},{"$f":"IFERROR(IF(Lån_Ikke_Betalt*Værdier_Angivet,Startsaldo,\"\"), \"\")","v":""},{"$f":"IFERROR(IF(Lån_Ikke_Betalt*Værdier_Angivet,Månedlig_Betaling,\"\"), \"\")","v":""},{"$f":"IFERROR(IF(Lån_Ikke_Betalt*Værdier_Angivet,Hovedstol,\"\"), \"\")","v":""},{"$f":"IFERROR(IF(Lån_Ikke_Betalt*Værdier_Angivet,Renter,\"\"), \"\")","v":""},{"$f":"IFERROR(IF(Lån_Ikke_Betalt*Værdier_Angivet,Slut_saldo,\"\"), \"\")","v":""}]
[null,{"$f":"IFERROR(IF(Lån_Ikke_Betalt*Værdier_Angivet,Betaling_Nummer,\"\"), \"\")","v":""},{"$f":"IFERROR(IF(Lån_Ikke_Betalt*Værdier_Angivet,Betalingsdato,\"\"), \"\")","v":""},{"$f":"IFERROR(IF(Lån_Ikke_Betalt*Værdier_Angivet,Startsaldo,\"\"), \"\")","v":""},{"$f":"IFERROR(IF(Lån_Ikke_Betalt*Værdier_Angivet,Månedlig_Betaling,\"\"), \"\")","v":""},{"$f":"IFERROR(IF(Lån_Ikke_Betalt*Værdier_Angivet,Hovedstol,\"\"), \"\")","v":""},{"$f":"IFERROR(IF(Lån_Ikke_Betalt*Værdier_Angivet,Renter,\"\"), \"\")","v":""},{"$f":"IFERROR(IF(Lån_Ikke_Betalt*Værdier_Angivet,Slut_saldo,\"\"), \"\")","v":""}]
[null,{"$f":"IFERROR(IF(Lån_Ikke_Betalt*Værdier_Angivet,Betaling_Nummer,\"\"), \"\")","v":""},{"$f":"IFERROR(IF(Lån_Ikke_Betalt*Værdier_Angivet,Betalingsdato,\"\"), \"\")","v":""},{"$f":"IFERROR(IF(Lån_Ikke_Betalt*Værdier_Angivet,Startsaldo,\"\"), \"\")","v":""},{"$f":"IFERROR(IF(Lån_Ikke_Betalt*Værdier_Angivet,Månedlig_Betaling,\"\"), \"\")","v":""},{"$f":"IFERROR(IF(Lån_Ikke_Betalt*Værdier_Angivet,Hovedstol,\"\"), \"\")","v":""},{"$f":"IFERROR(IF(Lån_Ikke_Betalt*Værdier_Angivet,Renter,\"\"), \"\")","v":""},{"$f":"IFERROR(IF(Lån_Ikke_Betalt*Værdier_Angivet,Slut_saldo,\"\"), \"\")","v":""}]
[null,{"$f":"IFERROR(IF(Lån_Ikke_Betalt*Værdier_Angivet,Betaling_Nummer,\"\"), \"\")","v":""},{"$f":"IFERROR(IF(Lån_Ikke_Betalt*Værdier_Angivet,Betalingsdato,\"\"), \"\")","v":""},{"$f":"IFERROR(IF(Lån_Ikke_Betalt*Værdier_Angivet,Startsaldo,\"\"), \"\")","v":""},{"$f":"IFERROR(IF(Lån_Ikke_Betalt*Værdier_Angivet,Månedlig_Betaling,\"\"), \"\")","v":""},{"$f":"IFERROR(IF(Lån_Ikke_Betalt*Værdier_Angivet,Hovedstol,\"\"), \"\")","v":""},{"$f":"IFERROR(IF(Lån_Ikke_Betalt*Værdier_Angivet,Renter,\"\"), \"\")","v":""},{"$f":"IFERROR(IF(Lån_Ikke_Betalt*Værdier_Angivet,Slut_saldo,\"\"), \"\")","v":""}]
[null,{"$f":"IFERROR(IF(Lån_Ikke_Betalt*Værdier_Angivet,Betaling_Nummer,\"\"), \"\")","v":""},{"$f":"IFERROR(IF(Lån_Ikke_Betalt*Værdier_Angivet,Betalingsdato,\"\"), \"\")","v":""},{"$f":"IFERROR(IF(Lån_Ikke_Betalt*Værdier_Angivet,Startsaldo,\"\"), \"\")","v":""},{"$f":"IFERROR(IF(Lån_Ikke_Betalt*Værdier_Angivet,Månedlig_Betaling,\"\"), \"\")","v":""},{"$f":"IFERROR(IF(Lån_Ikke_Betalt*Værdier_Angivet,Hovedstol,\"\"), \"\")","v":""},{"$f":"IFERROR(IF(Lån_Ikke_Betalt*Værdier_Angivet,Renter,\"\"), \"\")","v":""},{"$f":"IFERROR(IF(Lån_Ikke_Betalt*Værdier_Angivet,Slut_saldo,\"\"), \"\")","v":""}]
[null,{"$f":"IFERROR(IF(Lån_Ikke_Betalt*Værdier_Angivet,Betaling_Nummer,\"\"), \"\")","v":""},{"$f":"IFERROR(IF(Lån_Ikke_Betalt*Værdier_Angivet,Betalingsdato,\"\"), \"\")","v":""},{"$f":"IFERROR(IF(Lån_Ikke_Betalt*Værdier_Angivet,Startsaldo,\"\"), \"\")","v":""},{"$f":"IFERROR(IF(Lån_Ikke_Betalt*Værdier_Angivet,Månedlig_Betaling,\"\"), \"\")","v":""},{"$f":"IFERROR(IF(Lån_Ikke_Betalt*Værdier_Angivet,Hovedstol,\"\"), \"\")","v":""},{"$f":"IFERROR(IF(Lån_Ikke_Betalt*Værdier_Angivet,Renter,\"\"), \"\")","v":""},{"$f":"IFERROR(IF(Lån_Ikke_Betalt*Værdier_Angivet,Slut_saldo,\"\"), \"\")","v":""}]
[null,{"$f":"IFERROR(IF(Lån_Ikke_Betalt*Værdier_Angivet,Betaling_Nummer,\"\"), \"\")","v":""},{"$f":"IFERROR(IF(Lån_Ikke_Betalt*Værdier_Angivet,Betalingsdato,\"\"), \"\")","v":""},{"$f":"IFERROR(IF(Lån_Ikke_Betalt*Værdier_Angivet,Startsaldo,\"\"), \"\")","v":""},{"$f":"IFERROR(IF(Lån_Ikke_Betalt*Værdier_Angivet,Månedlig_Betaling,\"\"), \"\")","v":""},{"$f":"IFERROR(IF(Lån_Ikke_Betalt*Værdier_Angivet,Hovedstol,\"\"), \"\")","v":""},{"$f":"IFERROR(IF(Lån_Ikke_Betalt*Værdier_Angivet,Renter,\"\"), \"\")","v":""},{"$f":"IFERROR(IF(Lån_Ikke_Betalt*Værdier_Angivet,Slut_saldo,\"\"), \"\")","v":""}]
[null,{"$f":"IFERROR(IF(Lån_Ikke_Betalt*Værdier_Angivet,Betaling_Nummer,\"\"), \"\")","v":""},{"$f":"IFERROR(IF(Lån_Ikke_Betalt*Værdier_Angivet,Betalingsdato,\"\"), \"\")","v":""},{"$f":"IFERROR(IF(Lån_Ikke_Betalt*Værdier_Angivet,Startsaldo,\"\"), \"\")","v":""},{"$f":"IFERROR(IF(Lån_Ikke_Betalt*Værdier_Angivet,Månedlig_Betaling,\"\"), \"\")","v":""},{"$f":"IFERROR(IF(Lån_Ikke_Betalt*Værdier_Angivet,Hovedstol,\"\"), \"\")","v":""},{"$f":"IFERROR(IF(Lån_Ikke_Betalt*Værdier_Angivet,Renter,\"\"), \"\")","v":""},{"$f":"IFERROR(IF(Lån_Ikke_Betalt*Værdier_Angivet,Slut_saldo,\"\"), \"\")","v":""}]
[null,{"$f":"IFERROR(IF(Lån_Ikke_Betalt*Værdier_Angivet,Betaling_Nummer,\"\"), \"\")","v":""},{"$f":"IFERROR(IF(Lån_Ikke_Betalt*Værdier_Angivet,Betalingsdato,\"\"), \"\")","v":""},{"$f":"IFERROR(IF(Lån_Ikke_Betalt*Værdier_Angivet,Startsaldo,\"\"), \"\")","v":""},{"$f":"IFERROR(IF(Lån_Ikke_Betalt*Værdier_Angivet,Månedlig_Betaling,\"\"), \"\")","v":""},{"$f":"IFERROR(IF(Lån_Ikke_Betalt*Værdier_Angivet,Hovedstol,\"\"), \"\")","v":""},{"$f":"IFERROR(IF(Lån_Ikke_Betalt*Værdier_Angivet,Renter,\"\"), \"\")","v":""},{"$f":"IFERROR(IF(Lån_Ikke_Betalt*Værdier_Angivet,Slut_saldo,\"\"), \"\")","v":""}]
[null,{"$f":"IFERROR(IF(Lån_Ikke_Betalt*Værdier_Angivet,Betaling_Nummer,\"\"), \"\")","v":""},{"$f":"IFERROR(IF(Lån_Ikke_Betalt*Værdier_Angivet,Betalingsdato,\"\"), \"\")","v":""},{"$f":"IFERROR(IF(Lån_Ikke_Betalt*Værdier_Angivet,Startsaldo,\"\"), \"\")","v":""},{"$f":"IFERROR(IF(Lån_Ikke_Betalt*Værdier_Angivet,Månedlig_Betaling,\"\"), \"\")","v":""},{"$f":"IFERROR(IF(Lån_Ikke_Betalt*Værdier_Angivet,Hovedstol,\"\"), \"\")","v":""},{"$f":"IFERROR(IF(Lån_Ikke_Betalt*Værdier_Angivet,Renter,\"\"), \"\")","v":""},{"$f":"IFERROR(IF(Lån_Ikke_Betalt*Værdier_Angivet,Slut_saldo,\"\"), \"\")","v":""}]
[null,{"$f":"IFERROR(IF(Lån_Ikke_Betalt*Værdier_Angivet,Betaling_Nummer,\"\"), \"\")","v":""},{"$f":"IFERROR(IF(Lån_Ikke_Betalt*Værdier_Angivet,Betalingsdato,\"\"), \"\")","v":""},{"$f":"IFERROR(IF(Lån_Ikke_Betalt*Værdier_Angivet,Startsaldo,\"\"), \"\")","v":""},{"$f":"IFERROR(IF(Lån_Ikke_Betalt*Værdier_Angivet,Månedlig_Betaling,\"\"), \"\")","v":""},{"$f":"IFERROR(IF(Lån_Ikke_Betalt*Værdier_Angivet,Hovedstol,\"\"), \"\")","v":""},{"$f":"IFERROR(IF(Lån_Ikke_Betalt*Værdier_Angivet,Renter,\"\"), \"\")","v":""},{"$f":"IFERROR(IF(Lån_Ikke_Betalt*Værdier_Angivet,Slut_saldo,\"\"), \"\")","v":""}]
[null,{"$f":"IFERROR(IF(Lån_Ikke_Betalt*Værdier_Angivet,Betaling_Nummer,\"\"), \"\")","v":""},{"$f":"IFERROR(IF(Lån_Ikke_Betalt*Værdier_Angivet,Betalingsdato,\"\"), \"\")","v":""},{"$f":"IFERROR(IF(Lån_Ikke_Betalt*Værdier_Angivet,Startsaldo,\"\"), \"\")","v":""},{"$f":"IFERROR(IF(Lån_Ikke_Betalt*Værdier_Angivet,Månedlig_Betaling,\"\"), \"\")","v":""},{"$f":"IFERROR(IF(Lån_Ikke_Betalt*Værdier_Angivet,Hovedstol,\"\"), \"\")","v":""},{"$f":"IFERROR(IF(Lån_Ikke_Betalt*Værdier_Angivet,Renter,\"\"), \"\")","v":""},{"$f":"IFERROR(IF(Lån_Ikke_Betalt*Værdier_Angivet,Slut_saldo,\"\"), \"\")","v":""}]
[null,{"$f":"IFERROR(IF(Lån_Ikke_Betalt*Værdier_Angivet,Betaling_Nummer,\"\"), \"\")","v":""},{"$f":"IFERROR(IF(Lån_Ikke_Betalt*Værdier_Angivet,Betalingsdato,\"\"), \"\")","v":""},{"$f":"IFERROR(IF(Lån_Ikke_Betalt*Værdier_Angivet,Startsaldo,\"\"), \"\")","v":""},{"$f":"IFERROR(IF(Lån_Ikke_Betalt*Værdier_Angivet,Månedlig_Betaling,\"\"), \"\")","v":""},{"$f":"IFERROR(IF(Lån_Ikke_Betalt*Værdier_Angivet,Hovedstol,\"\"), \"\")","v":""},{"$f":"IFERROR(IF(Lån_Ikke_Betalt*Værdier_Angivet,Renter,\"\"), \"\")","v":""},{"$f":"IFERROR(IF(Lån_Ikke_Betalt*Værdier_Angivet,Slut_saldo,\"\"), \"\")","v":""}]
[null,{"$f":"IFERROR(IF(Lån_Ikke_Betalt*Værdier_Angivet,Betaling_Nummer,\"\"), \"\")","v":""},{"$f":"IFERROR(IF(Lån_Ikke_Betalt*Værdier_Angivet,Betalingsdato,\"\"), \"\")","v":""},{"$f":"IFERROR(IF(Lån_Ikke_Betalt*Værdier_Angivet,Startsaldo,\"\"), \"\")","v":""},{"$f":"IFERROR(IF(Lån_Ikke_Betalt*Værdier_Angivet,Månedlig_Betaling,\"\"), \"\")","v":""},{"$f":"IFERROR(IF(Lån_Ikke_Betalt*Værdier_Angivet,Hovedstol,\"\"), \"\")","v":""},{"$f":"IFERROR(IF(Lån_Ikke_Betalt*Værdier_Angivet,Renter,\"\"), \"\")","v":""},{"$f":"IFERROR(IF(Lån_Ikke_Betalt*Værdier_Angivet,Slut_saldo,\"\"), \"\")","v":""}]
[null,{"$f":"IFERROR(IF(Lån_Ikke_Betalt*Værdier_Angivet,Betaling_Nummer,\"\"), \"\")","v":""},{"$f":"IFERROR(IF(Lån_Ikke_Betalt*Værdier_Angivet,Betalingsdato,\"\"), \"\")","v":""},{"$f":"IFERROR(IF(Lån_Ikke_Betalt*Værdier_Angivet,Startsaldo,\"\"), \"\")","v":""},{"$f":"IFERROR(IF(Lån_Ikke_Betalt*Værdier_Angivet,Månedlig_Betaling,\"\"), \"\")","v":""},{"$f":"IFERROR(IF(Lån_Ikke_Betalt*Værdier_Angivet,Hovedstol,\"\"), \"\")","v":""},{"$f":"IFERROR(IF(Lån_Ikke_Betalt*Værdier_Angivet,Renter,\"\"), \"\")","v":""},{"$f":"IFERROR(IF(Lån_Ikke_Betalt*Værdier_Angivet,Slut_saldo,\"\"), \"\")","v":""}]
[null,{"$f":"IFERROR(IF(Lån_Ikke_Betalt*Værdier_Angivet,Betaling_Nummer,\"\"), \"\")","v":""},{"$f":"IFERROR(IF(Lån_Ikke_Betalt*Værdier_Angivet,Betalingsdato,\"\"), \"\")","v":""},{"$f":"IFERROR(IF(Lån_Ikke_Betalt*Værdier_Angivet,Startsaldo,\"\"), \"\")","v":""},{"$f":"IFERROR(IF(Lån_Ikke_Betalt*Værdier_Angivet,Månedlig_Betaling,\"\"), \"\")","v":""},{"$f":"IFERROR(IF(Lån_Ikke_Betalt*Værdier_Angivet,Hovedstol,\"\"), \"\")","v":""},{"$f":"IFERROR(IF(Lån_Ikke_Betalt*Værdier_Angivet,Renter,\"\"), \"\")","v":""},{"$f":"IFERROR(IF(Lån_Ikke_Betalt*Værdier_Angivet,Slut_saldo,\"\"), \"\")","v":""}]
[null,{"$f":"IFERROR(IF(Lån_Ikke_Betalt*Værdier_Angivet,Betaling_Nummer,\"\"), \"\")","v":""},{"$f":"IFERROR(IF(Lån_Ikke_Betalt*Værdier_Angivet,Betalingsdato,\"\"), \"\")","v":""},{"$f":"IFERROR(IF(Lån_Ikke_Betalt*Værdier_Angivet,Startsaldo,\"\"), \"\")","v":""},{"$f":"IFERROR(IF(Lån_Ikke_Betalt*Værdier_Angivet,Månedlig_Betaling,\"\"), \"\")","v":""},{"$f":"IFERROR(IF(Lån_Ikke_Betalt*Værdier_Angivet,Hovedstol,\"\"), \"\")","v":""},{"$f":"IFERROR(IF(Lån_Ikke_Betalt*Værdier_Angivet,Renter,\"\"), \"\")","v":""},{"$f":"IFERROR(IF(Lån_Ikke_Betalt*Værdier_Angivet,Slut_saldo,\"\"), \"\")","v":""}]
[null,{"$f":"IFERROR(IF(Lån_Ikke_Betalt*Værdier_Angivet,Betaling_Nummer,\"\"), \"\")","v":""},{"$f":"IFERROR(IF(Lån_Ikke_Betalt*Værdier_Angivet,Betalingsdato,\"\"), \"\")","v":""},{"$f":"IFERROR(IF(Lån_Ikke_Betalt*Værdier_Angivet,Startsaldo,\"\"), \"\")","v":""},{"$f":"IFERROR(IF(Lån_Ikke_Betalt*Værdier_Angivet,Månedlig_Betaling,\"\"), \"\")","v":""},{"$f":"IFERROR(IF(Lån_Ikke_Betalt*Værdier_Angivet,Hovedstol,\"\"), \"\")","v":""},{"$f":"IFERROR(IF(Lån_Ikke_Betalt*Værdier_Angivet,Renter,\"\"), \"\")","v":""},{"$f":"IFERROR(IF(Lån_Ikke_Betalt*Værdier_Angivet,Slut_saldo,\"\"), \"\")","v":""}]
[null,{"$f":"IFERROR(IF(Lån_Ikke_Betalt*Værdier_Angivet,Betaling_Nummer,\"\"), \"\")","v":""},{"$f":"IFERROR(IF(Lån_Ikke_Betalt*Værdier_Angivet,Betalingsdato,\"\"), \"\")","v":""},{"$f":"IFERROR(IF(Lån_Ikke_Betalt*Værdier_Angivet,Startsaldo,\"\"), \"\")","v":""},{"$f":"IFERROR(IF(Lån_Ikke_Betalt*Værdier_Angivet,Månedlig_Betaling,\"\"), \"\")","v":""},{"$f":"IFERROR(IF(Lån_Ikke_Betalt*Værdier_Angivet,Hovedstol,\"\"), \"\")","v":""},{"$f":"IFERROR(IF(Lån_Ikke_Betalt*Værdier_Angivet,Renter,\"\"), \"\")","v":""},{"$f":"IFERROR(IF(Lån_Ikke_Betalt*Værdier_Angivet,Slut_saldo,\"\"), \"\")","v":""}]
[null,{"$f":"IFERROR(IF(Lån_Ikke_Betalt*Værdier_Angivet,Betaling_Nummer,\"\"), \"\")","v":""},{"$f":"IFERROR(IF(Lån_Ikke_Betalt*Værdier_Angivet,Betalingsdato,\"\"), \"\")","v":""},{"$f":"IFERROR(IF(Lån_Ikke_Betalt*Værdier_Angivet,Startsaldo,\"\"), \"\")","v":""},{"$f":"IFERROR(IF(Lån_Ikke_Betalt*Værdier_Angivet,Månedlig_Betaling,\"\"), \"\")","v":""},{"$f":"IFERROR(IF(Lån_Ikke_Betalt*Værdier_Angivet,Hovedstol,\"\"), \"\")","v":""},{"$f":"IFERROR(IF(Lån_Ikke_Betalt*Værdier_Angivet,Renter,\"\"), \"\")","v":""},{"$f":"IFERROR(IF(Lån_Ikke_Betalt*Værdier_Angivet,Slut_saldo,\"\"), \"\")","v":""}]
[null,{"$f":"IFERROR(IF(Lån_Ikke_Betalt*Værdier_Angivet,Betaling_Nummer,\"\"), \"\")","v":""},{"$f":"IFERROR(IF(Lån_Ikke_Betalt*Værdier_Angivet,Betalingsdato,\"\"), \"\")","v":""},{"$f":"IFERROR(IF(Lån_Ikke_Betalt*Værdier_Angivet,Startsaldo,\"\"), \"\")","v":""},{"$f":"IFERROR(IF(Lån_Ikke_Betalt*Værdier_Angivet,Månedlig_Betaling,\"\"), \"\")","v":""},{"$f":"IFERROR(IF(Lån_Ikke_Betalt*Værdier_Angivet,Hovedstol,\"\"), \"\")","v":""},{"$f":"IFERROR(IF(Lån_Ikke_Betalt*Værdier_Angivet,Renter,\"\"), \"\")","v":""},{"$f":"IFERROR(IF(Lån_Ikke_Betalt*Værdier_Angivet,Slut_saldo,\"\"), \"\")","v":""}]
[null,{"$f":"IFERROR(IF(Lån_Ikke_Betalt*Værdier_Angivet,Betaling_Nummer,\"\"), \"\")","v":""},{"$f":"IFERROR(IF(Lån_Ikke_Betalt*Værdier_Angivet,Betalingsdato,\"\"), \"\")","v":""},{"$f":"IFERROR(IF(Lån_Ikke_Betalt*Værdier_Angivet,Startsaldo,\"\"), \"\")","v":""},{"$f":"IFERROR(IF(Lån_Ikke_Betalt*Værdier_Angivet,Månedlig_Betaling,\"\"), \"\")","v":""},{"$f":"IFERROR(IF(Lån_Ikke_Betalt*Værdier_Angivet,Hovedstol,\"\"), \"\")","v":""},{"$f":"IFERROR(IF(Lån_Ikke_Betalt*Værdier_Angivet,Renter,\"\"), \"\")","v":""},{"$f":"IFERROR(IF(Lån_Ikke_Betalt*Værdier_Angivet,Slut_saldo,\"\"), \"\")","v":""}]
[null,{"$f":"IFERROR(IF(Lån_Ikke_Betalt*Værdier_Angivet,Betaling_Nummer,\"\"), \"\")","v":""},{"$f":"IFERROR(IF(Lån_Ikke_Betalt*Værdier_Angivet,Betalingsdato,\"\"), \"\")","v":""},{"$f":"IFERROR(IF(Lån_Ikke_Betalt*Værdier_Angivet,Startsaldo,\"\"), \"\")","v":""},{"$f":"IFERROR(IF(Lån_Ikke_Betalt*Værdier_Angivet,Månedlig_Betaling,\"\"), \"\")","v":""},{"$f":"IFERROR(IF(Lån_Ikke_Betalt*Værdier_Angivet,Hovedstol,\"\"), \"\")","v":""},{"$f":"IFERROR(IF(Lån_Ikke_Betalt*Værdier_Angivet,Renter,\"\"), \"\")","v":""},{"$f":"IFERROR(IF(Lån_Ikke_Betalt*Værdier_Angivet,Slut_saldo,\"\"), \"\")","v":""}]
[null,{"$f":"IFERROR(IF(Lån_Ikke_Betalt*Værdier_Angivet,Betaling_Nummer,\"\"), \"\")","v":""},{"$f":"IFERROR(IF(Lån_Ikke_Betalt*Værdier_Angivet,Betalingsdato,\"\"), \"\")","v":""},{"$f":"IFERROR(IF(Lån_Ikke_Betalt*Værdier_Angivet,Startsaldo,\"\"), \"\")","v":""},{"$f":"IFERROR(IF(Lån_Ikke_Betalt*Værdier_Angivet,Månedlig_Betaling,\"\"), \"\")","v":""},{"$f":"IFERROR(IF(Lån_Ikke_Betalt*Værdier_Angivet,Hovedstol,\"\"), \"\")","v":""},{"$f":"IFERROR(IF(Lån_Ikke_Betalt*Værdier_Angivet,Renter,\"\"), \"\")","v":""},{"$f":"IFERROR(IF(Lån_Ikke_Betalt*Værdier_Angivet,Slut_saldo,\"\"), \"\")","v":""}]
[null,{"$f":"IFERROR(IF(Lån_Ikke_Betalt*Værdier_Angivet,Betaling_Nummer,\"\"), \"\")","v":""},{"$f":"IFERROR(IF(Lån_Ikke_Betalt*Værdier_Angivet,Betalingsdato,\"\"), \"\")","v":""},{"$f":"IFERROR(IF(Lån_Ikke_Betalt*Værdier_Angivet,Startsaldo,\"\"), \"\")","v":""},{"$f":"IFERROR(IF(Lån_Ikke_Betalt*Værdier_Angivet,Månedlig_Betaling,\"\"), \"\")","v":""},{"$f":"IFERROR(IF(Lån_Ikke_Betalt*Værdier_Angivet,Hovedstol,\"\"), \"\")","v":""},{"$f":"IFERROR(IF(Lån_Ikke_Betalt*Værdier_Angivet,Renter,\"\"), \"\")","v":""},{"$f":"IFERROR(IF(Lån_Ikke_Betalt*Værdier_Angivet,Slut_saldo,\"\"), \"\")","v":""}]
[null,{"$f":"IFERROR(IF(Lån_Ikke_Betalt*Værdier_Angivet,Betaling_Nummer,\"\"), \"\")","v":""},{"$f":"IFERROR(IF(Lån_Ikke_Betalt*Værdier_Angivet,Betalingsdato,\"\"), \"\")","v":""},{"$f":"IFERROR(IF(Lån_Ikke_Betalt*Værdier_Angivet,Startsaldo,\"\"), \"\")","v":""},{"$f":"IFERROR(IF(Lån_Ikke_Betalt*Værdier_Angivet,Månedlig_Betaling,\"\"), \"\")","v":""},{"$f":"IFERROR(IF(Lån_Ikke_Betalt*Værdier_Angivet,Hovedstol,\"\"), \"\")","v":""},{"$f":"IFERROR(IF(Lån_Ikke_Betalt*Værdier_Angivet,Renter,\"\"), \"\")","v":""},{"$f":"IFERROR(IF(Lån_Ikke_Betalt*Værdier_Angivet,Slut_saldo,\"\"), \"\")","v":""}]
[null,{"$f":"IFERROR(IF(Lån_Ikke_Betalt*Værdier_Angivet,Betaling_Nummer,\"\"), \"\")","v":""},{"$f":"IFERROR(IF(Lån_Ikke_Betalt*Værdier_Angivet,Betalingsdato,\"\"), \"\")","v":""},{"$f":"IFERROR(IF(Lån_Ikke_Betalt*Værdier_Angivet,Startsaldo,\"\"), \"\")","v":""},{"$f":"IFERROR(IF(Lån_Ikke_Betalt*Værdier_Angivet,Månedlig_Betaling,\"\"), \"\")","v":""},{"$f":"IFERROR(IF(Lån_Ikke_Betalt*Værdier_Angivet,Hovedstol,\"\"), \"\")","v":""},{"$f":"IFERROR(IF(Lån_Ikke_Betalt*Værdier_Angivet,Renter,\"\"), \"\")","v":""},{"$f":"IFERROR(IF(Lån_Ikke_Betalt*Værdier_Angivet,Slut_saldo,\"\"), \"\")","v":""}]
[null,{"$f":"IFERROR(IF(Lån_Ikke_Betalt*Værdier_Angivet,Betaling_Nummer,\"\"), \"\")","v":""},{"$f":"IFERROR(IF(Lån_Ikke_Betalt*Værdier_Angivet,Betalingsdato,\"\"), \"\")","v":""},{"$f":"IFERROR(IF(Lån_Ikke_Betalt*Værdier_Angivet,Startsaldo,\"\"), \"\")","v":""},{"$f":"IFERROR(IF(Lån_Ikke_Betalt*Værdier_Angivet,Månedlig_Betaling,\"\"), \"\")","v":""},{"$f":"IFERROR(IF(Lån_Ikke_Betalt*Værdier_Angivet,Hovedstol,\"\"), \"\")","v":""},{"$f":"IFERROR(IF(Lån_Ikke_Betalt*Værdier_Angivet,Renter,\"\"), \"\")","v":""},{"$f":"IFERROR(IF(Lån_Ikke_Betalt*Værdier_Angivet,Slut_saldo,\"\"), \"\")","v":""}]
[null,{"$f":"IFERROR(IF(Lån_Ikke_Betalt*Værdier_Angivet,Betaling_Nummer,\"\"), \"\")","v":""},{"$f":"IFERROR(IF(Lån_Ikke_Betalt*Værdier_Angivet,Betalingsdato,\"\"), \"\")","v":""},{"$f":"IFERROR(IF(Lån_Ikke_Betalt*Værdier_Angivet,Startsaldo,\"\"), \"\")","v":""},{"$f":"IFERROR(IF(Lån_Ikke_Betalt*Værdier_Angivet,Månedlig_Betaling,\"\"), \"\")","v":""},{"$f":"IFERROR(IF(Lån_Ikke_Betalt*Værdier_Angivet,Hovedstol,\"\"), \"\")","v":""},{"$f":"IFERROR(IF(Lån_Ikke_Betalt*Værdier_Angivet,Renter,\"\"), \"\")","v":""},{"$f":"IFERROR(IF(Lån_Ikke_Betalt*Værdier_Angivet,Slut_saldo,\"\"), \"\")","v":""}]
[null,{"$f":"IFERROR(IF(Lån_Ikke_Betalt*Værdier_Angivet,Betaling_Nummer,\"\"), \"\")","v":""},{"$f":"IFERROR(IF(Lån_Ikke_Betalt*Værdier_Angivet,Betalingsdato,\"\"), \"\")","v":""},{"$f":"IFERROR(IF(Lån_Ikke_Betalt*Værdier_Angivet,Startsaldo,\"\"), \"\")","v":""},{"$f":"IFERROR(IF(Lån_Ikke_Betalt*Værdier_Angivet,Månedlig_Betaling,\"\"), \"\")","v":""},{"$f":"IFERROR(IF(Lån_Ikke_Betalt*Værdier_Angivet,Hovedstol,\"\"), \"\")","v":""},{"$f":"IFERROR(IF(Lån_Ikke_Betalt*Værdier_Angivet,Renter,\"\"), \"\")","v":""},{"$f":"IFERROR(IF(Lån_Ikke_Betalt*Værdier_Angivet,Slut_saldo,\"\"), \"\")","v":""}]
[null,{"$f":"IFERROR(IF(Lån_Ikke_Betalt*Værdier_Angivet,Betaling_Nummer,\"\"), \"\")","v":""},{"$f":"IFERROR(IF(Lån_Ikke_Betalt*Værdier_Angivet,Betalingsdato,\"\"), \"\")","v":""},{"$f":"IFERROR(IF(Lån_Ikke_Betalt*Værdier_Angivet,Startsaldo,\"\"), \"\")","v":""},{"$f":"IFERROR(IF(Lån_Ikke_Betalt*Værdier_Angivet,Månedlig_Betaling,\"\"), \"\")","v":""},{"$f":"IFERROR(IF(Lån_Ikke_Betalt*Værdier_Angivet,Hovedstol,\"\"), \"\")","v":""},{"$f":"IFERROR(IF(Lån_Ikke_Betalt*Værdier_Angivet,Renter,\"\"), \"\")","v":""},{"$f":"IFERROR(IF(Lån_Ikke_Betalt*Værdier_Angivet,Slut_saldo,\"\"), \"\")","v":""}]
[null,{"$f":"IFERROR(IF(Lån_Ikke_Betalt*Værdier_Angivet,Betaling_Nummer,\"\"), \"\")","v":""},{"$f":"IFERROR(IF(Lån_Ikke_Betalt*Værdier_Angivet,Betalingsdato,\"\"), \"\")","v":""},{"$f":"IFERROR(IF(Lån_Ikke_Betalt*Værdier_Angivet,Startsaldo,\"\"), \"\")","v":""},{"$f":"IFERROR(IF(Lån_Ikke_Betalt*Værdier_Angivet,Månedlig_Betaling,\"\"), \"\")","v":""},{"$f":"IFERROR(IF(Lån_Ikke_Betalt*Værdier_Angivet,Hovedstol,\"\"), \"\")","v":""},{"$f":"IFERROR(IF(Lån_Ikke_Betalt*Værdier_Angivet,Renter,\"\"), \"\")","v":""},{"$f":"IFERROR(IF(Lån_Ikke_Betalt*Værdier_Angivet,Slut_saldo,\"\"), \"\")","v":""}]
[null,{"$f":"IFERROR(IF(Lån_Ikke_Betalt*Værdier_Angivet,Betaling_Nummer,\"\"), \"\")","v":""},{"$f":"IFERROR(IF(Lån_Ikke_Betalt*Værdier_Angivet,Betalingsdato,\"\"), \"\")","v":""},{"$f":"IFERROR(IF(Lån_Ikke_Betalt*Værdier_Angivet,Startsaldo,\"\"), \"\")","v":""},{"$f":"IFERROR(IF(Lån_Ikke_Betalt*Værdier_Angivet,Månedlig_Betaling,\"\"), \"\")","v":""},{"$f":"IFERROR(IF(Lån_Ikke_Betalt*Værdier_Angivet,Hovedstol,\"\"), \"\")","v":""},{"$f":"IFERROR(IF(Lån_Ikke_Betalt*Værdier_Angivet,Renter,\"\"), \"\")","v":""},{"$f":"IFERROR(IF(Lån_Ikke_Betalt*Værdier_Angivet,Slut_saldo,\"\"), \"\")","v":""}]
[null,{"$f":"IFERROR(IF(Lån_Ikke_Betalt*Værdier_Angivet,Betaling_Nummer,\"\"), \"\")","v":""},{"$f":"IFERROR(IF(Lån_Ikke_Betalt*Værdier_Angivet,Betalingsdato,\"\"), \"\")","v":""},{"$f":"IFERROR(IF(Lån_Ikke_Betalt*Værdier_Angivet,Startsaldo,\"\"), \"\")","v":""},{"$f":"IFERROR(IF(Lån_Ikke_Betalt*Værdier_Angivet,Månedlig_Betaling,\"\"), \"\")","v":""},{"$f":"IFERROR(IF(Lån_Ikke_Betalt*Værdier_Angivet,Hovedstol,\"\"), \"\")","v":""},{"$f":"IFERROR(IF(Lån_Ikke_Betalt*Værdier_Angivet,Renter,\"\"), \"\")","v":""},{"$f":"IFERROR(IF(Lån_Ikke_Betalt*Værdier_Angivet,Slut_saldo,\"\"), \"\")","v":""}]
[null,{"$f":"IFERROR(IF(Lån_Ikke_Betalt*Værdier_Angivet,Betaling_Nummer,\"\"), \"\")","v":""},{"$f":"IFERROR(IF(Lån_Ikke_Betalt*Værdier_Angivet,Betalingsdato,\"\"), \"\")","v":""},{"$f":"IFERROR(IF(Lån_Ikke_Betalt*Værdier_Angivet,Startsaldo,\"\"), \"\")","v":""},{"$f":"IFERROR(IF(Lån_Ikke_Betalt*Værdier_Angivet,Månedlig_Betaling,\"\"), \"\")","v":""},{"$f":"IFERROR(IF(Lån_Ikke_Betalt*Værdier_Angivet,Hovedstol,\"\"), \"\")","v":""},{"$f":"IFERROR(IF(Lån_Ikke_Betalt*Værdier_Angivet,Renter,\"\"), \"\")","v":""},{"$f":"IFERROR(IF(Lån_Ikke_Betalt*Værdier_Angivet,Slut_saldo,\"\"), \"\")","v":""}]
[null,{"$f":"IFERROR(IF(Lån_Ikke_Betalt*Værdier_Angivet,Betaling_Nummer,\"\"), \"\")","v":""},{"$f":"IFERROR(IF(Lån_Ikke_Betalt*Værdier_Angivet,Betalingsdato,\"\"), \"\")","v":""},{"$f":"IFERROR(IF(Lån_Ikke_Betalt*Værdier_Angivet,Startsaldo,\"\"), \"\")","v":""},{"$f":"IFERROR(IF(Lån_Ikke_Betalt*Værdier_Angivet,Månedlig_Betaling,\"\"), \"\")","v":""},{"$f":"IFERROR(IF(Lån_Ikke_Betalt*Værdier_Angivet,Hovedstol,\"\"), \"\")","v":""},{"$f":"IFERROR(IF(Lån_Ikke_Betalt*Værdier_Angivet,Renter,\"\"), \"\")","v":""},{"$f":"IFERROR(IF(Lån_Ikke_Betalt*Værdier_Angivet,Slut_saldo,\"\"), \"\")","v":""}]
[null,{"$f":"IFERROR(IF(Lån_Ikke_Betalt*Værdier_Angivet,Betaling_Nummer,\"\"), \"\")","v":""},{"$f":"IFERROR(IF(Lån_Ikke_Betalt*Værdier_Angivet,Betalingsdato,\"\"), \"\")","v":""},{"$f":"IFERROR(IF(Lån_Ikke_Betalt*Værdier_Angivet,Startsaldo,\"\"), \"\")","v":""},{"$f":"IFERROR(IF(Lån_Ikke_Betalt*Værdier_Angivet,Månedlig_Betaling,\"\"), \"\")","v":""},{"$f":"IFERROR(IF(Lån_Ikke_Betalt*Værdier_Angivet,Hovedstol,\"\"), \"\")","v":""},{"$f":"IFERROR(IF(Lån_Ikke_Betalt*Værdier_Angivet,Renter,\"\"), \"\")","v":""},{"$f":"IFERROR(IF(Lån_Ikke_Betalt*Værdier_Angivet,Slut_saldo,\"\"), \"\")","v":""}]
[null,{"$f":"IFERROR(IF(Lån_Ikke_Betalt*Værdier_Angivet,Betaling_Nummer,\"\"), \"\")","v":""},{"$f":"IFERROR(IF(Lån_Ikke_Betalt*Værdier_Angivet,Betalingsdato,\"\"), \"\")","v":""},{"$f":"IFERROR(IF(Lån_Ikke_Betalt*Værdier_Angivet,Startsaldo,\"\"), \"\")","v":""},{"$f":"IFERROR(IF(Lån_Ikke_Betalt*Værdier_Angivet,Månedlig_Betaling,\"\"), \"\")","v":""},{"$f":"IFERROR(IF(Lån_Ikke_Betalt*Værdier_Angivet,Hovedstol,\"\"), \"\")","v":""},{"$f":"IFERROR(IF(Lån_Ikke_Betalt*Værdier_Angivet,Renter,\"\"), \"\")","v":""},{"$f":"IFERROR(IF(Lån_Ikke_Betalt*Værdier_Angivet,Slut_saldo,\"\"), \"\")","v":""}]
[null,{"$f":"IFERROR(IF(Lån_Ikke_Betalt*Værdier_Angivet,Betaling_Nummer,\"\"), \"\")","v":""},{"$f":"IFERROR(IF(Lån_Ikke_Betalt*Værdier_Angivet,Betalingsdato,\"\"), \"\")","v":""},{"$f":"IFERROR(IF(Lån_Ikke_Betalt*Værdier_Angivet,Startsaldo,\"\"), \"\")","v":""},{"$f":"IFERROR(IF(Lån_Ikke_Betalt*Værdier_Angivet,Månedlig_Betaling,\"\"), \"\")","v":""},{"$f":"IFERROR(IF(Lån_Ikke_Betalt*Værdier_Angivet,Hovedstol,\"\"), \"\")","v":""},{"$f":"IFERROR(IF(Lån_Ikke_Betalt*Værdier_Angivet,Renter,\"\"), \"\")","v":""},{"$f":"IFERROR(IF(Lån_Ikke_Betalt*Værdier_Angivet,Slut_saldo,\"\"), \"\")","v":""}]
[null,{"$f":"IFERROR(IF(Lån_Ikke_Betalt*Værdier_Angivet,Betaling_Nummer,\"\"), \"\")","v":""},{"$f":"IFERROR(IF(Lån_Ikke_Betalt*Værdier_Angivet,Betalingsdato,\"\"), \"\")","v":""},{"$f":"IFERROR(IF(Lån_Ikke_Betalt*Værdier_Angivet,Startsaldo,\"\"), \"\")","v":""},{"$f":"IFERROR(IF(Lån_Ikke_Betalt*Værdier_Angivet,Månedlig_Betaling,\"\"), \"\")","v":""},{"$f":"IFERROR(IF(Lån_Ikke_Betalt*Værdier_Angivet,Hovedstol,\"\"), \"\")","v":""},{"$f":"IFERROR(IF(Lån_Ikke_Betalt*Værdier_Angivet,Renter,\"\"), \"\")","v":""},{"$f":"IFERROR(IF(Lån_Ikke_Betalt*Værdier_Angivet,Slut_saldo,\"\"), \"\")","v":""}]
[null,{"$f":"IFERROR(IF(Lån_Ikke_Betalt*Værdier_Angivet,Betaling_Nummer,\"\"), \"\")","v":""},{"$f":"IFERROR(IF(Lån_Ikke_Betalt*Værdier_Angivet,Betalingsdato,\"\"), \"\")","v":""},{"$f":"IFERROR(IF(Lån_Ikke_Betalt*Værdier_Angivet,Startsaldo,\"\"), \"\")","v":""},{"$f":"IFERROR(IF(Lån_Ikke_Betalt*Værdier_Angivet,Månedlig_Betaling,\"\"), \"\")","v":""},{"$f":"IFERROR(IF(Lån_Ikke_Betalt*Værdier_Angivet,Hovedstol,\"\"), \"\")","v":""},{"$f":"IFERROR(IF(Lån_Ikke_Betalt*Værdier_Angivet,Renter,\"\"), \"\")","v":""},{"$f":"IFERROR(IF(Lån_Ikke_Betalt*Værdier_Angivet,Slut_saldo,\"\"), \"\")","v":""}]
[null,{"$f":"IFERROR(IF(Lån_Ikke_Betalt*Værdier_Angivet,Betaling_Nummer,\"\"), \"\")","v":""},{"$f":"IFERROR(IF(Lån_Ikke_Betalt*Værdier_Angivet,Betalingsdato,\"\"), \"\")","v":""},{"$f":"IFERROR(IF(Lån_Ikke_Betalt*Værdier_Angivet,Startsaldo,\"\"), \"\")","v":""},{"$f":"IFERROR(IF(Lån_Ikke_Betalt*Værdier_Angivet,Månedlig_Betaling,\"\"), \"\")","v":""},{"$f":"IFERROR(IF(Lån_Ikke_Betalt*Værdier_Angivet,Hovedstol,\"\"), \"\")","v":""},{"$f":"IFERROR(IF(Lån_Ikke_Betalt*Værdier_Angivet,Renter,\"\"), \"\")","v":""},{"$f":"IFERROR(IF(Lån_Ikke_Betalt*Værdier_Angivet,Slut_saldo,\"\"), \"\")","v":""}]
[null,{"$f":"IFERROR(IF(Lån_Ikke_Betalt*Værdier_Angivet,Betaling_Nummer,\"\"), \"\")","v":""},{"$f":"IFERROR(IF(Lån_Ikke_Betalt*Værdier_Angivet,Betalingsdato,\"\"), \"\")","v":""},{"$f":"IFERROR(IF(Lån_Ikke_Betalt*Værdier_Angivet,Startsaldo,\"\"), \"\")","v":""},{"$f":"IFERROR(IF(Lån_Ikke_Betalt*Værdier_Angivet,Månedlig_Betaling,\"\"), \"\")","v":""},{"$f":"IFERROR(IF(Lån_Ikke_Betalt*Værdier_Angivet,Hovedstol,\"\"), \"\")","v":""},{"$f":"IFERROR(IF(Lån_Ikke_Betalt*Værdier_Angivet,Renter,\"\"), \"\")","v":""},{"$f":"IFERROR(IF(Lån_Ikke_Betalt*Værdier_Angivet,Slut_saldo,\"\"), \"\")","v":""}]
[null,{"$f":"IFERROR(IF(Lån_Ikke_Betalt*Værdier_Angivet,Betaling_Nummer,\"\"), \"\")","v":""},{"$f":"IFERROR(IF(Lån_Ikke_Betalt*Værdier_Angivet,Betalingsdato,\"\"), \"\")","v":""},{"$f":"IFERROR(IF(Lån_Ikke_Betalt*Værdier_Angivet,Startsaldo,\"\"), \"\")","v":""},{"$f":"IFERROR(IF(Lån_Ikke_Betalt*Værdier_Angivet,Månedlig_Betaling,\"\"), \"\")","v":""},{"$f":"IFERROR(IF(Lån_Ikke_Betalt*Værdier_Angivet,Hovedstol,\"\"), \"\")","v":""},{"$f":"IFERROR(IF(Lån_Ikke_Betalt*Værdier_Angivet,Renter,\"\"), \"\")","v":""},{"$f":"IFERROR(IF(Lån_Ikke_Betalt*Værdier_Angivet,Slut_saldo,\"\"), \"\")","v":""}]
[null,{"$f":"IFERROR(IF(Lån_Ikke_Betalt*Værdier_Angivet,Betaling_Nummer,\"\"), \"\")","v":""},{"$f":"IFERROR(IF(Lån_Ikke_Betalt*Værdier_Angivet,Betalingsdato,\"\"), \"\")","v":""},{"$f":"IFERROR(IF(Lån_Ikke_Betalt*Værdier_Angivet,Startsaldo,\"\"), \"\")","v":""},{"$f":"IFERROR(IF(Lån_Ikke_Betalt*Værdier_Angivet,Månedlig_Betaling,\"\"), \"\")","v":""},{"$f":"IFERROR(IF(Lån_Ikke_Betalt*Værdier_Angivet,Hovedstol,\"\"), \"\")","v":""},{"$f":"IFERROR(IF(Lån_Ikke_Betalt*Værdier_Angivet,Renter,\"\"), \"\")","v":""},{"$f":"IFERROR(IF(Lån_Ikke_Betalt*Værdier_Angivet,Slut_saldo,\"\"), \"\")","v":""}]